Workbook

Sheet armamentario
A1: SOMMA | B1: =SOMMA(intervallo) restituisce la somma dei valori nelle celle dell'intervallo specificato | D1: 1.5 | E1: 2 | F1: 3 | G1: 4
A2: esempio | B2: =SOMMA(D1:G1) restituisce 10 perché 1,5+2+3+4=10,5
A4: MIN | B4: =MIN(intervallo) restituisce il minore tra i valori nelle celle dell'intervallo specificato
A5: esempio | B5: =MIN(D1:G1) restituisce 1,5
A7: ASS | B7: =ASS(cella) restituisce il valore assoluto del valorenella cella
A8: esempi | B8: =INT(D1-E1) dato che le celle D1 e E1 contengono i valore 1,5 e 2, restituisce 0,5 =ASS(-2) restituisce 2
A10: SE | B10: =SE(condizione;risultato1;risultato2) restituisce risultato1 se la condizione è vera e risultato2 altrimenti
A11: esempi | B11: =SE(D1>2;1;4) dato che la cella D1 contiene il valore 1,5 restituisce 4 =SE(E1>1;0;3) dato che la cella E1 contiene il valore 2 restituisce 0
A13: alternativa a SE | B13: =1*(condizione) restituisce 1 se la condizione è vera e 0 altrimenti
A14: esempi | B14: =1*(D1>=1) dato che la cella D1 contiene il valore 1,5 la condizione è vera e la formula restituisce 1 =1*(D1>2) dato che la cella D1 contiene il valore 1,5 la condizione è falsa e la formula restituisce 0
A16: CASUALE | B16: =CASUALE() restituisce un valore casuale uniformemente distribuito nell'intervallo (0, 1)
A17: esempio | B17: =CASUALE() ogni invocazione della funzione restituisce un valore diverso: 0,84576, 0,423114, 0,278754, …

Sheet lancio moneta
B1: esiti (parole) | D1: esiti (numeri)
A2: =RAND() -> 0.3389321137 | B2: =IF(A2<0.5,"testa","croce") -> testa | C2: =C1+1 -> 1 | D2: =IF(B2="testa",1,0) -> 1 | E2: =E1+D2 -> 1 | F2: =E2/C2 -> 1
A3: =RAND() -> 0.2896128912 | B3: =IF(A3<0.5,"testa","croce") -> testa | C3: =C2+1 -> 2 | D3: =IF(B3="testa",1,0) -> 1 | E3: =E2+D3 -> 2 | F3: =E3/C3 -> 1
A4: 0.2609819895 | B4: testa | C4: 3 | D4: 1 | E4: 3 | F4: 1
A5: 0.224590711 | B5: testa | C5: 4 | D5: 1 | E5: 4 | F5: 1
A6: 0.1872035997 | B6: testa | C6: 5 | D6: 1 | E6: 5 | F6: 1
A7: 0.8524751813 | B7: croce | C7: 6 | D7: 0 | E7: 5 | F7: 0.8333333333
A8: 0.02571031329 | B8: testa | C8: 7 | D8: 1 | E8: 6 | F8: 0.8571428571
A9: 0.5317632304 | B9: croce | C9: 8 | D9: 0 | E9: 6 | F9: 0.75
A10: 0.4235734621 | B10: testa | C10: 9 | D10: 1 | E10: 7 | F10: 0.7777777778
A11: 0.7932304997 | B11: croce | C11: 10 | D11: 0 | E11: 7 | F11: 0.7
A12: 0.2890684936 | B12: testa | C12: =C11+1 -> 11 | D12: =IF(B12="testa",1,0) -> 1 | E12: =E11+D12 -> 8 | F12: =E12/C12 -> 0.7272727273
A13: 0.8831454702 | B13: croce | C13: 12 | D13: 0 | E13: 8 | F13: 0.6666666667
A14: 0.09930195283 | B14: testa | C14: 13 | D14: 1 | E14: 9 | F14: 0.6923076923
A15: 0.2636901103 | B15: testa | C15: 14 | D15: 1 | E15: 10 | F15: 0.7142857143
A16: 0.9575080124 | B16: croce | C16: 15 | D16: 0 | E16: 10 | F16: 0.6666666667
A17: 0.1688702302 | B17: testa | C17: 16 | D17: 1 | E17: 11 | F17: 0.6875
A18: 0.2412886028 | B18: testa | C18: 17 | D18: 1 | E18: 12 | F18: 0.7058823529
A19: 0.6033066304 | B19: croce | C19: 18 | D19: 0 | E19: 12 | F19: 0.6666666667
A20: 0.9258814924 | B20: croce | C20: 19 | D20: 0 | E20: 12 | F20: 0.6315789474
A21: 0.3457358517 | B21: testa | C21: 20 | D21: 1 | E21: 13 | F21: 0.65
A22: 0.319814435 | B22: testa | C22: 21 | D22: 1 | E22: 14 | F22: 0.6666666667
A23: 0.5841913538 | B23: croce | C23: 22 | D23: 0 | E23: 14 | F23: 0.6363636364
A24: 0.2105721163 | B24: testa | C24: 23 | D24: 1 | E24: 15 | F24: 0.652173913
A25: 0.8401604237 | B25: croce | C25: 24 | D25: 0 | E25: 15 | F25: 0.625
A26: 0.9944856606 | B26: croce | C26: 25 | D26: 0 | E26: 15 | F26: 0.6
A27: 0.9881936137 | B27: croce | C27: 26 | D27: 0 | E27: 15 | F27: 0.5769230769
A28: 0.3078523166 | B28: testa | C28: 27 | D28: 1 | E28: 16 | F28: 0.5925925926
A29: 0.9778396046 | B29: croce | C29: 28 | D29: 0 | E29: 16 | F29: 0.5714285714
A30: 0.5055968605 | B30: croce | C30: 29 | D30: 0 | E30: 16 | F30: 0.5517241379
A31: 0.2340843696 | B31: testa | C31: 30 | D31: 1 | E31: 17 | F31: 0.5666666667
A32: 0.05543233299 | B32: testa | C32: 31 | D32: 1 | E32: 18 | F32: 0.5806451613
A33: 0.6601690327 | B33: croce | C33: 32 | D33: 0 | E33: 18 | F33: 0.5625
A34: 0.2116810899 | B34: testa | C34: 33 | D34: 1 | E34: 19 | F34: 0.5757575758
A35: 0.247717594 | B35: testa | C35: 34 | D35: 1 | E35: 20 | F35: 0.5882352941
A36: 0.6302327217 | B36: croce | C36: 35 | D36: 0 | E36: 20 | F36: 0.5714285714
A37: 0.9814704271 | B37: croce | C37: 36 | D37: 0 | E37: 20 | F37: 0.5555555556
A38: 0.5051005576 | B38: croce | C38: 37 | D38: 0 | E38: 20 | F38: 0.5405405405
A39: 0.5018333892 | B39: croce | C39: 38 | D39: 0 | E39: 20 | F39: 0.5263157895
A40: 0.3194453938 | B40: testa | C40: 39 | D40: 1 | E40: 21 | F40: 0.5384615385
A41: 0.8848287622 | B41: croce | C41: 40 | D41: 0 | E41: 21 | F41: 0.525
A42: 0.5544883601 | B42: croce | C42: 41 | D42: 0 | E42: 21 | F42: 0.512195122
A43: 0.06525267472 | B43: testa | C43: 42 | D43: 1 | E43: 22 | F43: 0.5238095238
A44: 0.9403388334 | B44: croce | C44: 43 | D44: 0 | E44: 22 | F44: 0.511627907
A45: 0.3701575367 | B45: testa | C45: 44 | D45: 1 | E45: 23 | F45: 0.5227272727
A46: 0.5867679057 | B46: croce | C46: 45 | D46: 0 | E46: 23 | F46: 0.5111111111
A47: 0.5588241238 | B47: croce | C47: 46 | D47: 0 | E47: 23 | F47: 0.5
A48: 0.8106237745 | B48: croce | C48: 47 | D48: 0 | E48: 23 | F48: 0.4893617021
A49: 0.1286299052 | B49: testa | C49: 48 | D49: 1 | E49: 24 | F49: 0.5
A50: 0.2662231581 | B50: testa | C50: 49 | D50: 1 | E50: 25 | F50: 0.5102040816
A51: 0.5332867892 | B51: croce | C51: 50 | D51: 0 | E51: 25 | F51: 0.5
A52: 0.3622428963 | B52: testa | C52: 51 | D52: 1 | E52: 26 | F52: 0.5098039216
A53: 0.7550358437 | B53: croce | C53: 52 | D53: 0 | E53: 26 | F53: 0.5
A54: 0.07536551406 | B54: testa | C54: 53 | D54: 1 | E54: 27 | F54: 0.5094339623
A55: 0.02453939571 | B55: testa | C55: 54 | D55: 1 | E55: 28 | F55: 0.5185185185
A56: 0.1358692599 | B56: testa | C56: 55 | D56: 1 | E56: 29 | F56: 0.5272727273
A57: 0.4507057057 | B57: testa | C57: 56 | D57: 1 | E57: 30 | F57: 0.5357142857
A58: 0.3634412498 | B58: testa | C58: 57 | D58: 1 | E58: 31 | F58: 0.5438596491
A59: 0.330828888 | B59: testa | C59: 58 | D59: 1 | E59: 32 | F59: 0.5517241379
A60: 0.01301175657 | B60: testa | C60: 59 | D60: 1 | E60: 33 | F60: 0.5593220339
A61: 0.6130077017 | B61: croce | C61: 60 | D61: 0 | E61: 33 | F61: 0.55
A62: 0.55893853 | B62: croce | C62: 61 | D62: 0 | E62: 33 | F62: 0.5409836066
A63: 0.7605971488 | B63: croce | C63: 62 | D63: 0 | E63: 33 | F63: 0.5322580645
A64: 0.7886658207 | B64: croce | C64: 63 | D64: 0 | E64: 33 | F64: 0.5238095238
A65: 0.4250191682 | B65: testa | C65: 64 | D65: 1 | E65: 34 | F65: 0.53125
A66: 0.5530506397 | B66: croce | C66: 65 | D66: 0 | E66: 34 | F66: 0.5230769231
A67: =RAND() -> 0.1112953682 | B67: =IF(A67<0.5,"testa","croce") -> testa | C67: 66 | D67: 1 | E67: 35 | F67: 0.5303030303
A68: 0.9106708223 | B68: croce | C68: 67 | D68: 0 | E68: 35 | F68: 0.5223880597
A69: 0.6038513434 | B69: croce | C69: 68 | D69: 0 | E69: 35 | F69: 0.5147058824
A70: 0.2756977316 | B70: testa | C70: 69 | D70: 1 | E70: 36 | F70: 0.5217391304
A71: 0.5907735279 | B71: croce | C71: 70 | D71: 0 | E71: 36 | F71: 0.5142857143
A72: 0.5399066522 | B72: croce | C72: 71 | D72: 0 | E72: 36 | F72: 0.5070422535
A73: 0.3509690694 | B73: testa | C73: 72 | D73: 1 | E73: 37 | F73: 0.5138888889
A74: 0.8362436696 | B74: croce | C74: 73 | D74: 0 | E74: 37 | F74: 0.5068493151
A75: 0.6345708024 | B75: croce | C75: 74 | D75: 0 | E75: 37 | F75: 0.5
A76: 0.5699857129 | B76: croce | C76: =C75+1 -> 75 | D76: =IF(B76="testa",1,0) -> 0 | E76: =E75+D76 -> 37 | F76: =E76/C76 -> 0.4933333333
A77: 0.7723222154 | B77: croce | C77: 76 | D77: 0 | E77: 37 | F77: 0.4868421053
A78: 0.6818155759 | B78: croce | C78: 77 | D78: 0 | E78: 37 | F78: 0.4805194805
A79: 0.849837437 | B79: croce | C79: 78 | D79: 0 | E79: 37 | F79: 0.4743589744
A80: 0.3538722797 | B80: testa | C80: 79 | D80: 1 | E80: 38 | F80: 0.4810126582
A81: 0.1282229784 | B81: testa | C81: 80 | D81: 1 | E81: 39 | F81: 0.4875
A82: 0.4416423299 | B82: testa | C82: 81 | D82: 1 | E82: 40 | F82: 0.4938271605
A83: 0.5981472136 | B83: croce | C83: 82 | D83: 0 | E83: 40 | F83: 0.487804878
A84: 0.2863349962 | B84: testa | C84: 83 | D84: 1 | E84: 41 | F84: 0.4939759036
A85: 0.4215867657 | B85: testa | C85: 84 | D85: 1 | E85: 42 | F85: 0.5
A86: 0.1438792103 | B86: testa | C86: 85 | D86: 1 | E86: 43 | F86: 0.5058823529
A87: 0.2218904461 | B87: testa | C87: 86 | D87: 1 | E87: 44 | F87: 0.511627907
A88: 0.6873061432 | B88: croce | C88: 87 | D88: 0 | E88: 44 | F88: 0.5057471264
A89: 0.07484535309 | B89: testa | C89: 88 | D89: 1 | E89: 45 | F89: 0.5113636364
A90: 0.8852886243 | B90: croce | C90: 89 | D90: 0 | E90: 45 | F90: 0.5056179775
A91: 0.9027308286 | B91: croce | C91: 90 | D91: 0 | E91: 45 | F91: 0.5
A92: 0.1001755171 | B92: testa | C92: 91 | D92: 1 | E92: 46 | F92: 0.5054945055
A93: 0.1033224301 | B93: testa | C93: 92 | D93: 1 | E93: 47 | F93: 0.5108695652
A94: 0.8346185709 | B94: croce | C94: 93 | D94: 0 | E94: 47 | F94: 0.5053763441
A95: 0.2797949213 | B95: testa | C95: 94 | D95: 1 | E95: 48 | F95: 0.5106382979
A96: 0.7951982651 | B96: croce | C96: 95 | D96: 0 | E96: 48 | F96: 0.5052631579
A97: 0.8760208835 | B97: croce | C97: 96 | D97: 0 | E97: 48 | F97: 0.5
A98: 0.07981107888 | B98: testa | C98: 97 | D98: 1 | E98: 49 | F98: 0.5051546392
A99: 0.7097288036 | B99: croce | C99: 98 | D99: 0 | E99: 49 | F99: 0.5
A100: 0.2294056338 | B100: testa | C100: 99 | D100: 1 | E100: 50 | F100: 0.5050505051
A101: 0.853655305 | B101: croce | C101: 100 | D101: 0 | E101: 50 | F101: 0.5
A102: 0.2837995976 | B102: testa | C102: 101 | D102: 1 | E102: 51 | F102: 0.504950495
A103: 0.3454111229 | B103: testa | C103: 102 | D103: 1 | E103: 52 | F103: 0.5098039216
A104: 0.1453797561 | B104: testa | C104: 103 | D104: 1 | E104: 53 | F104: 0.5145631068
A105: 0.2736894607 | B105: testa | C105: 104 | D105: 1 | E105: 54 | F105: 0.5192307692
A106: 0.4502203077 | B106: testa | C106: 105 | D106: 1 | E106: 55 | F106: 0.5238095238
A107: 0.8720700082 | B107: croce | C107: 106 | D107: 0 | E107: 55 | F107: 0.5188679245
A108: 0.9583994016 | B108: croce | C108: 107 | D108: 0 | E108: 55 | F108: 0.5140186916
A109: 0.3467006412 | B109: testa | C109: 108 | D109: 1 | E109: 56 | F109: 0.5185185185
A110: 0.301275692 | B110: testa | C110: 109 | D110: 1 | E110: 57 | F110: 0.5229357798
A111: 0.2944530349 | B111: testa | C111: 110 | D111: 1 | E111: 58 | F111: 0.5272727273
A112: 0.6401526796 | B112: croce | C112: 111 | D112: 0 | E112: 58 | F112: 0.5225225225
A113: 0.1700297575 | B113: testa | C113: 112 | D113: 1 | E113: 59 | F113: 0.5267857143
A114: 0.04904781894 | B114: testa | C114: 113 | D114: 1 | E114: 60 | F114: 0.5309734513
A115: 0.5962255381 | B115: croce | C115: 114 | D115: 0 | E115: 60 | F115: 0.5263157895
A116: 0.307466405 | B116: testa | C116: 115 | D116: 1 | E116: 61 | F116: 0.5304347826
A117: 0.2886641542 | B117: testa | C117: 116 | D117: 1 | E117: 62 | F117: 0.5344827586
A118: 0.8457003098 | B118: croce | C118: 117 | D118: 0 | E118: 62 | F118: 0.5299145299
A119: 0.3023260339 | B119: testa | C119: 118 | D119: 1 | E119: 63 | F119: 0.5338983051
A120: 0.9431905213 | B120: croce | C120: 119 | D120: 0 | E120: 63 | F120: 0.5294117647
A121: 0.668790117 | B121: croce | C121: 120 | D121: 0 | E121: 63 | F121: 0.525
A122: 0.3881071032 | B122: testa | C122: 121 | D122: 1 | E122: 64 | F122: 0.5289256198
A123: 0.5724804043 | B123: croce | C123: 122 | D123: 0 | E123: 64 | F123: 0.5245901639
A124: 0.9391529978 | B124: croce | C124: 123 | D124: 0 | E124: 64 | F124: 0.5203252033
A125: 0.6761361818 | B125: croce | C125: 124 | D125: 0 | E125: 64 | F125: 0.5161290323
A126: 0.8482299296 | B126: croce | C126: 125 | D126: 0 | E126: 64 | F126: 0.512
A127: 0.0354376388 | B127: testa | C127: 126 | D127: 1 | E127: 65 | F127: 0.5158730159
A128: 0.6276591862 | B128: croce | C128: 127 | D128: 0 | E128: 65 | F128: 0.5118110236
A129: 0.1424207748 | B129: testa | C129: 128 | D129: 1 | E129: 66 | F129: 0.515625
A130: 0.6162303248 | B130: croce | C130: 129 | D130: 0 | E130: 66 | F130: 0.511627907
A131: =RAND() -> 0.7959537144 | B131: =IF(A131<0.5,"testa","croce") -> croce | C131: 130 | D131: 0 | E131: 66 | F131: 0.5076923077
A132: 0.06527959086 | B132: testa | C132: 131 | D132: 1 | E132: 67 | F132: 0.5114503817
A133: 0.918794276 | B133: croce | C133: 132 | D133: 0 | E133: 67 | F133: 0.5075757576
A134: 0.9094675423 | B134: croce | C134: 133 | D134: 0 | E134: 67 | F134: 0.5037593985
A135: 0.8011641315 | B135: croce | C135: 134 | D135: 0 | E135: 67 | F135: 0.5
A136: 0.9505442856 | B136: croce | C136: 135 | D136: 0 | E136: 67 | F136: 0.4962962963
A137: 0.3893757269 | B137: testa | C137: 136 | D137: 1 | E137: 68 | F137: 0.5
A138: 0.8610614 | B138: croce | C138: 137 | D138: 0 | E138: 68 | F138: 0.496350365
A139: 0.851790258 | B139: croce | C139: 138 | D139: 0 | E139: 68 | F139: 0.4927536232
A140: 0.05275064236 | B140: testa | C140: =C139+1 -> 139 | D140: =IF(B140="testa",1,0) -> 1 | E140: =E139+D140 -> 69 | F140: =E140/C140 -> 0.4964028777
A141: 0.3723755236 | B141: testa | C141: 140 | D141: 1 | E141: 70 | F141: 0.5
A142: 0.4240275411 | B142: testa | C142: 141 | D142: 1 | E142: 71 | F142: 0.5035460993
A143: 0.8276435399 | B143: croce | C143: 142 | D143: 0 | E143: 71 | F143: 0.5
A144: 0.6867718768 | B144: croce | C144: 143 | D144: 0 | E144: 71 | F144: 0.4965034965
A145: 0.5368875533 | B145: croce | C145: 144 | D145: 0 | E145: 71 | F145: 0.4930555556
A146: 0.7920156 | B146: croce | C146: 145 | D146: 0 | E146: 71 | F146: 0.4896551724
A147: 0.1016611887 | B147: testa | C147: 146 | D147: 1 | E147: 72 | F147: 0.4931506849
A148: 0.7635484179 | B148: croce | C148: 147 | D148: 0 | E148: 72 | F148: 0.4897959184
A149: 0.04321549149 | B149: testa | C149: 148 | D149: 1 | E149: 73 | F149: 0.4932432432
A150: 0.1599374654 | B150: testa | C150: 149 | D150: 1 | E150: 74 | F150: 0.4966442953
A151: 0.6749215389 | B151: croce | C151: 150 | D151: 0 | E151: 74 | F151: 0.4933333333
A152: 0.9269320563 | B152: croce | C152: 151 | D152: 0 | E152: 74 | F152: 0.4900662252
A153: 0.949777523 | B153: croce | C153: 152 | D153: 0 | E153: 74 | F153: 0.4868421053
A154: 0.1613931541 | B154: testa | C154: 153 | D154: 1 | E154: 75 | F154: 0.4901960784
A155: 0.03637109897 | B155: testa | C155: 154 | D155: 1 | E155: 76 | F155: 0.4935064935
A156: 0.371007481 | B156: testa | C156: 155 | D156: 1 | E156: 77 | F156: 0.4967741935
A157: 0.4154824378 | B157: testa | C157: 156 | D157: 1 | E157: 78 | F157: 0.5
A158: 0.5285739084 | B158: croce | C158: 157 | D158: 0 | E158: 78 | F158: 0.4968152866
A159: 0.4264959964 | B159: testa | C159: 158 | D159: 1 | E159: 79 | F159: 0.5
A160: 0.04499031289 | B160: testa | C160: 159 | D160: 1 | E160: 80 | F160: 0.5031446541
A161: 0.5745509823 | B161: croce | C161: 160 | D161: 0 | E161: 80 | F161: 0.5
A162: 0.9104805292 | B162: croce | C162: 161 | D162: 0 | E162: 80 | F162: 0.4968944099
A163: 0.83918623 | B163: croce | C163: 162 | D163: 0 | E163: 80 | F163: 0.4938271605
A164: 0.7787799634 | B164: croce | C164: 163 | D164: 0 | E164: 80 | F164: 0.490797546
A165: 0.1968038934 | B165: testa | C165: 164 | D165: 1 | E165: 81 | F165: 0.493902439
A166: 0.4262125505 | B166: testa | C166: 165 | D166: 1 | E166: 82 | F166: 0.496969697
A167: 0.4385966821 | B167: testa | C167: 166 | D167: 1 | E167: 83 | F167: 0.5
A168: 0.3523415376 | B168: testa | C168: 167 | D168: 1 | E168: 84 | F168: 0.502994012
A169: 0.177502665 | B169: testa | C169: 168 | D169: 1 | E169: 85 | F169: 0.505952381
A170: 0.164813382 | B170: testa | C170: 169 | D170: 1 | E170: 86 | F170: 0.5088757396
A171: 0.3653711209 | B171: testa | C171: 170 | D171: 1 | E171: 87 | F171: 0.5117647059
A172: 0.1522409474 | B172: testa | C172: 171 | D172: 1 | E172: 88 | F172: 0.514619883
A173: 0.9453718232 | B173: croce | C173: 172 | D173: 0 | E173: 88 | F173: 0.511627907
A174: 0.3935835212 | B174: testa | C174: 173 | D174: 1 | E174: 89 | F174: 0.5144508671
A175: 0.4293329545 | B175: testa | C175: 174 | D175: 1 | E175: 90 | F175: 0.5172413793
A176: 0.329989254 | B176: testa | C176: 175 | D176: 1 | E176: 91 | F176: 0.52
A177: 0.6377890891 | B177: croce | C177: 176 | D177: 0 | E177: 91 | F177: 0.5170454545
A178: 0.9564589068 | B178: croce | C178: 177 | D178: 0 | E178: 91 | F178: 0.5141242938
A179: 0.316308087 | B179: testa | C179: 178 | D179: 1 | E179: 92 | F179: 0.5168539326
A180: 0.4659847069 | B180: testa | C180: 179 | D180: 1 | E180: 93 | F180: 0.5195530726
A181: 0.5334186689 | B181: croce | C181: 180 | D181: 0 | E181: 93 | F181: 0.5166666667
A182: 0.9338672853 | B182: croce | C182: 181 | D182: 0 | E182: 93 | F182: 0.5138121547
A183: 0.3520384249 | B183: testa | C183: 182 | D183: 1 | E183: 94 | F183: 0.5164835165
A184: 0.7718746499 | B184: croce | C184: 183 | D184: 0 | E184: 94 | F184: 0.5136612022
A185: 0.8030010525 | B185: croce | C185: 184 | D185: 0 | E185: 94 | F185: 0.5108695652
A186: 0.7506328143 | B186: croce | C186: 185 | D186: 0 | E186: 94 | F186: 0.5081081081
A187: 0.2819311297 | B187: testa | C187: 186 | D187: 1 | E187: 95 | F187: 0.5107526882
A188: 0.7392305754 | B188: croce | C188: 187 | D188: 0 | E188: 95 | F188: 0.5080213904
A189: 0.6942652818 | B189: croce | C189: 188 | D189: 0 | E189: 95 | F189: 0.5053191489
A190: 0.2686165908 | B190: testa | C190: 189 | D190: 1 | E190: 96 | F190: 0.5079365079
A191: 0.350692025 | B191: testa | C191: 190 | D191: 1 | E191: 97 | F191: 0.5105263158
A192: 0.9203946847 | B192: croce | C192: 191 | D192: 0 | E192: 97 | F192: 0.5078534031
A193: 0.1702221333 | B193: testa | C193: 192 | D193: 1 | E193: 98 | F193: 0.5104166667
A194: 0.7058259332 | B194: croce | C194: 193 | D194: 0 | E194: 98 | F194: 0.5077720207
A195: =RAND() -> 0.6831762103 | B195: =IF(A195<0.5,"testa","croce") -> croce | C195: 194 | D195: 0 | E195: 98 | F195: 0.5051546392
A196: 0.5114230099 | B196: croce | C196: 195 | D196: 0 | E196: 98 | F196: 0.5025641026
A197: 0.4773385329 | B197: testa | C197: 196 | D197: 1 | E197: 99 | F197: 0.5051020408
A198: 0.2933958567 | B198: testa | C198: 197 | D198: 1 | E198: 100 | F198: 0.5076142132
A199: 0.5088263919 | B199: croce | C199: 198 | D199: 0 | E199: 100 | F199: 0.5050505051
A200: 0.7296177531 | B200: croce | C200: 199 | D200: 0 | E200: 100 | F200: 0.5025125628
... 801 more rows

Sheet problema monete
W1: n.T nei primi 10 lanci | Z1: n.T nei primi 20 lanci
A2: =IF(RAND()<0.5,1,0) -> 0 | B2: =IF(RAND()<0.5,1,0) -> 0 | C2: 0 | D2: 0 | E2: 1 | F2: 1 | G2: 1 | H2: 1 | I2: 0 | J2: 1 | K2: 1 | L2: 0 | M2: 0 | N2: 1 | O2: 0 | P2: 0 | Q2: 1 | R2: 0 | S2: 1 | T2: 1 | V2: =SUM(X:X) -> 374 | W2: =SUM(A2:J2) -> 5 | X2: =IF(W2>=6,1,0) -> 0 | Y2: =SUM(AA:AA) -> 251 | Z2: =SUM(A2:T2) -> 10 | AA2: =IF(Z2>=12,1,0) -> 0
A3: =IF(RAND()<0.5,1,0) -> 0 | B3: 0 | C3: 1 | D3: 1 | E3: 0 | F3: 0 | G3: 0 | H3: 1 | I3: 0 | J3: 0 | K3: 0 | L3: 1 | M3: 0 | N3: 1 | O3: 0 | P3: 1 | Q3: 1 | R3: 0 | S3: 0 | T3: 1 | W3: =SUM(A3:J3) -> 3 | X3: =IF(W3>=6,1,0) -> 0 | Z3: =SUM(A3:T3) -> 8 | AA3: =IF(Z3>=12,1,0) -> 0
A4: 0 | B4: 1 | C4: 0 | D4: 1 | E4: 0 | F4: 1 | G4: 1 | H4: 0 | I4: 1 | J4: 1 | K4: 0 | L4: 0 | M4: 0 | N4: 0 | O4: 1 | P4: 0 | Q4: 1 | R4: 0 | S4: 1 | T4: 0 | W4: 6 | X4: 1 | Z4: 9 | AA4: 0
A5: 0 | B5: 1 | C5: 1 | D5: 1 | E5: 1 | F5: 1 | G5: 1 | H5: 1 | I5: 1 | J5: 0 | K5: 1 | L5: 1 | M5: 0 | N5: 0 | O5: 0 | P5: 1 | Q5: 0 | R5: 1 | S5: 1 | T5: 1 | W5: 8 | X5: 1 | Z5: 14 | AA5: 1
A6: 1 | B6: 1 | C6: 1 | D6: 1 | E6: 1 | F6: 0 | G6: 0 | H6: 1 | I6: 0 | J6: 0 | K6: 0 | L6: 1 | M6: 1 | N6: 0 | O6: 0 | P6: 0 | Q6: 1 | R6: 1 | S6: 0 | T6: 1 | W6: 6 | X6: 1 | Z6: 11 | AA6: 0
A7: 0 | B7: 1 | C7: 1 | D7: 0 | E7: 1 | F7: 1 | G7: 0 | H7: 0 | I7: 1 | J7: 0 | K7: 0 | L7: 0 | M7: 0 | N7: 1 | O7: 1 | P7: 1 | Q7: 0 | R7: 0 | S7: 1 | T7: 0 | W7: 5 | X7: 0 | Z7: 9 | AA7: 0
A8: 0 | B8: 0 | C8: 0 | D8: 1 | E8: 0 | F8: 0 | G8: 1 | H8: 1 | I8: 1 | J8: 0 | K8: 0 | L8: 1 | M8: 0 | N8: 0 | O8: 1 | P8: 1 | Q8: 1 | R8: 1 | S8: 1 | T8: 1 | W8: 4 | X8: 0 | Z8: 11 | AA8: 0
A9: 0 | B9: 0 | C9: 1 | D9: 0 | E9: 1 | F9: 1 | G9: 1 | H9: 0 | I9: 1 | J9: 0 | K9: 1 | L9: 0 | M9: 0 | N9: 1 | O9: 0 | P9: 0 | Q9: 1 | R9: 1 | S9: 0 | T9: 1 | W9: 5 | X9: 0 | Z9: 10 | AA9: 0
A10: 1 | B10: 1 | C10: 1 | D10: 0 | E10: 0 | F10: 1 | G10: 0 | H10: 0 | I10: 1 | J10: 0 | K10: 1 | L10: 1 | M10: 0 | N10: 1 | O10: 0 | P10: 0 | Q10: 1 | R10: 0 | S10: 0 | T10: 0 | W10: 5 | X10: 0 | Z10: 9 | AA10: 0
A11: 1 | B11: 0 | C11: 1 | D11: 1 | E11: 0 | F11: 1 | G11: 0 | H11: 1 | I11: 0 | J11: 1 | K11: 0 | L11: 0 | M11: 1 | N11: 1 | O11: 1 | P11: 1 | Q11: 1 | R11: 0 | S11: 0 | T11: 0 | W11: 6 | X11: 1 | Z11: 11 | AA11: 0
A12: 0 | B12: 0 | C12: 0 | D12: 0 | E12: 0 | F12: 1 | G12: 1 | H12: 1 | I12: 1 | J12: 1 | K12: 0 | L12: 1 | M12: 1 | N12: 0 | O12: 0 | P12: 1 | Q12: 0 | R12: 1 | S12: 0 | T12: 1 | W12: 5 | X12: 0 | Z12: 10 | AA12: 0
A13: 0 | B13: 0 | C13: 0 | D13: 0 | E13: 1 | F13: 0 | G13: 1 | H13: 1 | I13: 1 | J13: 1 | K13: 0 | L13: 1 | M13: 0 | N13: 0 | O13: 1 | P13: 1 | Q13: 1 | R13: 1 | S13: 0 | T13: 1 | W13: 5 | X13: 0 | Z13: 11 | AA13: 0
A14: 0 | B14: 0 | C14: 0 | D14: 1 | E14: 0 | F14: 1 | G14: 0 | H14: 0 | I14: 1 | J14: 0 | K14: 0 | L14: 0 | M14: 1 | N14: 0 | O14: 0 | P14: 0 | Q14: 1 | R14: 0 | S14: 0 | T14: 1 | W14: 3 | X14: 0 | Z14: 6 | AA14: 0
A15: 1 | B15: 0 | C15: 1 | D15: 1 | E15: 1 | F15: 0 | G15: 1 | H15: 1 | I15: 0 | J15: =IF(RAND()<0.5,1,0) -> 0 | K15: 0 | L15: 0 | M15: 1 | N15: 1 | O15: 1 | P15: 0 | Q15: 0 | R15: 0 | S15: 0 | T15: 0 | W15: 6 | X15: 1 | Z15: 9 | AA15: 0
A16: 0 | B16: 0 | C16: 0 | D16: 0 | E16: 0 | F16: 0 | G16: 1 | H16: 0 | I16: 1 | J16: 0 | K16: 1 | L16: 1 | M16: 0 | N16: 1 | O16: 0 | P16: 0 | Q16: 0 | R16: 0 | S16: 0 | T16: 0 | W16: 2 | X16: 0 | Z16: 5 | AA16: 0
A17: 1 | B17: 0 | C17: 1 | D17: 1 | E17: 1 | F17: 1 | G17: 0 | H17: 1 | I17: 1 | J17: 1 | K17: 1 | L17: 0 | M17: 1 | N17: 0 | O17: 0 | P17: 0 | Q17: 1 | R17: 0 | S17: 1 | T17: 0 | W17: 8 | X17: 1 | Z17: 12 | AA17: 1
A18: 1 | B18: 0 | C18: 1 | D18: 0 | E18: 1 | F18: 0 | G18: 0 | H18: 1 | I18: 1 | J18: 1 | K18: 0 | L18: 1 | M18: 0 | N18: 1 | O18: 1 | P18: 0 | Q18: 0 | R18: 0 | S18: 0 | T18: 0 | W18: 6 | X18: 1 | Z18: 9 | AA18: 0
A19: 0 | B19: 1 | C19: 1 | D19: 1 | E19: 0 | F19: 1 | G19: 0 | H19: 1 | I19: 0 | J19: 1 | K19: 1 | L19: 0 | M19: 1 | N19: 1 | O19: 1 | P19: 0 | Q19: 1 | R19: 0 | S19: 1 | T19: 1 | W19: 6 | X19: 1 | Z19: 13 | AA19: 1
A20: 0 | B20: 0 | C20: 0 | D20: 0 | E20: 1 | F20: 0 | G20: 0 | H20: 0 | I20: 0 | J20: 1 | K20: 0 | L20: 0 | M20: 1 | N20: 0 | O20: 1 | P20: 1 | Q20: 0 | R20: 0 | S20: 1 | T20: 1 | W20: 2 | X20: 0 | Z20: 7 | AA20: 0
A21: 1 | B21: 0 | C21: 1 | D21: 1 | E21: 1 | F21: 0 | G21: 1 | H21: 1 | I21: 0 | J21: 0 | K21: 1 | L21: 0 | M21: 1 | N21: 1 | O21: 0 | P21: 1 | Q21: 0 | R21: 0 | S21: 0 | T21: 1 | W21: 6 | X21: 1 | Z21: 11 | AA21: 0
A22: 0 | B22: 0 | C22: 0 | D22: 1 | E22: 1 | F22: 0 | G22: 1 | H22: 1 | I22: 1 | J22: 1 | K22: 1 | L22: 1 | M22: 1 | N22: 0 | O22: 0 | P22: 0 | Q22: 0 | R22: 0 | S22: 1 | T22: 0 | W22: 6 | X22: 1 | Z22: 10 | AA22: 0
A23: 0 | B23: 0 | C23: 1 | D23: 1 | E23: 1 | F23: 1 | G23: 0 | H23: 0 | I23: 0 | J23: 0 | K23: 1 | L23: 0 | M23: 0 | N23: 1 | O23: 1 | P23: 1 | Q23: 0 | R23: 1 | S23: 0 | T23: 0 | W23: 4 | X23: 0 | Z23: 9 | AA23: 0
A24: 0 | B24: 1 | C24: 0 | D24: 0 | E24: 0 | F24: 1 | G24: 0 | H24: 1 | I24: 1 | J24: 1 | K24: 1 | L24: 1 | M24: 1 | N24: 1 | O24: 0 | P24: 0 | Q24: 0 | R24: 0 | S24: 1 | T24: 0 | W24: 5 | X24: 0 | Z24: 10 | AA24: 0
A25: 1 | B25: 1 | C25: 0 | D25: 1 | E25: 1 | F25: 1 | G25: 1 | H25: 1 | I25: 1 | J25: 0 | K25: 0 | L25: 1 | M25: 0 | N25: 1 | O25: 0 | P25: 1 | Q25: 1 | R25: 0 | S25: 1 | T25: 0 | W25: 8 | X25: 1 | Z25: 13 | AA25: 1
A26: 0 | B26: 0 | C26: 1 | D26: 1 | E26: 0 | F26: 0 | G26: 0 | H26: 1 | I26: 1 | J26: 1 | K26: 0 | L26: 1 | M26: 1 | N26: 1 | O26: 1 | P26: 0 | Q26: 0 | R26: 1 | S26: 0 | T26: 1 | W26: 5 | X26: 0 | Z26: 11 | AA26: 0
A27: 1 | B27: 0 | C27: 1 | D27: 1 | E27: 0 | F27: 0 | G27: 0 | H27: 0 | I27: 1 | J27: 0 | K27: 0 | L27: 0 | M27: 1 | N27: 0 | O27: 1 | P27: 0 | Q27: 1 | R27: 1 | S27: 0 | T27: 0 | W27: 4 | X27: 0 | Z27: 8 | AA27: 0
A28: 1 | B28: 1 | C28: 1 | D28: 0 | E28: 0 | F28: 1 | G28: 0 | H28: 1 | I28: 0 | J28: 0 | K28: 1 | L28: 0 | M28: 0 | N28: 1 | O28: 0 | P28: 0 | Q28: 1 | R28: 0 | S28: 0 | T28: 1 | W28: 5 | X28: 0 | Z28: 9 | AA28: 0
A29: 0 | B29: 1 | C29: 1 | D29: 1 | E29: 1 | F29: 1 | G29: 0 | H29: 0 | I29: 0 | J29: 0 | K29: 1 | L29: 1 | M29: 1 | N29: 0 | O29: 1 | P29: 0 | Q29: 1 | R29: 0 | S29: 1 | T29: 1 | W29: 5 | X29: 0 | Z29: 12 | AA29: 1
A30: 1 | B30: 1 | C30: 0 | D30: 1 | E30: 0 | F30: 0 | G30: 0 | H30: 1 | I30: 1 | J30: 1 | K30: 1 | L30: 0 | M30: 0 | N30: 1 | O30: 0 | P30: 1 | Q30: 0 | R30: 0 | S30: 0 | T30: 1 | W30: 6 | X30: 1 | Z30: 10 | AA30: 0
A31: 0 | B31: 0 | C31: =IF(RAND()<0.5,1,0) -> 0 | D31: 0 | E31: 1 | F31: 0 | G31: 0 | H31: 1 | I31: 0 | J31: 1 | K31: 0 | L31: 1 | M31: 1 | N31: 1 | O31: 1 | P31: 1 | Q31: 0 | R31: 1 | S31: 1 | T31: 0 | W31: 3 | X31: 0 | Z31: 10 | AA31: 0
A32: =IF(RAND()<0.5,1,0) -> 1 | B32: 1 | C32: 0 | D32: 0 | E32: 1 | F32: 1 | G32: 0 | H32: 0 | I32: 0 | J32: 0 | K32: 1 | L32: 0 | M32: 1 | N32: 0 | O32: 1 | P32: 1 | Q32: 1 | R32: 1 | S32: 1 | T32: 1 | W32: 4 | X32: 0 | Z32: 12 | AA32: 1
A33: 1 | B33: 1 | C33: 0 | D33: 1 | E33: 1 | F33: 0 | G33: 0 | H33: 0 | I33: 1 | J33: 0 | K33: 1 | L33: 1 | M33: 1 | N33: 1 | O33: 1 | P33: 0 | Q33: 1 | R33: 0 | S33: 1 | T33: 1 | W33: 5 | X33: 0 | Z33: 13 | AA33: 1
A34: 0 | B34: 0 | C34: 1 | D34: 0 | E34: 1 | F34: 0 | G34: 0 | H34: 0 | I34: 0 | J34: 1 | K34: 0 | L34: 0 | M34: 0 | N34: 0 | O34: 0 | P34: 1 | Q34: 1 | R34: 0 | S34: 0 | T34: 1 | W34: 3 | X34: 0 | Z34: 6 | AA34: 0
A35: 1 | B35: 1 | C35: 0 | D35: 1 | E35: 0 | F35: 1 | G35: 1 | H35: 1 | I35: 1 | J35: 1 | K35: 1 | L35: 1 | M35: 1 | N35: 0 | O35: 1 | P35: 0 | Q35: 0 | R35: 1 | S35: 0 | T35: 0 | W35: 8 | X35: 1 | Z35: 13 | AA35: 1
A36: 0 | B36: 0 | C36: 1 | D36: 0 | E36: 0 | F36: 0 | G36: 1 | H36: 0 | I36: 0 | J36: 0 | K36: 0 | L36: 1 | M36: 1 | N36: 0 | O36: 0 | P36: 0 | Q36: 1 | R36: 0 | S36: 1 | T36: 0 | W36: 2 | X36: 0 | Z36: 6 | AA36: 0
A37: 1 | B37: 0 | C37: 0 | D37: 1 | E37: 1 | F37: 0 | G37: 0 | H37: 1 | I37: 0 | J37: 1 | K37: 1 | L37: 1 | M37: 1 | N37: 0 | O37: 0 | P37: 1 | Q37: 1 | R37: 0 | S37: 0 | T37: 1 | W37: 5 | X37: 0 | Z37: 11 | AA37: 0
A38: 1 | B38: 1 | C38: 0 | D38: 1 | E38: 0 | F38: 0 | G38: 0 | H38: 1 | I38: 1 | J38: 1 | K38: 0 | L38: 1 | M38: 0 | N38: 1 | O38: 1 | P38: 1 | Q38: 0 | R38: 1 | S38: 0 | T38: 1 | W38: 6 | X38: 1 | Z38: 12 | AA38: 1
A39: 0 | B39: 1 | C39: 1 | D39: 1 | E39: 1 | F39: 1 | G39: 0 | H39: 0 | I39: 1 | J39: 0 | K39: 0 | L39: 0 | M39: 1 | N39: 1 | O39: 0 | P39: 1 | Q39: 0 | R39: 0 | S39: 0 | T39: 0 | W39: 6 | X39: 1 | Z39: 9 | AA39: 0
A40: 0 | B40: 0 | C40: 1 | D40: 0 | E40: 0 | F40: 1 | G40: 1 | H40: 1 | I40: 0 | J40: 1 | K40: 0 | L40: 1 | M40: 1 | N40: 0 | O40: 0 | P40: 0 | Q40: 1 | R40: 1 | S40: 0 | T40: 1 | W40: 5 | X40: 0 | Z40: 10 | AA40: 0
A41: 0 | B41: 1 | C41: 1 | D41: 1 | E41: 1 | F41: 0 | G41: 0 | H41: 0 | I41: 0 | J41: 0 | K41: 0 | L41: 1 | M41: 1 | N41: 0 | O41: 0 | P41: 0 | Q41: 1 | R41: 0 | S41: 0 | T41: 1 | W41: 4 | X41: 0 | Z41: 8 | AA41: 0
A42: 1 | B42: 1 | C42: 1 | D42: 0 | E42: 1 | F42: 0 | G42: 1 | H42: 0 | I42: 1 | J42: 0 | K42: 0 | L42: 0 | M42: 1 | N42: 1 | O42: 1 | P42: 0 | Q42: 0 | R42: 0 | S42: 0 | T42: 1 | W42: 6 | X42: 1 | Z42: 10 | AA42: 0
A43: 1 | B43: 1 | C43: 1 | D43: 1 | E43: 0 | F43: 0 | G43: 1 | H43: 0 | I43: 0 | J43: 0 | K43: 0 | L43: 0 | M43: 0 | N43: 1 | O43: 1 | P43: 1 | Q43: 0 | R43: 0 | S43: 0 | T43: 0 | W43: 5 | X43: 0 | Z43: 8 | AA43: 0
A44: 1 | B44: 1 | C44: 1 | D44: 1 | E44: 0 | F44: 1 | G44: 1 | H44: 1 | I44: 0 | J44: 0 | K44: 0 | L44: 0 | M44: 1 | N44: 1 | O44: 0 | P44: 1 | Q44: 0 | R44: 0 | S44: 0 | T44: 0 | W44: 7 | X44: 1 | Z44: 10 | AA44: 0
A45: 0 | B45: 0 | C45: 0 | D45: 0 | E45: 1 | F45: 1 | G45: 1 | H45: 0 | I45: 1 | J45: 1 | K45: 0 | L45: 0 | M45: 1 | N45: 0 | O45: 1 | P45: 0 | Q45: 1 | R45: 1 | S45: 0 | T45: 1 | W45: 5 | X45: 0 | Z45: 10 | AA45: 0
A46: 1 | B46: 0 | C46: 1 | D46: 0 | E46: 1 | F46: 0 | G46: 0 | H46: 0 | I46: 0 | J46: 1 | K46: 0 | L46: 0 | M46: 1 | N46: 0 | O46: 0 | P46: 1 | Q46: 0 | R46: 1 | S46: 0 | T46: 0 | W46: 4 | X46: 0 | Z46: 7 | AA46: 0
A47: 1 | B47: 1 | C47: 0 | D47: 0 | E47: 1 | F47: 1 | G47: 1 | H47: 0 | I47: 1 | J47: 1 | K47: 0 | L47: 0 | M47: 0 | N47: 0 | O47: 1 | P47: =IF(RAND()<0.5,1,0) -> 1 | Q47: 0 | R47: 1 | S47: 0 | T47: 0 | W47: 7 | X47: 1 | Z47: 10 | AA47: 0
A48: =IF(RAND()<0.5,1,0) -> 1 | B48: 1 | C48: 1 | D48: 1 | E48: 0 | F48: 1 | G48: 1 | H48: 0 | I48: 1 | J48: 0 | K48: 0 | L48: 0 | M48: 1 | N48: 1 | O48: 1 | P48: 1 | Q48: 0 | R48: 0 | S48: 1 | T48: 1 | W48: 7 | X48: 1 | Z48: 13 | AA48: 1
A49: 1 | B49: 0 | C49: 1 | D49: 1 | E49: 0 | F49: 0 | G49: 1 | H49: 1 | I49: 0 | J49: 1 | K49: 0 | L49: 1 | M49: 0 | N49: 0 | O49: 0 | P49: 1 | Q49: 1 | R49: 1 | S49: 0 | T49: 1 | W49: 6 | X49: 1 | Z49: 11 | AA49: 0
A50: 1 | B50: 1 | C50: 0 | D50: 0 | E50: 1 | F50: 0 | G50: 0 | H50: 0 | I50: 0 | J50: 0 | K50: 1 | L50: 0 | M50: 1 | N50: 1 | O50: 1 | P50: 1 | Q50: 0 | R50: 1 | S50: 0 | T50: 0 | W50: 3 | X50: 0 | Z50: 9 | AA50: 0
A51: 1 | B51: 1 | C51: 1 | D51: 0 | E51: 1 | F51: 0 | G51: 0 | H51: 1 | I51: 0 | J51: 0 | K51: 1 | L51: 0 | M51: 1 | N51: 1 | O51: 0 | P51: 1 | Q51: 1 | R51: 1 | S51: 1 | T51: 1 | W51: 5 | X51: 0 | Z51: 13 | AA51: 1
A52: 0 | B52: 1 | C52: 1 | D52: 0 | E52: 0 | F52: 0 | G52: 0 | H52: 1 | I52: 1 | J52: 0 | K52: 1 | L52: 1 | M52: 1 | N52: 0 | O52: 0 | P52: 0 | Q52: 0 | R52: 0 | S52: 0 | T52: 1 | W52: 4 | X52: 0 | Z52: 8 | AA52: 0
A53: 1 | B53: 0 | C53: 1 | D53: 0 | E53: 1 | F53: 1 | G53: 1 | H53: 0 | I53: 0 | J53: 0 | K53: 0 | L53: 0 | M53: 0 | N53: 0 | O53: 0 | P53: 1 | Q53: 1 | R53: 1 | S53: 1 | T53: 0 | W53: 5 | X53: 0 | Z53: 9 | AA53: 0
A54: 0 | B54: 1 | C54: 1 | D54: 0 | E54: 0 | F54: 1 | G54: 1 | H54: 1 | I54: 0 | J54: 0 | K54: 1 | L54: 1 | M54: 1 | N54: 1 | O54: 1 | P54: 1 | Q54: 1 | R54: 0 | S54: 0 | T54: 1 | W54: 5 | X54: 0 | Z54: 13 | AA54: 1
A55: 1 | B55: 1 | C55: 1 | D55: 0 | E55: 1 | F55: 1 | G55: 0 | H55: 1 | I55: 1 | J55: 0 | K55: 0 | L55: 0 | M55: 1 | N55: 0 | O55: 1 | P55: 0 | Q55: 0 | R55: 0 | S55: 1 | T55: 0 | W55: 7 | X55: 1 | Z55: 10 | AA55: 0
A56: 0 | B56: 1 | C56: 0 | D56: 0 | E56: 1 | F56: 1 | G56: 1 | H56: 0 | I56: 1 | J56: 0 | K56: 1 | L56: 0 | M56: 1 | N56: 0 | O56: 0 | P56: 1 | Q56: 0 | R56: 1 | S56: 1 | T56: 1 | W56: 5 | X56: 0 | Z56: 11 | AA56: 0
A57: 0 | B57: 0 | C57: 0 | D57: 0 | E57: 0 | F57: 0 | G57: 1 | H57: 1 | I57: 0 | J57: 1 | K57: 1 | L57: 1 | M57: 1 | N57: 1 | O57: 0 | P57: 1 | Q57: 1 | R57: 1 | S57: 0 | T57: 0 | W57: 3 | X57: 0 | Z57: 10 | AA57: 0
A58: 0 | B58: 0 | C58: 0 | D58: 1 | E58: 0 | F58: 0 | G58: 0 | H58: 0 | I58: 1 | J58: 0 | K58: 1 | L58: 1 | M58: 0 | N58: 1 | O58: 1 | P58: 0 | Q58: 0 | R58: 0 | S58: 0 | T58: 0 | W58: 2 | X58: 0 | Z58: 6 | AA58: 0
A59: 0 | B59: 1 | C59: 1 | D59: 0 | E59: 0 | F59: 1 | G59: 1 | H59: 1 | I59: 0 | J59: 0 | K59: 0 | L59: 0 | M59: 0 | N59: 1 | O59: 0 | P59: 0 | Q59: 1 | R59: 1 | S59: 1 | T59: 1 | W59: 5 | X59: 0 | Z59: 10 | AA59: 0
A60: 0 | B60: 1 | C60: 0 | D60: 1 | E60: 0 | F60: 0 | G60: 0 | H60: 0 | I60: 0 | J60: 0 | K60: 1 | L60: 1 | M60: 1 | N60: 1 | O60: 0 | P60: 0 | Q60: 0 | R60: 1 | S60: 1 | T60: 0 | W60: 2 | X60: 0 | Z60: 8 | AA60: 0
A61: 1 | B61: 1 | C61: 0 | D61: 0 | E61: 0 | F61: 0 | G61: 0 | H61: 0 | I61: 1 | J61: 1 | K61: 0 | L61: 0 | M61: 1 | N61: 0 | O61: 0 | P61: 0 | Q61: 1 | R61: 0 | S61: 1 | T61: 1 | W61: 4 | X61: 0 | Z61: 8 | AA61: 0
A62: 1 | B62: 1 | C62: 0 | D62: 1 | E62: 1 | F62: 1 | G62: 0 | H62: 0 | I62: 0 | J62: 1 | K62: 0 | L62: 1 | M62: 0 | N62: 0 | O62: 0 | P62: 1 | Q62: 1 | R62: 1 | S62: 1 | T62: 1 | W62: 6 | X62: 1 | Z62: 12 | AA62: 1
A63: 0 | B63: 0 | C63: 0 | D63: 0 | E63: 0 | F63: 1 | G63: 0 | H63: 1 | I63: 0 | J63: 0 | K63: 1 | L63: 0 | M63: 0 | N63: 1 | O63: 0 | P63: =IF(RAND()<0.5,1,0) -> 1 | Q63: 0 | R63: 0 | S63: 1 | T63: 1 | W63: 2 | X63: 0 | Z63: 7 | AA63: 0
A64: =IF(RAND()<0.5,1,0) -> 0 | B64: 0 | C64: 0 | D64: 1 | E64: 0 | F64: 0 | G64: 1 | H64: 1 | I64: 0 | J64: 0 | K64: 1 | L64: 0 | M64: 0 | N64: 1 | O64: 1 | P64: 0 | Q64: 1 | R64: 1 | S64: 0 | T64: 0 | W64: 3 | X64: 0 | Z64: 8 | AA64: 0
A65: 1 | B65: 0 | C65: 0 | D65: 0 | E65: 1 | F65: 0 | G65: 1 | H65: 1 | I65: 1 | J65: 1 | K65: 1 | L65: 0 | M65: 1 | N65: 0 | O65: 1 | P65: 1 | Q65: 1 | R65: 0 | S65: 0 | T65: 1 | W65: 6 | X65: 1 | Z65: 12 | AA65: 1
A66: 1 | B66: 1 | C66: 0 | D66: 1 | E66: 0 | F66: 1 | G66: 1 | H66: 0 | I66: 1 | J66: 1 | K66: 1 | L66: 1 | M66: 0 | N66: 0 | O66: 0 | P66: 1 | Q66: 0 | R66: 1 | S66: 0 | T66: 1 | W66: 7 | X66: 1 | Z66: 12 | AA66: 1
A67: 0 | B67: 1 | C67: 1 | D67: 1 | E67: 1 | F67: 0 | G67: 1 | H67: 1 | I67: 1 | J67: 1 | K67: 1 | L67: 0 | M67: 0 | N67: 1 | O67: 0 | P67: 0 | Q67: 1 | R67: 0 | S67: 0 | T67: 1 | W67: =SUM(A67:J67) -> 8 | X67: =IF(W67>=6,1,0) -> 1 | Z67: =SUM(A67:T67) -> 12 | AA67: =IF(Z67>=12,1,0) -> 1
A68: 1 | B68: 1 | C68: 0 | D68: 0 | E68: 0 | F68: 1 | G68: 1 | H68: 0 | I68: 0 | J68: 0 | K68: 1 | L68: 0 | M68: 1 | N68: 0 | O68: 1 | P68: 0 | Q68: 0 | R68: 1 | S68: 1 | T68: 1 | W68: 4 | X68: 0 | Z68: 10 | AA68: 0
A69: 0 | B69: 0 | C69: 1 | D69: 0 | E69: 1 | F69: 0 | G69: 0 | H69: 1 | I69: 1 | J69: 0 | K69: 0 | L69: 1 | M69: 0 | N69: 0 | O69: 0 | P69: 1 | Q69: 1 | R69: 0 | S69: 0 | T69: 1 | W69: 4 | X69: 0 | Z69: 8 | AA69: 0
A70: 1 | B70: 0 | C70: 0 | D70: 1 | E70: 0 | F70: 0 | G70: 0 | H70: 1 | I70: 0 | J70: 1 | K70: 0 | L70: 1 | M70: 0 | N70: 1 | O70: 0 | P70: 0 | Q70: 0 | R70: 0 | S70: 0 | T70: 0 | W70: 4 | X70: 0 | Z70: 6 | AA70: 0
A71: 1 | B71: 0 | C71: 1 | D71: 1 | E71: 1 | F71: 1 | G71: 1 | H71: 1 | I71: 0 | J71: 1 | K71: 1 | L71: 0 | M71: 1 | N71: 0 | O71: 0 | P71: 0 | Q71: 1 | R71: 1 | S71: 0 | T71: 0 | W71: 8 | X71: 1 | Z71: 12 | AA71: 1
A72: 0 | B72: 0 | C72: 0 | D72: 0 | E72: 0 | F72: 1 | G72: 1 | H72: 0 | I72: 1 | J72: 1 | K72: 0 | L72: 0 | M72: 1 | N72: 0 | O72: 1 | P72: 0 | Q72: 1 | R72: 1 | S72: 0 | T72: 1 | W72: 4 | X72: 0 | Z72: 9 | AA72: 0
A73: 1 | B73: 0 | C73: 0 | D73: 1 | E73: 1 | F73: 1 | G73: 0 | H73: 0 | I73: 0 | J73: 0 | K73: 0 | L73: 0 | M73: 1 | N73: 1 | O73: 1 | P73: 1 | Q73: 1 | R73: 0 | S73: 0 | T73: 1 | W73: 4 | X73: 0 | Z73: 10 | AA73: 0
A74: 0 | B74: 0 | C74: 0 | D74: 1 | E74: 1 | F74: 1 | G74: 0 | H74: 0 | I74: 0 | J74: 1 | K74: 1 | L74: 0 | M74: 0 | N74: 1 | O74: 1 | P74: 1 | Q74: 0 | R74: 0 | S74: 1 | T74: 0 | W74: 4 | X74: 0 | Z74: 9 | AA74: 0
A75: 1 | B75: 0 | C75: 0 | D75: 1 | E75: 0 | F75: 1 | G75: 1 | H75: 0 | I75: 1 | J75: 1 | K75: 0 | L75: 0 | M75: 0 | N75: 1 | O75: 0 | P75: 0 | Q75: 1 | R75: 0 | S75: 0 | T75: 0 | W75: 6 | X75: 1 | Z75: 8 | AA75: 0
A76: 0 | B76: 1 | C76: 1 | D76: 1 | E76: 1 | F76: 1 | G76: 0 | H76: 1 | I76: 1 | J76: 1 | K76: 0 | L76: 0 | M76: 1 | N76: 1 | O76: 1 | P76: 1 | Q76: 1 | R76: 0 | S76: 1 | T76: 0 | W76: 8 | X76: 1 | Z76: 14 | AA76: 1
A77: 0 | B77: 1 | C77: 0 | D77: 0 | E77: 0 | F77: 1 | G77: 1 | H77: 0 | I77: 1 | J77: 1 | K77: 1 | L77: 0 | M77: 1 | N77: 1 | O77: 1 | P77: 0 | Q77: 0 | R77: 1 | S77: 1 | T77: 1 | W77: 5 | X77: 0 | Z77: 12 | AA77: 1
A78: 1 | B78: 1 | C78: 1 | D78: 0 | E78: 0 | F78: 1 | G78: 1 | H78: 0 | I78: 1 | J78: 1 | K78: 0 | L78: 0 | M78: 1 | N78: 1 | O78: 0 | P78: 1 | Q78: 1 | R78: 0 | S78: 0 | T78: 0 | W78: 7 | X78: 1 | Z78: 11 | AA78: 0
A79: 0 | B79: 1 | C79: 1 | D79: 1 | E79: 1 | F79: 0 | G79: 0 | H79: 1 | I79: 0 | J79: 1 | K79: 0 | L79: 1 | M79: 0 | N79: 0 | O79: 1 | P79: =IF(RAND()<0.5,1,0) -> 1 | Q79: 0 | R79: 1 | S79: 1 | T79: 0 | W79: 6 | X79: 1 | Z79: 11 | AA79: 0
A80: =IF(RAND()<0.5,1,0) -> 0 | B80: 1 | C80: 1 | D80: 0 | E80: 1 | F80: 1 | G80: 0 | H80: 1 | I80: 1 | J80: 0 | K80: 0 | L80: 0 | M80: 0 | N80: 1 | O80: 1 | P80: 0 | Q80: 0 | R80: 1 | S80: 0 | T80: 0 | W80: 6 | X80: 1 | Z80: 9 | AA80: 0
A81: 0 | B81: 0 | C81: 0 | D81: 0 | E81: 0 | F81: 1 | G81: 1 | H81: 0 | I81: 0 | J81: 1 | K81: 0 | L81: 1 | M81: 1 | N81: 1 | O81: 0 | P81: 1 | Q81: 1 | R81: 0 | S81: 1 | T81: 1 | W81: 3 | X81: 0 | Z81: 10 | AA81: 0
A82: 0 | B82: 0 | C82: 1 | D82: 0 | E82: 0 | F82: 1 | G82: 1 | H82: 0 | I82: 0 | J82: 1 | K82: 1 | L82: 0 | M82: 0 | N82: 1 | O82: 0 | P82: 0 | Q82: 0 | R82: 1 | S82: 1 | T82: 0 | W82: 4 | X82: 0 | Z82: 8 | AA82: 0
A83: 0 | B83: 0 | C83: 1 | D83: 0 | E83: 1 | F83: 1 | G83: 1 | H83: 0 | I83: 1 | J83: 1 | K83: 0 | L83: 1 | M83: 1 | N83: 0 | O83: 0 | P83: 1 | Q83: 0 | R83: 0 | S83: 0 | T83: 0 | W83: 6 | X83: 1 | Z83: 9 | AA83: 0
A84: 0 | B84: 1 | C84: 1 | D84: 0 | E84: 1 | F84: 1 | G84: 1 | H84: 1 | I84: 1 | J84: 0 | K84: 1 | L84: 0 | M84: 1 | N84: 0 | O84: 0 | P84: 0 | Q84: 1 | R84: 1 | S84: 0 | T84: 0 | W84: 7 | X84: 1 | Z84: 11 | AA84: 0
A85: 1 | B85: 0 | C85: 1 | D85: 0 | E85: 1 | F85: 1 | G85: 1 | H85: 1 | I85: 0 | J85: 1 | K85: 1 | L85: 1 | M85: 1 | N85: 1 | O85: 1 | P85: 0 | Q85: 0 | R85: 0 | S85: 1 | T85: 1 | W85: 7 | X85: 1 | Z85: 14 | AA85: 1
A86: 0 | B86: 0 | C86: 1 | D86: 1 | E86: 0 | F86: 1 | G86: 0 | H86: 0 | I86: 0 | J86: 1 | K86: 0 | L86: 0 | M86: 0 | N86: 1 | O86: 1 | P86: 0 | Q86: 1 | R86: 1 | S86: 1 | T86: 1 | W86: 4 | X86: 0 | Z86: 10 | AA86: 0
A87: 1 | B87: 0 | C87: 1 | D87: 0 | E87: 1 | F87: 0 | G87: 1 | H87: 0 | I87: 1 | J87: 1 | K87: 0 | L87: 0 | M87: 1 | N87: 1 | O87: 0 | P87: 1 | Q87: 1 | R87: 0 | S87: 0 | T87: 1 | W87: 6 | X87: 1 | Z87: 11 | AA87: 0
A88: 0 | B88: 1 | C88: 1 | D88: 1 | E88: 1 | F88: 1 | G88: 0 | H88: 1 | I88: 0 | J88: 0 | K88: 0 | L88: 1 | M88: 1 | N88: 0 | O88: 1 | P88: 0 | Q88: 0 | R88: 1 | S88: 1 | T88: 1 | W88: 6 | X88: 1 | Z88: 12 | AA88: 1
A89: 1 | B89: 1 | C89: 0 | D89: 1 | E89: 0 | F89: 0 | G89: 0 | H89: 1 | I89: 1 | J89: 0 | K89: 0 | L89: 0 | M89: 0 | N89: 1 | O89: 1 | P89: 1 | Q89: 0 | R89: 0 | S89: 1 | T89: 1 | W89: 5 | X89: 0 | Z89: 10 | AA89: 0
A90: 0 | B90: 1 | C90: 0 | D90: 0 | E90: 0 | F90: 1 | G90: 0 | H90: 0 | I90: 0 | J90: 0 | K90: 1 | L90: 0 | M90: 0 | N90: 0 | O90: 1 | P90: 0 | Q90: 0 | R90: 0 | S90: 1 | T90: 0 | W90: 2 | X90: 0 | Z90: 5 | AA90: 0
A91: 1 | B91: 1 | C91: 0 | D91: 0 | E91: 1 | F91: 0 | G91: 1 | H91: 0 | I91: 0 | J91: 1 | K91: 1 | L91: 0 | M91: 0 | N91: 1 | O91: 1 | P91: 1 | Q91: 0 | R91: 0 | S91: 1 | T91: 1 | W91: 5 | X91: 0 | Z91: 11 | AA91: 0
A92: 1 | B92: 0 | C92: 0 | D92: 0 | E92: 0 | F92: 1 | G92: 0 | H92: 0 | I92: 0 | J92: 1 | K92: 1 | L92: 0 | M92: 1 | N92: 1 | O92: 0 | P92: 0 | Q92: 1 | R92: 1 | S92: 0 | T92: 1 | W92: 3 | X92: 0 | Z92: 9 | AA92: 0
A93: 1 | B93: 0 | C93: 1 | D93: 1 | E93: 0 | F93: 1 | G93: 1 | H93: 0 | I93: 1 | J93: 0 | K93: 0 | L93: 0 | M93: 1 | N93: 0 | O93: 1 | P93: 0 | Q93: 1 | R93: 1 | S93: 1 | T93: 0 | W93: 6 | X93: 1 | Z93: 11 | AA93: 0
A94: 0 | B94: 1 | C94: 0 | D94: 1 | E94: 0 | F94: 1 | G94: 1 | H94: 1 | I94: 0 | J94: 1 | K94: 1 | L94: 1 | M94: 1 | N94: 1 | O94: 1 | P94: 0 | Q94: 0 | R94: 0 | S94: 0 | T94: 1 | W94: 6 | X94: 1 | Z94: 12 | AA94: 1
A95: 0 | B95: 0 | C95: 0 | D95: 1 | E95: 1 | F95: 0 | G95: 0 | H95: 0 | I95: 0 | J95: 0 | K95: 0 | L95: 1 | M95: 1 | N95: 1 | O95: 1 | P95: =IF(RAND()<0.5,1,0) -> 1 | Q95: 0 | R95: 0 | S95: 1 | T95: 0 | W95: 2 | X95: 0 | Z95: 8 | AA95: 0
A96: =IF(RAND()<0.5,1,0) -> 0 | B96: 0 | C96: 0 | D96: 1 | E96: 1 | F96: 1 | G96: 0 | H96: 0 | I96: 0 | J96: 1 | K96: 1 | L96: 1 | M96: 0 | N96: 1 | O96: 1 | P96: 1 | Q96: 0 | R96: 0 | S96: 1 | T96: 1 | W96: 4 | X96: 0 | Z96: 11 | AA96: 0
A97: 0 | B97: 1 | C97: 0 | D97: 1 | E97: 1 | F97: 0 | G97: 0 | H97: 1 | I97: 1 | J97: 1 | K97: 0 | L97: 1 | M97: 1 | N97: 1 | O97: 0 | P97: 1 | Q97: 1 | R97: 0 | S97: 0 | T97: 1 | W97: 6 | X97: 1 | Z97: 12 | AA97: 1
A98: 1 | B98: 0 | C98: 1 | D98: 1 | E98: 1 | F98: 1 | G98: 0 | H98: 0 | I98: 1 | J98: 0 | K98: 1 | L98: 1 | M98: 0 | N98: 1 | O98: 0 | P98: 1 | Q98: 1 | R98: 0 | S98: 0 | T98: 1 | W98: 6 | X98: 1 | Z98: 12 | AA98: 1
A99: 1 | B99: 0 | C99: 0 | D99: 1 | E99: 0 | F99: 1 | G99: 1 | H99: 0 | I99: 1 | J99: 1 | K99: 0 | L99: 1 | M99: 0 | N99: 1 | O99: 1 | P99: 1 | Q99: 1 | R99: 0 | S99: 0 | T99: 0 | W99: 6 | X99: 1 | Z99: 11 | AA99: 0
A100: 0 | B100: 0 | C100: 1 | D100: 0 | E100: 1 | F100: 0 | G100: 1 | H100: 0 | I100: 0 | J100: 0 | K100: 1 | L100: 0 | M100: 0 | N100: 1 | O100: 1 | P100: 1 | Q100: 1 | R100: 0 | S100: 1 | T100: 1 | W100: 3 | X100: 0 | Z100: 10 | AA100: 0
A101: 0 | B101: 0 | C101: 1 | D101: 1 | E101: 1 | F101: 1 | G101: 1 | H101: 0 | I101: 1 | J101: 1 | K101: 0 | L101: 0 | M101: 0 | N101: 0 | O101: 1 | P101: 0 | Q101: 0 | R101: 1 | S101: 1 | T101: 0 | W101: 7 | X101: 1 | Z101: 10 | AA101: 0
A102: 0 | B102: 0 | C102: 0 | D102: 0 | E102: 1 | F102: 0 | G102: 1 | H102: 0 | I102: 1 | J102: 1 | K102: 0 | L102: 0 | M102: 1 | N102: 0 | O102: 1 | P102: 1 | Q102: 1 | R102: 1 | S102: 1 | T102: 1 | W102: 4 | X102: 0 | Z102: 11 | AA102: 0
A103: 1 | B103: 1 | C103: 0 | D103: 0 | E103: 1 | F103: 1 | G103: 0 | H103: 1 | I103: 0 | J103: 1 | K103: 0 | L103: 0 | M103: 1 | N103: 0 | O103: 1 | P103: 1 | Q103: 1 | R103: 0 | S103: 0 | T103: 1 | W103: 6 | X103: 1 | Z103: 11 | AA103: 0
A104: 0 | B104: 1 | C104: 0 | D104: 0 | E104: 0 | F104: 0 | G104: 1 | H104: 1 | I104: 1 | J104: 1 | K104: 1 | L104: 1 | M104: 1 | N104: 1 | O104: 1 | P104: 0 | Q104: 0 | R104: 0 | S104: 0 | T104: 1 | W104: 5 | X104: 0 | Z104: 11 | AA104: 0
A105: 1 | B105: 0 | C105: 0 | D105: 0 | E105: 0 | F105: 1 | G105: 0 | H105: 1 | I105: 1 | J105: 1 | K105: 1 | L105: 0 | M105: 1 | N105: 1 | O105: 1 | P105: 0 | Q105: 1 | R105: 1 | S105: 1 | T105: 0 | W105: 5 | X105: 0 | Z105: 12 | AA105: 1
A106: 1 | B106: 0 | C106: 0 | D106: 0 | E106: 0 | F106: 1 | G106: 0 | H106: 1 | I106: 1 | J106: 1 | K106: 1 | L106: 1 | M106: 1 | N106: 0 | O106: 0 | P106: 0 | Q106: 0 | R106: 1 | S106: 1 | T106: 1 | W106: 5 | X106: 0 | Z106: 11 | AA106: 0
A107: 0 | B107: 0 | C107: 0 | D107: 0 | E107: 0 | F107: 0 | G107: 1 | H107: 1 | I107: 0 | J107: 0 | K107: 0 | L107: 1 | M107: 0 | N107: 0 | O107: 1 | P107: 1 | Q107: 1 | R107: 0 | S107: 0 | T107: 0 | W107: 2 | X107: 0 | Z107: 6 | AA107: 0
A108: 0 | B108: 1 | C108: 1 | D108: 1 | E108: 0 | F108: 1 | G108: 0 | H108: 0 | I108: 0 | J108: 0 | K108: 1 | L108: 0 | M108: 1 | N108: 0 | O108: 1 | P108: 0 | Q108: 1 | R108: 1 | S108: 1 | T108: 1 | W108: 4 | X108: 0 | Z108: 11 | AA108: 0
A109: 0 | B109: 0 | C109: 1 | D109: 1 | E109: 1 | F109: 0 | G109: 0 | H109: 1 | I109: 1 | J109: 0 | K109: 0 | L109: 1 | M109: 1 | N109: 1 | O109: 1 | P109: 0 | Q109: 1 | R109: 1 | S109: 1 | T109: 0 | W109: 5 | X109: 0 | Z109: 12 | AA109: 1
A110: 1 | B110: 0 | C110: 1 | D110: 1 | E110: 1 | F110: 0 | G110: 1 | H110: 0 | I110: 1 | J110: 1 | K110: 0 | L110: 0 | M110: 1 | N110: 0 | O110: 0 | P110: 1 | Q110: 1 | R110: 1 | S110: 1 | T110: 1 | W110: 7 | X110: 1 | Z110: 13 | AA110: 1
A111: 0 | B111: 1 | C111: 1 | D111: 0 | E111: 1 | F111: 1 | G111: 1 | H111: 1 | I111: 1 | J111: 1 | K111: 1 | L111: 0 | M111: 0 | N111: 1 | O111: 0 | P111: =IF(RAND()<0.5,1,0) -> 0 | Q111: 0 | R111: 0 | S111: 1 | T111: 1 | W111: 8 | X111: 1 | Z111: 12 | AA111: 1
A112: =IF(RAND()<0.5,1,0) -> 0 | B112: 0 | C112: 0 | D112: 1 | E112: 1 | F112: 1 | G112: 1 | H112: 0 | I112: 1 | J112: 0 | K112: 0 | L112: 1 | M112: 0 | N112: 0 | O112: 0 | P112: 1 | Q112: 0 | R112: 0 | S112: 0 | T112: 0 | W112: 5 | X112: 0 | Z112: 7 | AA112: 0
A113: 1 | B113: 1 | C113: 0 | D113: 0 | E113: 1 | F113: 0 | G113: 1 | H113: 1 | I113: 1 | J113: 1 | K113: 1 | L113: 1 | M113: 0 | N113: 0 | O113: 1 | P113: 0 | Q113: 0 | R113: 1 | S113: 1 | T113: 1 | W113: 7 | X113: 1 | Z113: 13 | AA113: 1
A114: 0 | B114: 1 | C114: 0 | D114: 0 | E114: 0 | F114: 1 | G114: 0 | H114: 1 | I114: 0 | J114: 0 | K114: 1 | L114: 0 | M114: 0 | N114: 0 | O114: 1 | P114: 0 | Q114: 0 | R114: 1 | S114: 1 | T114: 1 | W114: 3 | X114: 0 | Z114: 8 | AA114: 0
A115: 0 | B115: 1 | C115: 1 | D115: 1 | E115: 0 | F115: 1 | G115: 0 | H115: 0 | I115: 0 | J115: 1 | K115: 1 | L115: 1 | M115: 0 | N115: 0 | O115: 0 | P115: 1 | Q115: 0 | R115: 0 | S115: 0 | T115: 0 | W115: 5 | X115: 0 | Z115: 8 | AA115: 0
A116: 0 | B116: 0 | C116: 1 | D116: 0 | E116: 0 | F116: 1 | G116: 1 | H116: 1 | I116: 1 | J116: 1 | K116: 1 | L116: 1 | M116: 1 | N116: 0 | O116: 0 | P116: 0 | Q116: 1 | R116: 0 | S116: 0 | T116: 0 | W116: 6 | X116: 1 | Z116: 10 | AA116: 0
A117: 1 | B117: 1 | C117: 0 | D117: 0 | E117: 1 | F117: 1 | G117: 0 | H117: 1 | I117: 0 | J117: 0 | K117: 0 | L117: 1 | M117: 1 | N117: 0 | O117: 0 | P117: 1 | Q117: 0 | R117: 0 | S117: 0 | T117: 0 | W117: 5 | X117: 0 | Z117: 8 | AA117: 0
A118: 1 | B118: 0 | C118: 1 | D118: 0 | E118: 1 | F118: 1 | G118: 1 | H118: 0 | I118: 1 | J118: 1 | K118: 0 | L118: 1 | M118: 1 | N118: 0 | O118: 0 | P118: 1 | Q118: 1 | R118: 1 | S118: 1 | T118: 0 | W118: 7 | X118: 1 | Z118: 13 | AA118: 1
A119: 1 | B119: 1 | C119: 0 | D119: 0 | E119: 1 | F119: 1 | G119: 0 | H119: 1 | I119: 1 | J119: 0 | K119: 1 | L119: 1 | M119: 0 | N119: 0 | O119: 1 | P119: 1 | Q119: 1 | R119: 0 | S119: 1 | T119: 1 | W119: 6 | X119: 1 | Z119: 13 | AA119: 1
A120: 0 | B120: 1 | C120: 1 | D120: 1 | E120: 0 | F120: 0 | G120: 0 | H120: 0 | I120: 1 | J120: 0 | K120: 1 | L120: 0 | M120: 0 | N120: 1 | O120: 1 | P120: 1 | Q120: 0 | R120: 1 | S120: 1 | T120: 0 | W120: 4 | X120: 0 | Z120: 10 | AA120: 0
A121: 1 | B121: 1 | C121: 0 | D121: 1 | E121: 0 | F121: 0 | G121: 0 | H121: 1 | I121: 1 | J121: 1 | K121: 1 | L121: 1 | M121: 1 | N121: 1 | O121: 1 | P121: 1 | Q121: 0 | R121: 1 | S121: 1 | T121: 1 | W121: 6 | X121: 1 | Z121: 15 | AA121: 1
A122: 1 | B122: 1 | C122: 1 | D122: 0 | E122: 1 | F122: 0 | G122: 0 | H122: 1 | I122: 1 | J122: 0 | K122: 0 | L122: 1 | M122: 0 | N122: 0 | O122: 1 | P122: 1 | Q122: 1 | R122: 1 | S122: 1 | T122: 1 | W122: 6 | X122: 1 | Z122: 13 | AA122: 1
A123: 1 | B123: 1 | C123: 1 | D123: 0 | E123: 0 | F123: 1 | G123: 0 | H123: 0 | I123: 1 | J123: 1 | K123: 0 | L123: 1 | M123: 1 | N123: 1 | O123: 0 | P123: 0 | Q123: 1 | R123: 1 | S123: 1 | T123: 0 | W123: 6 | X123: 1 | Z123: 12 | AA123: 1
A124: 1 | B124: 1 | C124: 1 | D124: 1 | E124: 0 | F124: 1 | G124: 1 | H124: 0 | I124: 1 | J124: 0 | K124: 0 | L124: 1 | M124: 1 | N124: 1 | O124: 0 | P124: 1 | Q124: 1 | R124: 0 | S124: 1 | T124: 1 | W124: 7 | X124: 1 | Z124: 14 | AA124: 1
A125: 1 | B125: 0 | C125: 1 | D125: 0 | E125: 0 | F125: 1 | G125: 0 | H125: 1 | I125: 0 | J125: 1 | K125: 1 | L125: 0 | M125: 0 | N125: 0 | O125: 1 | P125: 1 | Q125: 0 | R125: 1 | S125: 1 | T125: 1 | W125: 5 | X125: 0 | Z125: 11 | AA125: 0
A126: 0 | B126: 1 | C126: 1 | D126: 0 | E126: 0 | F126: 0 | G126: 1 | H126: 1 | I126: 1 | J126: 1 | K126: 1 | L126: 0 | M126: 1 | N126: 1 | O126: 0 | P126: 1 | Q126: 0 | R126: 1 | S126: 0 | T126: 0 | W126: 6 | X126: 1 | Z126: 11 | AA126: 0
A127: 0 | B127: 0 | C127: 0 | D127: 1 | E127: 0 | F127: 1 | G127: 0 | H127: 1 | I127: 0 | J127: 1 | K127: 1 | L127: 1 | M127: 1 | N127: 1 | O127: 0 | P127: =IF(RAND()<0.5,1,0) -> 1 | Q127: 0 | R127: 0 | S127: 0 | T127: 0 | W127: 4 | X127: 0 | Z127: 9 | AA127: 0
A128: =IF(RAND()<0.5,1,0) -> 1 | B128: 0 | C128: 1 | D128: 0 | E128: 0 | F128: 1 | G128: 1 | H128: 0 | I128: 1 | J128: 0 | K128: 0 | L128: 1 | M128: 0 | N128: 1 | O128: 1 | P128: 0 | Q128: 1 | R128: 0 | S128: 0 | T128: 0 | W128: 5 | X128: 0 | Z128: 9 | AA128: 0
A129: 1 | B129: 1 | C129: 0 | D129: 1 | E129: 1 | F129: 0 | G129: 0 | H129: 1 | I129: 0 | J129: 1 | K129: 1 | L129: 0 | M129: 0 | N129: 0 | O129: 0 | P129: 0 | Q129: 1 | R129: 1 | S129: 1 | T129: 1 | W129: 6 | X129: 1 | Z129: 11 | AA129: 0
A130: 0 | B130: 0 | C130: 1 | D130: 1 | E130: 1 | F130: 0 | G130: 1 | H130: 0 | I130: 0 | J130: 1 | K130: 1 | L130: 0 | M130: 1 | N130: 1 | O130: 0 | P130: 0 | Q130: 0 | R130: 1 | S130: 0 | T130: 1 | W130: 5 | X130: 0 | Z130: 10 | AA130: 0
A131: 0 | B131: 1 | C131: 0 | D131: 0 | E131: 1 | F131: 1 | G131: 1 | H131: 1 | I131: 0 | J131: 0 | K131: 1 | L131: 0 | M131: 1 | N131: 0 | O131: 1 | P131: 1 | Q131: 0 | R131: 1 | S131: 0 | T131: 1 | W131: =SUM(A131:J131) -> 5 | X131: =IF(W131>=6,1,0) -> 0 | Z131: =SUM(A131:T131) -> 11 | AA131: =IF(Z131>=12,1,0) -> 0
A132: 1 | B132: 1 | C132: 1 | D132: 0 | E132: 1 | F132: 0 | G132: 1 | H132: 0 | I132: 0 | J132: 0 | K132: 1 | L132: 1 | M132: 0 | N132: 0 | O132: 0 | P132: 0 | Q132: 0 | R132: 1 | S132: 1 | T132: 1 | W132: 5 | X132: 0 | Z132: 10 | AA132: 0
A133: 1 | B133: 0 | C133: 0 | D133: 1 | E133: 1 | F133: 0 | G133: 1 | H133: 0 | I133: 1 | J133: 0 | K133: 1 | L133: 0 | M133: 0 | N133: 1 | O133: 0 | P133: 0 | Q133: 1 | R133: 1 | S133: 1 | T133: 1 | W133: 5 | X133: 0 | Z133: 11 | AA133: 0
A134: 1 | B134: 1 | C134: 1 | D134: 0 | E134: 0 | F134: 1 | G134: 0 | H134: 1 | I134: 1 | J134: 1 | K134: 0 | L134: 0 | M134: 1 | N134: 0 | O134: 1 | P134: 0 | Q134: 0 | R134: 1 | S134: 1 | T134: 1 | W134: 7 | X134: 1 | Z134: 12 | AA134: 1
A135: 0 | B135: 0 | C135: 1 | D135: 0 | E135: 1 | F135: 1 | G135: 1 | H135: 0 | I135: 0 | J135: 0 | K135: 0 | L135: 0 | M135: 1 | N135: 0 | O135: 0 | P135: 1 | Q135: 0 | R135: 1 | S135: 1 | T135: 1 | W135: 4 | X135: 0 | Z135: 9 | AA135: 0
A136: 0 | B136: 1 | C136: 0 | D136: 1 | E136: 0 | F136: 1 | G136: 1 | H136: 1 | I136: 0 | J136: 1 | K136: 0 | L136: 0 | M136: 0 | N136: 1 | O136: 0 | P136: 1 | Q136: 1 | R136: 1 | S136: 1 | T136: 0 | W136: 6 | X136: 1 | Z136: 11 | AA136: 0
A137: 1 | B137: 1 | C137: 1 | D137: 0 | E137: 0 | F137: 1 | G137: 1 | H137: 0 | I137: 0 | J137: 0 | K137: 0 | L137: 1 | M137: 1 | N137: 0 | O137: 0 | P137: 0 | Q137: 1 | R137: 0 | S137: 1 | T137: 0 | W137: 5 | X137: 0 | Z137: 9 | AA137: 0
A138: 1 | B138: 0 | C138: 0 | D138: 1 | E138: 0 | F138: 1 | G138: 1 | H138: 0 | I138: 0 | J138: 0 | K138: 0 | L138: 0 | M138: 1 | N138: 0 | O138: 1 | P138: 1 | Q138: 0 | R138: 1 | S138: 1 | T138: 0 | W138: 4 | X138: 0 | Z138: 9 | AA138: 0
A139: 1 | B139: 1 | C139: 1 | D139: 0 | E139: 1 | F139: 1 | G139: 1 | H139: 1 | I139: 0 | J139: 1 | K139: 1 | L139: 1 | M139: 0 | N139: 0 | O139: 0 | P139: 1 | Q139: 1 | R139: 1 | S139: 1 | T139: 1 | W139: 8 | X139: 1 | Z139: 15 | AA139: 1
A140: 0 | B140: 1 | C140: 1 | D140: 0 | E140: 1 | F140: 1 | G140: 1 | H140: 1 | I140: 1 | J140: 1 | K140: 1 | L140: 1 | M140: 1 | N140: 1 | O140: 0 | P140: 1 | Q140: 0 | R140: 1 | S140: 0 | T140: 1 | W140: 8 | X140: 1 | Z140: 15 | AA140: 1
A141: 0 | B141: 0 | C141: 0 | D141: 1 | E141: 0 | F141: 0 | G141: 0 | H141: 1 | I141: 1 | J141: 1 | K141: 0 | L141: 1 | M141: 0 | N141: 1 | O141: 0 | P141: 1 | Q141: 0 | R141: 0 | S141: 1 | T141: 0 | W141: 4 | X141: 0 | Z141: 8 | AA141: 0
A142: 1 | B142: 0 | C142: 1 | D142: 1 | E142: 1 | F142: 1 | G142: 1 | H142: 0 | I142: 0 | J142: 1 | K142: 1 | L142: 1 | M142: 0 | N142: 1 | O142: 0 | P142: 1 | Q142: 1 | R142: 1 | S142: 0 | T142: 0 | W142: 7 | X142: 1 | Z142: 13 | AA142: 1
A143: 1 | B143: 1 | C143: 0 | D143: 0 | E143: 0 | F143: 1 | G143: 1 | H143: 0 | I143: 0 | J143: 1 | K143: 1 | L143: 1 | M143: 0 | N143: 0 | O143: 0 | P143: =IF(RAND()<0.5,1,0) -> 1 | Q143: 0 | R143: 1 | S143: 1 | T143: 1 | W143: 5 | X143: 0 | Z143: 11 | AA143: 0
A144: =IF(RAND()<0.5,1,0) -> 0 | B144: 1 | C144: 0 | D144: 1 | E144: 0 | F144: 1 | G144: 1 | H144: 1 | I144: 1 | J144: 0 | K144: 0 | L144: 0 | M144: 0 | N144: 1 | O144: 0 | P144: 0 | Q144: 0 | R144: 1 | S144: 1 | T144: 0 | W144: 6 | X144: 1 | Z144: 9 | AA144: 0
A145: 0 | B145: 0 | C145: 1 | D145: 0 | E145: 0 | F145: 1 | G145: 0 | H145: 1 | I145: 0 | J145: 1 | K145: 1 | L145: 1 | M145: 0 | N145: 0 | O145: 1 | P145: 1 | Q145: 1 | R145: 1 | S145: 0 | T145: 0 | W145: 4 | X145: 0 | Z145: 10 | AA145: 0
A146: 0 | B146: 0 | C146: 0 | D146: 1 | E146: 1 | F146: 0 | G146: 1 | H146: 0 | I146: 0 | J146: 0 | K146: 0 | L146: 1 | M146: 0 | N146: 1 | O146: 0 | P146: 1 | Q146: 0 | R146: 0 | S146: 0 | T146: 0 | W146: 3 | X146: 0 | Z146: 6 | AA146: 0
A147: 1 | B147: 1 | C147: 0 | D147: 0 | E147: 1 | F147: 0 | G147: 0 | H147: 1 | I147: 0 | J147: 1 | K147: 1 | L147: 0 | M147: 1 | N147: 1 | O147: 0 | P147: 1 | Q147: 1 | R147: 1 | S147: 1 | T147: 1 | W147: 5 | X147: 0 | Z147: 13 | AA147: 1
A148: 1 | B148: 1 | C148: 1 | D148: 0 | E148: 1 | F148: 1 | G148: 1 | H148: 1 | I148: 1 | J148: 1 | K148: 0 | L148: 0 | M148: 0 | N148: 0 | O148: 1 | P148: 1 | Q148: 0 | R148: 1 | S148: 1 | T148: 0 | W148: 9 | X148: 1 | Z148: 13 | AA148: 1
A149: 0 | B149: 0 | C149: 1 | D149: 0 | E149: 0 | F149: 1 | G149: 0 | H149: 1 | I149: 0 | J149: 0 | K149: 0 | L149: 1 | M149: 0 | N149: 1 | O149: 1 | P149: 1 | Q149: 0 | R149: 1 | S149: 0 | T149: 0 | W149: 3 | X149: 0 | Z149: 8 | AA149: 0
A150: 1 | B150: 0 | C150: 0 | D150: 1 | E150: 0 | F150: 1 | G150: 0 | H150: 0 | I150: 1 | J150: 1 | K150: 1 | L150: 0 | M150: 1 | N150: 0 | O150: 1 | P150: 0 | Q150: 1 | R150: 0 | S150: 1 | T150: 0 | W150: 5 | X150: 0 | Z150: 10 | AA150: 0
A151: 1 | B151: 0 | C151: 0 | D151: 0 | E151: 0 | F151: 0 | G151: 0 | H151: 0 | I151: 0 | J151: 0 | K151: 0 | L151: 0 | M151: 1 | N151: 0 | O151: 1 | P151: 1 | Q151: 1 | R151: 1 | S151: 1 | T151: 0 | W151: 1 | X151: 0 | Z151: 7 | AA151: 0
A152: 1 | B152: 0 | C152: 1 | D152: 1 | E152: 1 | F152: 1 | G152: 1 | H152: 1 | I152: 1 | J152: 1 | K152: 1 | L152: 0 | M152: 1 | N152: 1 | O152: 0 | P152: 1 | Q152: 0 | R152: 1 | S152: 1 | T152: 0 | W152: 9 | X152: 1 | Z152: 15 | AA152: 1
A153: 0 | B153: 1 | C153: 0 | D153: 0 | E153: 0 | F153: 0 | G153: 1 | H153: 0 | I153: 0 | J153: 1 | K153: 0 | L153: 1 | M153: 0 | N153: 1 | O153: 0 | P153: 1 | Q153: 0 | R153: 0 | S153: 0 | T153: 1 | W153: 3 | X153: 0 | Z153: 7 | AA153: 0
A154: 1 | B154: 0 | C154: 0 | D154: 0 | E154: 1 | F154: 0 | G154: 1 | H154: 1 | I154: 1 | J154: 1 | K154: 0 | L154: 1 | M154: 0 | N154: 0 | O154: 1 | P154: 1 | Q154: 1 | R154: 0 | S154: 1 | T154: 1 | W154: 6 | X154: 1 | Z154: 12 | AA154: 1
A155: 0 | B155: 0 | C155: 0 | D155: 0 | E155: 1 | F155: 0 | G155: 0 | H155: 0 | I155: 1 | J155: 0 | K155: 0 | L155: 0 | M155: 1 | N155: 1 | O155: 1 | P155: 0 | Q155: 0 | R155: 1 | S155: 1 | T155: 1 | W155: 2 | X155: 0 | Z155: 8 | AA155: 0
A156: 0 | B156: 1 | C156: 1 | D156: 0 | E156: 1 | F156: 1 | G156: 1 | H156: 0 | I156: 1 | J156: 0 | K156: 1 | L156: 0 | M156: 1 | N156: 0 | O156: 0 | P156: 0 | Q156: 0 | R156: 0 | S156: 1 | T156: 0 | W156: 6 | X156: 1 | Z156: 9 | AA156: 0
A157: 0 | B157: 1 | C157: 1 | D157: 1 | E157: 0 | F157: 1 | G157: 1 | H157: 0 | I157: 1 | J157: 1 | K157: 0 | L157: 0 | M157: 0 | N157: 1 | O157: 0 | P157: 1 | Q157: 0 | R157: 0 | S157: 0 | T157: 0 | W157: 7 | X157: 1 | Z157: 9 | AA157: 0
A158: 1 | B158: 1 | C158: 1 | D158: 1 | E158: 1 | F158: 0 | G158: 0 | H158: 0 | I158: 1 | J158: 0 | K158: 0 | L158: 1 | M158: 1 | N158: 1 | O158: 0 | P158: 1 | Q158: 0 | R158: 0 | S158: 1 | T158: 0 | W158: 6 | X158: 1 | Z158: 11 | AA158: 0
A159: 0 | B159: 0 | C159: 1 | D159: 1 | E159: 1 | F159: 1 | G159: 1 | H159: 1 | I159: 0 | J159: 0 | K159: 0 | L159: 0 | M159: 0 | N159: 1 | O159: 0 | P159: =IF(RAND()<0.5,1,0) -> 0 | Q159: 0 | R159: 1 | S159: 0 | T159: 0 | W159: 6 | X159: 1 | Z159: 8 | AA159: 0
A160: =IF(RAND()<0.5,1,0) -> 1 | B160: 0 | C160: 1 | D160: 1 | E160: 0 | F160: 0 | G160: 0 | H160: 0 | I160: 1 | J160: 0 | K160: 1 | L160: 0 | M160: 1 | N160: 0 | O160: 0 | P160: 0 | Q160: 0 | R160: 0 | S160: 0 | T160: 1 | W160: 4 | X160: 0 | Z160: 7 | AA160: 0
A161: 0 | B161: 0 | C161: 0 | D161: 1 | E161: 0 | F161: 0 | G161: 1 | H161: 1 | I161: 0 | J161: 1 | K161: 1 | L161: 0 | M161: 1 | N161: 0 | O161: 1 | P161: 1 | Q161: 0 | R161: 0 | S161: 0 | T161: 0 | W161: 4 | X161: 0 | Z161: 8 | AA161: 0
A162: 0 | B162: 1 | C162: 0 | D162: 1 | E162: 0 | F162: 1 | G162: 0 | H162: 0 | I162: 1 | J162: 0 | K162: 0 | L162: 0 | M162: 0 | N162: 1 | O162: 0 | P162: 0 | Q162: 1 | R162: 1 | S162: 0 | T162: 0 | W162: 4 | X162: 0 | Z162: 7 | AA162: 0
A163: 0 | B163: 1 | C163: 0 | D163: 0 | E163: 0 | F163: 0 | G163: 0 | H163: 1 | I163: 0 | J163: 0 | K163: 0 | L163: 1 | M163: 1 | N163: 1 | O163: 0 | P163: 1 | Q163: 0 | R163: 1 | S163: 1 | T163: 1 | W163: 2 | X163: 0 | Z163: 9 | AA163: 0
A164: 1 | B164: 1 | C164: 0 | D164: 1 | E164: 0 | F164: 1 | G164: 0 | H164: 1 | I164: 1 | J164: 0 | K164: 1 | L164: 0 | M164: 1 | N164: 1 | O164: 0 | P164: 1 | Q164: 1 | R164: 1 | S164: 1 | T164: 1 | W164: 6 | X164: 1 | Z164: 14 | AA164: 1
A165: 1 | B165: 1 | C165: 0 | D165: 0 | E165: 0 | F165: 0 | G165: 0 | H165: 0 | I165: 0 | J165: 0 | K165: 0 | L165: 0 | M165: 0 | N165: 1 | O165: 0 | P165: 0 | Q165: 1 | R165: 0 | S165: 0 | T165: 0 | W165: 2 | X165: 0 | Z165: 4 | AA165: 0
A166: 0 | B166: 0 | C166: 0 | D166: 0 | E166: 0 | F166: 1 | G166: 1 | H166: 1 | I166: 0 | J166: 1 | K166: 0 | L166: 0 | M166: 1 | N166: 0 | O166: 1 | P166: 0 | Q166: 0 | R166: 1 | S166: 1 | T166: 0 | W166: 4 | X166: 0 | Z166: 8 | AA166: 0
A167: 1 | B167: 1 | C167: 1 | D167: 1 | E167: 0 | F167: 1 | G167: 1 | H167: 1 | I167: 1 | J167: 0 | K167: 1 | L167: 1 | M167: 0 | N167: 0 | O167: 0 | P167: 0 | Q167: 0 | R167: 1 | S167: 0 | T167: 1 | W167: 8 | X167: 1 | Z167: 12 | AA167: 1
A168: 0 | B168: 0 | C168: 0 | D168: 0 | E168: 1 | F168: 0 | G168: 0 | H168: 0 | I168: 0 | J168: 1 | K168: 1 | L168: 1 | M168: 1 | N168: 1 | O168: 1 | P168: 0 | Q168: 0 | R168: 0 | S168: 1 | T168: 1 | W168: 2 | X168: 0 | Z168: 9 | AA168: 0
A169: 1 | B169: 1 | C169: 1 | D169: 0 | E169: 0 | F169: 1 | G169: 0 | H169: 1 | I169: 0 | J169: 1 | K169: 1 | L169: 1 | M169: 1 | N169: 0 | O169: 0 | P169: 0 | Q169: 0 | R169: 0 | S169: 0 | T169: 0 | W169: 6 | X169: 1 | Z169: 9 | AA169: 0
A170: 1 | B170: 0 | C170: 0 | D170: 0 | E170: 0 | F170: 1 | G170: 0 | H170: 0 | I170: 1 | J170: 1 | K170: 1 | L170: 1 | M170: 1 | N170: 0 | O170: 1 | P170: 1 | Q170: 1 | R170: 0 | S170: 0 | T170: 1 | W170: 4 | X170: 0 | Z170: 11 | AA170: 0
A171: 1 | B171: 1 | C171: 0 | D171: 1 | E171: 1 | F171: 1 | G171: 1 | H171: 1 | I171: 1 | J171: 1 | K171: 1 | L171: 1 | M171: 0 | N171: 1 | O171: 1 | P171: 1 | Q171: 1 | R171: 0 | S171: 0 | T171: 0 | W171: 9 | X171: 1 | Z171: 15 | AA171: 1
A172: 1 | B172: 1 | C172: 0 | D172: 1 | E172: 1 | F172: 0 | G172: 1 | H172: 0 | I172: 1 | J172: 0 | K172: 1 | L172: 0 | M172: 0 | N172: 0 | O172: 0 | P172: 1 | Q172: 0 | R172: 1 | S172: 1 | T172: 0 | W172: 6 | X172: 1 | Z172: 10 | AA172: 0
A173: 0 | B173: 0 | C173: 1 | D173: 1 | E173: 1 | F173: 1 | G173: 0 | H173: 1 | I173: 1 | J173: 0 | K173: 1 | L173: 0 | M173: 0 | N173: 0 | O173: 1 | P173: 1 | Q173: 1 | R173: 1 | S173: 1 | T173: 0 | W173: 6 | X173: 1 | Z173: 12 | AA173: 1
A174: 1 | B174: 0 | C174: 1 | D174: 1 | E174: 1 | F174: 0 | G174: 1 | H174: 0 | I174: 0 | J174: 1 | K174: 0 | L174: 1 | M174: 1 | N174: 1 | O174: 1 | P174: 0 | Q174: 1 | R174: 0 | S174: 1 | T174: 1 | W174: 6 | X174: 1 | Z174: 13 | AA174: 1
A175: 0 | B175: 1 | C175: 1 | D175: 1 | E175: 1 | F175: 1 | G175: 0 | H175: 0 | I175: 0 | J175: 0 | K175: 1 | L175: 0 | M175: 1 | N175: 0 | O175: 1 | P175: =IF(RAND()<0.5,1,0) -> 1 | Q175: 0 | R175: 0 | S175: 1 | T175: 1 | W175: 5 | X175: 0 | Z175: 11 | AA175: 0
A176: =IF(RAND()<0.5,1,0) -> 1 | B176: 1 | C176: 0 | D176: 0 | E176: 1 | F176: 0 | G176: 0 | H176: 1 | I176: 1 | J176: 0 | K176: 0 | L176: 1 | M176: 1 | N176: 1 | O176: 0 | P176: 0 | Q176: 0 | R176: 0 | S176: 0 | T176: 1 | W176: 5 | X176: 0 | Z176: 9 | AA176: 0
A177: 1 | B177: 0 | C177: 1 | D177: 0 | E177: 1 | F177: 1 | G177: 1 | H177: 0 | I177: 0 | J177: 1 | K177: 0 | L177: 1 | M177: 0 | N177: 0 | O177: 1 | P177: 1 | Q177: 0 | R177: 1 | S177: 0 | T177: 1 | W177: 6 | X177: 1 | Z177: 11 | AA177: 0
A178: 1 | B178: 1 | C178: 0 | D178: 0 | E178: 1 | F178: 0 | G178: 1 | H178: 0 | I178: 1 | J178: 1 | K178: 1 | L178: 0 | M178: 1 | N178: 1 | O178: 0 | P178: 0 | Q178: 1 | R178: 1 | S178: 1 | T178: 0 | W178: 6 | X178: 1 | Z178: 12 | AA178: 1
A179: 1 | B179: 0 | C179: 1 | D179: 1 | E179: 1 | F179: 0 | G179: 1 | H179: 0 | I179: 0 | J179: 1 | K179: 0 | L179: 0 | M179: 1 | N179: 1 | O179: 0 | P179: 1 | Q179: 1 | R179: 0 | S179: 0 | T179: 1 | W179: 6 | X179: 1 | Z179: 11 | AA179: 0
A180: 1 | B180: 0 | C180: 0 | D180: 0 | E180: 1 | F180: 1 | G180: 1 | H180: 1 | I180: 1 | J180: 1 | K180: 0 | L180: 1 | M180: 0 | N180: 0 | O180: 1 | P180: 1 | Q180: 1 | R180: 1 | S180: 1 | T180: 0 | W180: 7 | X180: 1 | Z180: 13 | AA180: 1
A181: 1 | B181: 1 | C181: 0 | D181: 1 | E181: 0 | F181: 1 | G181: 1 | H181: 0 | I181: 0 | J181: 0 | K181: 1 | L181: 0 | M181: 1 | N181: 1 | O181: 0 | P181: 0 | Q181: 0 | R181: 0 | S181: 0 | T181: 0 | W181: 5 | X181: 0 | Z181: 8 | AA181: 0
A182: 0 | B182: 0 | C182: 1 | D182: 1 | E182: 1 | F182: 1 | G182: 0 | H182: 1 | I182: 1 | J182: 1 | K182: 1 | L182: 0 | M182: 1 | N182: 0 | O182: 1 | P182: 1 | Q182: 1 | R182: 1 | S182: 1 | T182: 1 | W182: 7 | X182: 1 | Z182: 15 | AA182: 1
A183: 1 | B183: 1 | C183: 0 | D183: 0 | E183: 1 | F183: 0 | G183: 1 | H183: 0 | I183: 0 | J183: 0 | K183: 1 | L183: 1 | M183: 1 | N183: 1 | O183: 0 | P183: 1 | Q183: 1 | R183: 1 | S183: 0 | T183: 0 | W183: 4 | X183: 0 | Z183: 11 | AA183: 0
A184: 1 | B184: 1 | C184: 0 | D184: 0 | E184: 1 | F184: 1 | G184: 1 | H184: 0 | I184: 1 | J184: 1 | K184: 1 | L184: 1 | M184: 0 | N184: 1 | O184: 1 | P184: 1 | Q184: 0 | R184: 0 | S184: 0 | T184: 0 | W184: 7 | X184: 1 | Z184: 12 | AA184: 1
A185: 1 | B185: 1 | C185: 0 | D185: 0 | E185: 0 | F185: 0 | G185: 1 | H185: 0 | I185: 0 | J185: 1 | K185: 1 | L185: 0 | M185: 1 | N185: 0 | O185: 1 | P185: 0 | Q185: 1 | R185: 0 | S185: 0 | T185: 1 | W185: 4 | X185: 0 | Z185: 9 | AA185: 0
A186: 1 | B186: 0 | C186: 0 | D186: 0 | E186: 1 | F186: 1 | G186: 1 | H186: 1 | I186: 0 | J186: 1 | K186: 1 | L186: 1 | M186: 1 | N186: 0 | O186: 1 | P186: 0 | Q186: 0 | R186: 1 | S186: 0 | T186: 0 | W186: 6 | X186: 1 | Z186: 11 | AA186: 0
A187: 0 | B187: 0 | C187: 1 | D187: 1 | E187: 0 | F187: 0 | G187: 1 | H187: 0 | I187: 0 | J187: 1 | K187: 0 | L187: 0 | M187: 1 | N187: 0 | O187: 0 | P187: 0 | Q187: 0 | R187: 0 | S187: 1 | T187: 0 | W187: 4 | X187: 0 | Z187: 6 | AA187: 0
A188: 1 | B188: 1 | C188: 1 | D188: 0 | E188: 0 | F188: 0 | G188: 1 | H188: 0 | I188: 0 | J188: 0 | K188: 1 | L188: 1 | M188: 1 | N188: 0 | O188: 0 | P188: 1 | Q188: 0 | R188: 1 | S188: 0 | T188: 0 | W188: 4 | X188: 0 | Z188: 9 | AA188: 0
A189: 0 | B189: 0 | C189: 0 | D189: 0 | E189: 0 | F189: 0 | G189: 0 | H189: 0 | I189: 0 | J189: 1 | K189: 0 | L189: 0 | M189: 0 | N189: 0 | O189: 0 | P189: 0 | Q189: 1 | R189: 0 | S189: 0 | T189: 1 | W189: 1 | X189: 0 | Z189: 3 | AA189: 0
A190: 1 | B190: 0 | C190: 0 | D190: 0 | E190: 1 | F190: 0 | G190: 0 | H190: 1 | I190: 0 | J190: 0 | K190: 1 | L190: 1 | M190: 1 | N190: 0 | O190: 1 | P190: 1 | Q190: 1 | R190: 1 | S190: 0 | T190: 1 | W190: 3 | X190: 0 | Z190: 11 | AA190: 0
A191: 0 | B191: 1 | C191: 1 | D191: 1 | E191: 1 | F191: 1 | G191: 0 | H191: 1 | I191: 0 | J191: 1 | K191: 1 | L191: 0 | M191: 1 | N191: 1 | O191: 1 | P191: =IF(RAND()<0.5,1,0) -> 0 | Q191: 0 | R191: 1 | S191: 1 | T191: 0 | W191: 7 | X191: 1 | Z191: 13 | AA191: 1
A192: =IF(RAND()<0.5,1,0) -> 1 | B192: 0 | C192: 1 | D192: 1 | E192: 0 | F192: 1 | G192: 1 | H192: 1 | I192: 0 | J192: 0 | K192: 0 | L192: 0 | M192: 1 | N192: 0 | O192: 1 | P192: 1 | Q192: 0 | R192: 0 | S192: 0 | T192: 0 | W192: 6 | X192: 1 | Z192: 9 | AA192: 0
A193: 1 | B193: 1 | C193: 1 | D193: 1 | E193: 0 | F193: 0 | G193: 1 | H193: 1 | I193: 1 | J193: 1 | K193: 1 | L193: 1 | M193: 0 | N193: 0 | O193: 0 | P193: 0 | Q193: 1 | R193: 0 | S193: 1 | T193: 0 | W193: 8 | X193: 1 | Z193: 12 | AA193: 1
A194: 0 | B194: 0 | C194: 1 | D194: 0 | E194: 1 | F194: 0 | G194: 0 | H194: 1 | I194: 0 | J194: 0 | K194: 0 | L194: 1 | M194: 1 | N194: 1 | O194: 1 | P194: 1 | Q194: 0 | R194: 0 | S194: 0 | T194: 1 | W194: 3 | X194: 0 | Z194: 9 | AA194: 0
A195: 0 | B195: 1 | C195: 1 | D195: 0 | E195: 1 | F195: 1 | G195: 1 | H195: 1 | I195: 1 | J195: 0 | K195: 1 | L195: 1 | M195: 1 | N195: 0 | O195: 1 | P195: 1 | Q195: 0 | R195: 0 | S195: 1 | T195: 1 | W195: =SUM(A195:J195) -> 7 | X195: =IF(W195>=6,1,0) -> 1 | Z195: =SUM(A195:T195) -> 14 | AA195: =IF(Z195>=12,1,0) -> 1
A196: 0 | B196: 1 | C196: 1 | D196: 0 | E196: 1 | F196: 0 | G196: 0 | H196: 1 | I196: 0 | J196: 1 | K196: 0 | L196: 0 | M196: 0 | N196: 1 | O196: 0 | P196: 1 | Q196: 1 | R196: 0 | S196: 0 | T196: 0 | W196: 5 | X196: 0 | Z196: 8 | AA196: 0
A197: 1 | B197: 0 | C197: 0 | D197: 1 | E197: 0 | F197: 0 | G197: 1 | H197: 0 | I197: 1 | J197: 0 | K197: 0 | L197: 0 | M197: 1 | N197: 1 | O197: 1 | P197: 1 | Q197: 0 | R197: 1 | S197: 1 | T197: 0 | W197: 4 | X197: 0 | Z197: 10 | AA197: 0
A198: 0 | B198: 1 | C198: 0 | D198: 1 | E198: 0 | F198: 1 | G198: 0 | H198: 1 | I198: 0 | J198: 0 | K198: 0 | L198: 1 | M198: 1 | N198: 1 | O198: 0 | P198: 0 | Q198: 1 | R198: 1 | S198: 0 | T198: 0 | W198: 4 | X198: 0 | Z198: 9 | AA198: 0
A199: 0 | B199: 1 | C199: 0 | D199: 1 | E199: 1 | F199: 1 | G199: 1 | H199: 0 | I199: 1 | J199: 0 | K199: 0 | L199: 0 | M199: 1 | N199: 0 | O199: 0 | P199: 0 | Q199: 0 | R199: 1 | S199: 0 | T199: 0 | W199: 6 | X199: 1 | Z199: 8 | AA199: 0
A200: 1 | B200: 1 | C200: 0 | D200: 0 | E200: 0 | F200: 0 | G200: 0 | H200: 1 | I200: 0 | J200: 1 | K200: 0 | L200: 1 | M200: 0 | N200: 1 | O200: 0 | P200: 0 | Q200: 1 | R200: 0 | S200: 0 | T200: 1 | W200: 4 | X200: 0 | Z200: 8 | AA200: 0
... 801 more rows

Sheet problema dadi
O1: 46
A2: =INT(RAND()*6+1) -> 3 | B2: =INT(RAND()*6+1) -> 1 | C2: =INT(RAND()*6+1) -> 5 | D2: =INT(RAND()*6+1) -> 4 | E2: =INT(RAND()*6+1) -> 5 | F2: =INT(RAND()*6+1) -> 5 | G2: 5 | H2: 1 | I2: 4 | J2: 3 | L2: =SUM(A2:E2) -> 18 | M2: =IF(L2>=25,1,0) -> 0 | N2: =SUM(M:M) -> 30 | O2: =SUM(A2:J2) -> 36 | P2: =IF(O2>=O$1,1,0) -> 0 | Q2: =SUM(P:P) -> 21
A3: =INT(RAND()*6+1) -> 2 | B3: 4 | C3: 5 | D3: 4 | E3: 5 | F3: 1 | G3: 4 | H3: 5 | I3: 2 | J3: 5 | L3: =SUM(A3:E3) -> 20 | M3: =IF(L3>=25,1,0) -> 0 | O3: =SUM(A3:J3) -> 37 | P3: =IF(O3>=O$1,1,0) -> 0
A4: 1 | B4: 6 | C4: 1 | D4: 6 | E4: 4 | F4: 3 | G4: 6 | H4: 4 | I4: 5 | J4: 3 | L4: 18 | M4: 0 | O4: 39 | P4: 0
A5: 1 | B5: 5 | C5: 6 | D5: 1 | E5: 1 | F5: 3 | G5: 3 | H5: 2 | I5: 4 | J5: 2 | L5: 14 | M5: 0 | O5: 28 | P5: 0
A6: 1 | B6: 2 | C6: 5 | D6: 1 | E6: 6 | F6: 1 | G6: 5 | H6: 6 | I6: 3 | J6: 1 | L6: 15 | M6: 0 | O6: 31 | P6: 0
A7: 5 | B7: 5 | C7: 4 | D7: 1 | E7: 3 | F7: 4 | G7: 4 | H7: 5 | I7: 1 | J7: 2 | L7: 18 | M7: 0 | O7: 34 | P7: 0
A8: 6 | B8: 2 | C8: 4 | D8: 6 | E8: 1 | F8: 6 | G8: 5 | H8: 6 | I8: 5 | J8: 2 | L8: 19 | M8: 0 | O8: 43 | P8: 0
A9: 4 | B9: 4 | C9: 5 | D9: 3 | E9: 4 | F9: 5 | G9: 2 | H9: 2 | I9: 1 | J9: 1 | L9: 20 | M9: 0 | O9: 31 | P9: 0
A10: 6 | B10: 3 | C10: 3 | D10: 6 | E10: 1 | F10: 2 | G10: 5 | H10: 5 | I10: 3 | J10: 5 | L10: 19 | M10: 0 | O10: 39 | P10: 0
A11: 4 | B11: 1 | C11: 2 | D11: 3 | E11: 3 | F11: 4 | G11: 2 | H11: 4 | I11: 2 | J11: 5 | L11: 13 | M11: 0 | O11: 30 | P11: 0
A12: 3 | B12: 6 | C12: 4 | D12: 3 | E12: 3 | F12: 1 | G12: 2 | H12: 6 | I12: 2 | J12: 4 | L12: 19 | M12: 0 | O12: 34 | P12: 0
A13: 2 | B13: 6 | C13: 5 | D13: 2 | E13: 4 | F13: 5 | G13: 6 | H13: 5 | I13: 5 | J13: 4 | L13: 19 | M13: 0 | O13: 44 | P13: 0
A14: 2 | B14: 5 | C14: 5 | D14: 1 | E14: 2 | F14: 1 | G14: 1 | H14: 2 | I14: 4 | J14: 2 | L14: 15 | M14: 0 | O14: 25 | P14: 0
A15: 6 | B15: 1 | C15: 6 | D15: 1 | E15: 4 | F15: 5 | G15: 3 | H15: 3 | I15: 6 | J15: 3 | L15: 18 | M15: 0 | O15: 38 | P15: 0
A16: 3 | B16: 4 | C16: 6 | D16: 3 | E16: 2 | F16: 4 | G16: 3 | H16: 5 | I16: 3 | J16: 2 | L16: 18 | M16: 0 | O16: 35 | P16: 0
A17: 4 | B17: 2 | C17: 3 | D17: 4 | E17: 4 | F17: 4 | G17: 3 | H17: 5 | I17: 2 | J17: 6 | L17: 17 | M17: 0 | O17: 37 | P17: 0
A18: 6 | B18: 2 | C18: 5 | D18: 4 | E18: 3 | F18: 6 | G18: 1 | H18: 1 | I18: 2 | J18: 6 | L18: 20 | M18: 0 | O18: 36 | P18: 0
A19: 2 | B19: 5 | C19: 2 | D19: 2 | E19: 6 | F19: 4 | G19: 4 | H19: 5 | I19: 5 | J19: 6 | L19: 17 | M19: 0 | O19: 41 | P19: 0
A20: 2 | B20: 4 | C20: 1 | D20: 4 | E20: 6 | F20: 1 | G20: 4 | H20: 1 | I20: 4 | J20: 5 | L20: 17 | M20: 0 | O20: 32 | P20: 0
A21: 3 | B21: 3 | C21: 3 | D21: 5 | E21: 1 | F21: 1 | G21: 5 | H21: 4 | I21: 3 | J21: 4 | L21: 15 | M21: 0 | O21: 32 | P21: 0
A22: 3 | B22: 6 | C22: 2 | D22: 5 | E22: 2 | F22: 1 | G22: 3 | H22: 4 | I22: 2 | J22: 3 | L22: 18 | M22: 0 | O22: 31 | P22: 0
A23: 2 | B23: 4 | C23: 1 | D23: 1 | E23: 1 | F23: 1 | G23: 4 | H23: 4 | I23: 2 | J23: 1 | L23: 9 | M23: 0 | O23: 21 | P23: 0
A24: 2 | B24: 5 | C24: 2 | D24: 1 | E24: 2 | F24: 3 | G24: 1 | H24: 2 | I24: 5 | J24: 4 | L24: 12 | M24: 0 | O24: 27 | P24: 0
A25: 5 | B25: 1 | C25: 1 | D25: 2 | E25: 1 | F25: 3 | G25: 5 | H25: 6 | I25: 3 | J25: 1 | L25: 10 | M25: 0 | O25: 28 | P25: 0
A26: 4 | B26: 1 | C26: 2 | D26: 4 | E26: 1 | F26: 5 | G26: 5 | H26: 6 | I26: 4 | J26: 2 | L26: 12 | M26: 0 | O26: 34 | P26: 0
A27: 5 | B27: 4 | C27: 1 | D27: 4 | E27: 5 | F27: 1 | G27: 5 | H27: 3 | I27: 6 | J27: 1 | L27: 19 | M27: 0 | O27: 35 | P27: 0
A28: 6 | B28: 2 | C28: 3 | D28: 1 | E28: 1 | F28: 6 | G28: 1 | H28: 6 | I28: 4 | J28: 6 | L28: 13 | M28: 0 | O28: 36 | P28: 0
A29: 1 | B29: 5 | C29: 2 | D29: 2 | E29: 3 | F29: 2 | G29: 3 | H29: 4 | I29: 5 | J29: 4 | L29: 13 | M29: 0 | O29: 31 | P29: 0
A30: 1 | B30: 1 | C30: 1 | D30: 6 | E30: 5 | F30: 4 | G30: 5 | H30: 1 | I30: 1 | J30: 1 | L30: 14 | M30: 0 | O30: 26 | P30: 0
A31: 2 | B31: 2 | C31: 5 | D31: 2 | E31: 5 | F31: 3 | G31: 3 | H31: 5 | I31: 4 | J31: 4 | L31: 16 | M31: 0 | O31: 35 | P31: 0
A32: 2 | B32: 4 | C32: 6 | D32: 2 | E32: 1 | F32: 5 | G32: 2 | H32: 3 | I32: 4 | J32: 6 | L32: 15 | M32: 0 | O32: 35 | P32: 0
A33: 1 | B33: 2 | C33: 4 | D33: 6 | E33: 3 | F33: 3 | G33: 3 | H33: 3 | I33: 1 | J33: 2 | L33: 16 | M33: 0 | O33: 28 | P33: 0
A34: 3 | B34: 4 | C34: 4 | D34: 3 | E34: 3 | F34: 5 | G34: 1 | H34: 3 | I34: 5 | J34: 1 | L34: 17 | M34: 0 | O34: 32 | P34: 0
A35: 4 | B35: 1 | C35: 3 | D35: 6 | E35: 5 | F35: 1 | G35: 4 | H35: 1 | I35: 5 | J35: 5 | L35: 19 | M35: 0 | O35: 35 | P35: 0
A36: =INT(RAND()*6+1) -> 5 | B36: 1 | C36: 2 | D36: 1 | E36: 6 | F36: 5 | G36: 1 | H36: 2 | I36: 2 | J36: 6 | L36: 15 | M36: 0 | O36: 31 | P36: 0
A37: 5 | B37: 1 | C37: 5 | D37: 2 | E37: 6 | F37: 4 | G37: 5 | H37: 2 | I37: 4 | J37: 4 | L37: 19 | M37: 0 | O37: 38 | P37: 0
A38: 4 | B38: 1 | C38: 3 | D38: 6 | E38: 4 | F38: 2 | G38: 3 | H38: 3 | I38: 4 | J38: 3 | L38: 18 | M38: 0 | O38: 33 | P38: 0
A39: 2 | B39: 2 | C39: 5 | D39: 1 | E39: 3 | F39: 5 | G39: 6 | H39: 6 | I39: 4 | J39: 3 | L39: 13 | M39: 0 | O39: 37 | P39: 0
A40: 3 | B40: 1 | C40: 3 | D40: 1 | E40: 6 | F40: 3 | G40: 5 | H40: 3 | I40: 2 | J40: 5 | L40: 14 | M40: 0 | O40: 32 | P40: 0
A41: 1 | B41: 5 | C41: 3 | D41: 4 | E41: 3 | F41: 2 | G41: 3 | H41: 2 | I41: 3 | J41: 5 | L41: 16 | M41: 0 | O41: 31 | P41: 0
A42: 2 | B42: 3 | C42: 1 | D42: 3 | E42: 2 | F42: 6 | G42: 2 | H42: 6 | I42: 1 | J42: 6 | L42: 11 | M42: 0 | O42: 32 | P42: 0
A43: 1 | B43: 5 | C43: 1 | D43: 2 | E43: 1 | F43: 5 | G43: 5 | H43: 1 | I43: 1 | J43: 3 | L43: 10 | M43: 0 | O43: 25 | P43: 0
A44: 5 | B44: 4 | C44: 1 | D44: 6 | E44: 1 | F44: 3 | G44: 1 | H44: 3 | I44: 4 | J44: 3 | L44: 17 | M44: 0 | O44: 31 | P44: 0
A45: 6 | B45: 5 | C45: 4 | D45: 1 | E45: 6 | F45: 2 | G45: 6 | H45: 2 | I45: 5 | J45: 3 | L45: 22 | M45: 0 | O45: 40 | P45: 0
A46: 2 | B46: 5 | C46: 2 | D46: 1 | E46: 2 | F46: 6 | G46: 4 | H46: 3 | I46: 5 | J46: 1 | L46: 12 | M46: 0 | O46: 31 | P46: 0
A47: 2 | B47: 2 | C47: 1 | D47: 5 | E47: 1 | F47: 2 | G47: 4 | H47: 4 | I47: 6 | J47: 5 | L47: 11 | M47: 0 | O47: 32 | P47: 0
A48: 6 | B48: 5 | C48: 3 | D48: 1 | E48: 5 | F48: 1 | G48: 4 | H48: 2 | I48: 1 | J48: 4 | L48: 20 | M48: 0 | O48: 32 | P48: 0
A49: 1 | B49: 4 | C49: 2 | D49: 6 | E49: 2 | F49: 1 | G49: 2 | H49: 2 | I49: 2 | J49: 4 | L49: 15 | M49: 0 | O49: 26 | P49: 0
A50: 5 | B50: 5 | C50: 3 | D50: 2 | E50: 5 | F50: 3 | G50: 4 | H50: 2 | I50: 2 | J50: 6 | L50: 20 | M50: 0 | O50: 37 | P50: 0
A51: 3 | B51: 1 | C51: 6 | D51: 6 | E51: 1 | F51: 1 | G51: 6 | H51: 4 | I51: 6 | J51: 3 | L51: 17 | M51: 0 | O51: 37 | P51: 0
A52: 6 | B52: 1 | C52: 2 | D52: 3 | E52: 4 | F52: 6 | G52: 3 | H52: 2 | I52: 2 | J52: 2 | L52: 16 | M52: 0 | O52: 31 | P52: 0
A53: 2 | B53: 4 | C53: 5 | D53: 6 | E53: 6 | F53: 3 | G53: 1 | H53: 5 | I53: 4 | J53: 3 | L53: 23 | M53: 0 | O53: 39 | P53: 0
A54: 4 | B54: 3 | C54: 4 | D54: 1 | E54: 2 | F54: 2 | G54: 3 | H54: 5 | I54: 5 | J54: 6 | L54: 14 | M54: 0 | O54: 35 | P54: 0
A55: 3 | B55: 3 | C55: 1 | D55: 1 | E55: 6 | F55: 2 | G55: 4 | H55: 5 | I55: 1 | J55: 4 | L55: 14 | M55: 0 | O55: 30 | P55: 0
A56: 2 | B56: 3 | C56: 5 | D56: 6 | E56: 6 | F56: 6 | G56: 5 | H56: 6 | I56: 3 | J56: 6 | L56: 22 | M56: 0 | O56: 48 | P56: 1
A57: 4 | B57: 1 | C57: 1 | D57: 6 | E57: 3 | F57: 6 | G57: 6 | H57: 6 | I57: 3 | J57: 1 | L57: 15 | M57: 0 | O57: 37 | P57: 0
A58: 3 | B58: 1 | C58: 4 | D58: 3 | E58: 2 | F58: 3 | G58: 5 | H58: 6 | I58: 3 | J58: 5 | L58: 13 | M58: 0 | O58: 35 | P58: 0
A59: 6 | B59: 5 | C59: 2 | D59: 1 | E59: 4 | F59: 4 | G59: 3 | H59: 1 | I59: 4 | J59: 6 | L59: 18 | M59: 0 | O59: 36 | P59: 0
A60: 4 | B60: 5 | C60: 4 | D60: 2 | E60: 3 | F60: 6 | G60: 4 | H60: 2 | I60: 6 | J60: 5 | L60: 18 | M60: 0 | O60: 41 | P60: 0
A61: 4 | B61: 3 | C61: 2 | D61: 1 | E61: 6 | F61: =INT(RAND()*6+1) -> 4 | G61: 5 | H61: 5 | I61: 4 | J61: 3 | L61: 16 | M61: 0 | O61: 37 | P61: 0
A62: =INT(RAND()*6+1) -> 2 | B62: 3 | C62: 2 | D62: 4 | E62: 6 | F62: 5 | G62: 5 | H62: 4 | I62: 3 | J62: 2 | L62: 17 | M62: 0 | O62: 36 | P62: 0
A63: 4 | B63: 3 | C63: 6 | D63: 1 | E63: 5 | F63: 6 | G63: 3 | H63: 4 | I63: 6 | J63: 3 | L63: 19 | M63: 0 | O63: 41 | P63: 0
A64: 4 | B64: 5 | C64: 4 | D64: 1 | E64: 5 | F64: 1 | G64: 2 | H64: 3 | I64: 4 | J64: 2 | L64: 19 | M64: 0 | O64: 31 | P64: 0
A65: 3 | B65: 3 | C65: 5 | D65: 3 | E65: 1 | F65: 1 | G65: 5 | H65: 5 | I65: 2 | J65: 5 | L65: 15 | M65: 0 | O65: 33 | P65: 0
A66: 3 | B66: 3 | C66: 3 | D66: 3 | E66: 3 | F66: 3 | G66: 6 | H66: 4 | I66: 3 | J66: 1 | L66: 15 | M66: 0 | O66: 32 | P66: 0
A67: 3 | B67: 3 | C67: 3 | D67: 5 | E67: 5 | F67: 2 | G67: 1 | H67: 5 | I67: 3 | J67: 5 | L67: =SUM(A67:E67) -> 19 | M67: =IF(L67>=25,1,0) -> 0 | O67: =SUM(A67:J67) -> 35 | P67: =IF(O67>=O$1,1,0) -> 0
A68: 1 | B68: 2 | C68: 4 | D68: 6 | E68: 1 | F68: 1 | G68: 2 | H68: 2 | I68: 6 | J68: 6 | L68: 14 | M68: 0 | O68: 31 | P68: 0
A69: 4 | B69: 3 | C69: 3 | D69: 1 | E69: 4 | F69: 4 | G69: 4 | H69: 6 | I69: 1 | J69: 1 | L69: 15 | M69: 0 | O69: 31 | P69: 0
A70: 2 | B70: 3 | C70: 3 | D70: 6 | E70: 3 | F70: 2 | G70: 4 | H70: 4 | I70: 2 | J70: 1 | L70: 17 | M70: 0 | O70: 30 | P70: 0
A71: 3 | B71: 5 | C71: 6 | D71: 2 | E71: 3 | F71: 6 | G71: 2 | H71: 3 | I71: 4 | J71: 6 | L71: 19 | M71: 0 | O71: 40 | P71: 0
A72: 1 | B72: 3 | C72: 3 | D72: 3 | E72: 5 | F72: 4 | G72: 2 | H72: 2 | I72: 4 | J72: 4 | L72: 15 | M72: 0 | O72: 31 | P72: 0
A73: 4 | B73: 1 | C73: 2 | D73: 6 | E73: 4 | F73: 1 | G73: 3 | H73: 1 | I73: 5 | J73: 4 | L73: 17 | M73: 0 | O73: 31 | P73: 0
A74: 6 | B74: 6 | C74: 5 | D74: 6 | E74: 3 | F74: 4 | G74: 2 | H74: 5 | I74: 5 | J74: 5 | L74: 26 | M74: 1 | O74: 47 | P74: 1
A75: 6 | B75: 3 | C75: 4 | D75: 1 | E75: 4 | F75: 6 | G75: 5 | H75: 3 | I75: 5 | J75: 4 | L75: 18 | M75: 0 | O75: 41 | P75: 0
A76: 3 | B76: 1 | C76: 5 | D76: 1 | E76: 5 | F76: 1 | G76: 1 | H76: 6 | I76: 4 | J76: 3 | L76: 15 | M76: 0 | O76: 30 | P76: 0
A77: 3 | B77: 1 | C77: 4 | D77: 1 | E77: 1 | F77: 1 | G77: 6 | H77: 1 | I77: 4 | J77: 2 | L77: 10 | M77: 0 | O77: 24 | P77: 0
A78: 1 | B78: 4 | C78: 2 | D78: 1 | E78: 6 | F78: 1 | G78: 5 | H78: 5 | I78: 4 | J78: 3 | L78: 14 | M78: 0 | O78: 32 | P78: 0
A79: 2 | B79: 1 | C79: 5 | D79: 5 | E79: 3 | F79: 3 | G79: 6 | H79: 2 | I79: 2 | J79: 6 | L79: 16 | M79: 0 | O79: 35 | P79: 0
A80: 4 | B80: 2 | C80: 3 | D80: 6 | E80: 1 | F80: 3 | G80: 6 | H80: 4 | I80: 3 | J80: 5 | L80: 16 | M80: 0 | O80: 37 | P80: 0
A81: 6 | B81: 3 | C81: 6 | D81: 2 | E81: 1 | F81: 5 | G81: 1 | H81: 5 | I81: 6 | J81: 5 | L81: 18 | M81: 0 | O81: 40 | P81: 0
A82: 5 | B82: 6 | C82: 4 | D82: 1 | E82: 5 | F82: 1 | G82: 4 | H82: 4 | I82: 5 | J82: 6 | L82: 21 | M82: 0 | O82: 41 | P82: 0
A83: 1 | B83: 1 | C83: 6 | D83: 3 | E83: 3 | F83: 1 | G83: 2 | H83: 4 | I83: 1 | J83: 5 | L83: 14 | M83: 0 | O83: 27 | P83: 0
A84: 6 | B84: 2 | C84: 1 | D84: 4 | E84: 1 | F84: 4 | G84: 2 | H84: 2 | I84: 2 | J84: 6 | L84: 14 | M84: 0 | O84: 30 | P84: 0
A85: 5 | B85: 4 | C85: 5 | D85: 5 | E85: 2 | F85: 5 | G85: 5 | H85: 6 | I85: 1 | J85: 2 | L85: 21 | M85: 0 | O85: 40 | P85: 0
A86: 5 | B86: 6 | C86: 4 | D86: 1 | E86: 5 | F86: 3 | G86: 2 | H86: 3 | I86: 4 | J86: 3 | L86: 21 | M86: 0 | O86: 36 | P86: 0
A87: 2 | B87: 2 | C87: 6 | D87: 5 | E87: 5 | F87: 3 | G87: 4 | H87: 2 | I87: 4 | J87: 4 | L87: 20 | M87: 0 | O87: 37 | P87: 0
A88: 1 | B88: 3 | C88: 5 | D88: 1 | E88: 4 | F88: 5 | G88: 3 | H88: 5 | I88: 1 | J88: 3 | L88: 14 | M88: 0 | O88: 31 | P88: 0
A89: 2 | B89: 1 | C89: 4 | D89: 4 | E89: 3 | F89: 5 | G89: 3 | H89: 6 | I89: 3 | J89: 1 | L89: 14 | M89: 0 | O89: 32 | P89: 0
A90: 6 | B90: 3 | C90: 4 | D90: 4 | E90: 4 | F90: 3 | G90: 5 | H90: 1 | I90: 6 | J90: 6 | L90: 21 | M90: 0 | O90: 42 | P90: 0
A91: 1 | B91: 3 | C91: 3 | D91: 5 | E91: 1 | F91: 2 | G91: 6 | H91: 4 | I91: 6 | J91: 2 | L91: 13 | M91: 0 | O91: 33 | P91: 0
A92: 1 | B92: 6 | C92: 6 | D92: 3 | E92: 6 | F92: 4 | G92: 2 | H92: 2 | I92: 2 | J92: 2 | L92: 22 | M92: 0 | O92: 34 | P92: 0
A93: 6 | B93: 6 | C93: 4 | D93: 5 | E93: 2 | F93: 5 | G93: 2 | H93: 1 | I93: 5 | J93: 4 | L93: 23 | M93: 0 | O93: 40 | P93: 0
A94: 2 | B94: 3 | C94: 1 | D94: 3 | E94: 1 | F94: 2 | G94: 3 | H94: 4 | I94: 2 | J94: 4 | L94: 10 | M94: 0 | O94: 25 | P94: 0
A95: 6 | B95: 3 | C95: 3 | D95: 4 | E95: 4 | F95: 2 | G95: 3 | H95: 3 | I95: 1 | J95: 4 | L95: 20 | M95: 0 | O95: 33 | P95: 0
A96: 4 | B96: 5 | C96: 3 | D96: 2 | E96: 6 | F96: 1 | G96: 5 | H96: 4 | I96: 3 | J96: 6 | L96: 20 | M96: 0 | O96: 39 | P96: 0
A97: 1 | B97: 6 | C97: 3 | D97: 4 | E97: 2 | F97: 3 | G97: 4 | H97: 4 | I97: 4 | J97: 2 | L97: 16 | M97: 0 | O97: 33 | P97: 0
A98: 3 | B98: 3 | C98: 2 | D98: 6 | E98: 6 | F98: 2 | G98: 2 | H98: 3 | I98: 5 | J98: 5 | L98: 20 | M98: 0 | O98: 37 | P98: 0
A99: 1 | B99: 3 | C99: 6 | D99: 5 | E99: 1 | F99: 3 | G99: 2 | H99: 6 | I99: 3 | J99: 4 | L99: 16 | M99: 0 | O99: 34 | P99: 0
A100: 5 | B100: 2 | C100: 5 | D100: 6 | E100: 5 | F100: 4 | G100: 3 | H100: 3 | I100: 1 | J100: 2 | L100: 23 | M100: 0 | O100: 36 | P100: 0
A101: 2 | B101: 1 | C101: 1 | D101: 6 | E101: 4 | F101: 3 | G101: 5 | H101: 4 | I101: 1 | J101: 2 | L101: 14 | M101: 0 | O101: 29 | P101: 0
A102: 6 | B102: 6 | C102: 6 | D102: 2 | E102: 4 | F102: 3 | G102: 4 | H102: 1 | I102: 5 | J102: 2 | L102: 24 | M102: 0 | O102: 39 | P102: 0
A103: 3 | B103: 5 | C103: 6 | D103: 2 | E103: 3 | F103: 1 | G103: 2 | H103: 1 | I103: 2 | J103: 1 | L103: 19 | M103: 0 | O103: 26 | P103: 0
A104: 6 | B104: 6 | C104: 1 | D104: 4 | E104: 2 | F104: 5 | G104: 3 | H104: 1 | I104: 6 | J104: 3 | L104: 19 | M104: 0 | O104: 37 | P104: 0
A105: 5 | B105: 3 | C105: 1 | D105: 2 | E105: 2 | F105: 3 | G105: 2 | H105: 5 | I105: 5 | J105: 3 | L105: 13 | M105: 0 | O105: 31 | P105: 0
A106: 3 | B106: 1 | C106: 5 | D106: 1 | E106: 3 | F106: 3 | G106: 3 | H106: 1 | I106: 6 | J106: 2 | L106: 13 | M106: 0 | O106: 28 | P106: 0
A107: 4 | B107: 1 | C107: 1 | D107: 2 | E107: 4 | F107: 2 | G107: 3 | H107: 3 | I107: 3 | J107: 3 | L107: 12 | M107: 0 | O107: 26 | P107: 0
A108: 1 | B108: 2 | C108: 3 | D108: 6 | E108: 2 | F108: 6 | G108: 2 | H108: 1 | I108: 6 | J108: 1 | L108: 14 | M108: 0 | O108: 30 | P108: 0
A109: 4 | B109: 1 | C109: 1 | D109: 1 | E109: 2 | F109: 6 | G109: 2 | H109: 6 | I109: 2 | J109: 4 | L109: 9 | M109: 0 | O109: 29 | P109: 0
A110: 2 | B110: 6 | C110: 3 | D110: 4 | E110: 5 | F110: 5 | G110: 5 | H110: 2 | I110: 2 | J110: 3 | L110: 20 | M110: 0 | O110: 37 | P110: 0
A111: 4 | B111: 1 | C111: 3 | D111: 6 | E111: 5 | F111: 2 | G111: 5 | H111: 1 | I111: 3 | J111: 2 | L111: 19 | M111: 0 | O111: 32 | P111: 0
A112: 6 | B112: 3 | C112: 5 | D112: 6 | E112: 4 | F112: =INT(RAND()*6+1) -> 5 | G112: 6 | H112: 4 | I112: 3 | J112: 1 | L112: 24 | M112: 0 | O112: 43 | P112: 0
A113: =INT(RAND()*6+1) -> 6 | B113: 3 | C113: 1 | D113: 2 | E113: 2 | F113: 5 | G113: 2 | H113: 2 | I113: 2 | J113: 1 | L113: 14 | M113: 0 | O113: 26 | P113: 0
A114: 5 | B114: 4 | C114: 3 | D114: 4 | E114: 5 | F114: 4 | G114: 1 | H114: 3 | I114: 4 | J114: 2 | L114: 21 | M114: 0 | O114: 35 | P114: 0
A115: 6 | B115: 6 | C115: 3 | D115: 3 | E115: 3 | F115: 3 | G115: 4 | H115: 4 | I115: 1 | J115: 2 | L115: 21 | M115: 0 | O115: 35 | P115: 0
A116: 1 | B116: 6 | C116: 3 | D116: 5 | E116: 6 | F116: 2 | G116: 3 | H116: 2 | I116: 5 | J116: 2 | L116: 21 | M116: 0 | O116: 35 | P116: 0
A117: 4 | B117: 2 | C117: 1 | D117: 5 | E117: 2 | F117: 2 | G117: 1 | H117: 3 | I117: 4 | J117: 4 | L117: 14 | M117: 0 | O117: 28 | P117: 0
A118: 5 | B118: 3 | C118: 4 | D118: 3 | E118: 6 | F118: 3 | G118: 1 | H118: 4 | I118: 1 | J118: 2 | L118: 21 | M118: 0 | O118: 32 | P118: 0
A119: 2 | B119: 2 | C119: 3 | D119: 4 | E119: 4 | F119: 2 | G119: 3 | H119: 1 | I119: 4 | J119: 4 | L119: 15 | M119: 0 | O119: 29 | P119: 0
A120: 6 | B120: 1 | C120: 1 | D120: 4 | E120: 1 | F120: 1 | G120: 5 | H120: 4 | I120: 1 | J120: 3 | L120: 13 | M120: 0 | O120: 27 | P120: 0
A121: 2 | B121: 3 | C121: 4 | D121: 1 | E121: 2 | F121: 6 | G121: 2 | H121: 4 | I121: 3 | J121: 2 | L121: 12 | M121: 0 | O121: 29 | P121: 0
A122: 4 | B122: 5 | C122: 2 | D122: 4 | E122: 1 | F122: 4 | G122: 3 | H122: 2 | I122: 2 | J122: 6 | L122: 16 | M122: 0 | O122: 33 | P122: 0
A123: 2 | B123: 3 | C123: 1 | D123: 1 | E123: 3 | F123: 1 | G123: 6 | H123: 1 | I123: 5 | J123: 6 | L123: 10 | M123: 0 | O123: 29 | P123: 0
A124: 1 | B124: 4 | C124: 4 | D124: 6 | E124: 6 | F124: 2 | G124: 6 | H124: 6 | I124: 6 | J124: 2 | L124: 21 | M124: 0 | O124: 43 | P124: 0
A125: 4 | B125: 6 | C125: 1 | D125: 6 | E125: 3 | F125: 3 | G125: 2 | H125: 3 | I125: 6 | J125: 6 | L125: 20 | M125: 0 | O125: 40 | P125: 0
A126: 1 | B126: 3 | C126: 3 | D126: 2 | E126: 2 | F126: 1 | G126: 5 | H126: 3 | I126: 4 | J126: 6 | L126: 11 | M126: 0 | O126: 30 | P126: 0
A127: 5 | B127: 6 | C127: 6 | D127: 6 | E127: 5 | F127: 4 | G127: 1 | H127: 5 | I127: 1 | J127: 1 | L127: 28 | M127: 1 | O127: 40 | P127: 0
A128: 1 | B128: 1 | C128: 3 | D128: 3 | E128: 5 | F128: 4 | G128: 1 | H128: 5 | I128: 2 | J128: 3 | L128: 13 | M128: 0 | O128: 28 | P128: 0
A129: 4 | B129: 6 | C129: 1 | D129: 3 | E129: 4 | F129: 5 | G129: 3 | H129: 3 | I129: 6 | J129: 4 | L129: 18 | M129: 0 | O129: 39 | P129: 0
A130: 5 | B130: 4 | C130: 1 | D130: 5 | E130: 6 | F130: 5 | G130: 5 | H130: 1 | I130: 6 | J130: 2 | L130: 21 | M130: 0 | O130: 40 | P130: 0
A131: 3 | B131: 3 | C131: 4 | D131: 6 | E131: 2 | F131: 4 | G131: 6 | H131: 5 | I131: 5 | J131: 3 | L131: =SUM(A131:E131) -> 18 | M131: =IF(L131>=25,1,0) -> 0 | O131: =SUM(A131:J131) -> 41 | P131: =IF(O131>=O$1,1,0) -> 0
A132: 2 | B132: 6 | C132: 5 | D132: 3 | E132: 6 | F132: 5 | G132: 2 | H132: 5 | I132: 6 | J132: 2 | L132: 22 | M132: 0 | O132: 42 | P132: 0
A133: 6 | B133: 6 | C133: 4 | D133: 6 | E133: 4 | F133: 3 | G133: 4 | H133: 4 | I133: 1 | J133: 3 | L133: 26 | M133: 1 | O133: 41 | P133: 0
A134: 2 | B134: 5 | C134: 5 | D134: 3 | E134: 4 | F134: 5 | G134: 1 | H134: 3 | I134: 4 | J134: 3 | L134: 19 | M134: 0 | O134: 35 | P134: 0
A135: 2 | B135: 2 | C135: 2 | D135: 1 | E135: 2 | F135: 3 | G135: 4 | H135: 1 | I135: 6 | J135: 4 | L135: 9 | M135: 0 | O135: 27 | P135: 0
A136: 5 | B136: 2 | C136: 4 | D136: 2 | E136: 3 | F136: 1 | G136: 3 | H136: 3 | I136: 1 | J136: 1 | L136: 16 | M136: 0 | O136: 25 | P136: 0
A137: 6 | B137: 6 | C137: 5 | D137: 4 | E137: 4 | F137: 4 | G137: 3 | H137: 2 | I137: 5 | J137: 1 | L137: 25 | M137: 1 | O137: 40 | P137: 0
A138: 5 | B138: 2 | C138: 5 | D138: 3 | E138: 3 | F138: 1 | G138: 1 | H138: 5 | I138: 1 | J138: 3 | L138: 18 | M138: 0 | O138: 29 | P138: 0
A139: 5 | B139: 1 | C139: 6 | D139: 5 | E139: 4 | F139: 6 | G139: 2 | H139: 5 | I139: 3 | J139: 3 | L139: 21 | M139: 0 | O139: 40 | P139: 0
A140: 2 | B140: 1 | C140: 1 | D140: 2 | E140: 3 | F140: 6 | G140: 2 | H140: 5 | I140: 5 | J140: 5 | L140: 9 | M140: 0 | O140: 32 | P140: 0
A141: 3 | B141: 1 | C141: 3 | D141: 6 | E141: 5 | F141: 3 | G141: 2 | H141: 3 | I141: 5 | J141: 4 | L141: 18 | M141: 0 | O141: 35 | P141: 0
A142: 4 | B142: 2 | C142: 6 | D142: 1 | E142: 4 | F142: 4 | G142: 4 | H142: 3 | I142: 1 | J142: 6 | L142: 17 | M142: 0 | O142: 35 | P142: 0
A143: 2 | B143: 3 | C143: 6 | D143: 3 | E143: 1 | F143: 3 | G143: 3 | H143: 4 | I143: 6 | J143: 3 | L143: 15 | M143: 0 | O143: 34 | P143: 0
A144: 5 | B144: 5 | C144: 6 | D144: 1 | E144: 2 | F144: 1 | G144: 6 | H144: 3 | I144: 2 | J144: 1 | L144: 19 | M144: 0 | O144: 32 | P144: 0
A145: 3 | B145: 6 | C145: 3 | D145: 4 | E145: 6 | F145: 2 | G145: 5 | H145: 5 | I145: 3 | J145: 3 | L145: 22 | M145: 0 | O145: 40 | P145: 0
A146: 4 | B146: 6 | C146: 2 | D146: 1 | E146: 3 | F146: 2 | G146: 3 | H146: 4 | I146: 1 | J146: 1 | L146: 16 | M146: 0 | O146: 27 | P146: 0
A147: 3 | B147: 5 | C147: 3 | D147: 6 | E147: 5 | F147: 5 | G147: 1 | H147: 6 | I147: 2 | J147: 3 | L147: 22 | M147: 0 | O147: 39 | P147: 0
A148: 6 | B148: 5 | C148: 6 | D148: 4 | E148: 4 | F148: 5 | G148: 5 | H148: 2 | I148: 2 | J148: 6 | L148: 25 | M148: 1 | O148: 45 | P148: 0
A149: 1 | B149: 2 | C149: 6 | D149: 5 | E149: 6 | F149: 4 | G149: 5 | H149: 6 | I149: 3 | J149: 6 | L149: 20 | M149: 0 | O149: 44 | P149: 0
A150: 4 | B150: 4 | C150: 1 | D150: 5 | E150: 6 | F150: 3 | G150: 6 | H150: 2 | I150: 1 | J150: 1 | L150: 20 | M150: 0 | O150: 33 | P150: 0
A151: 1 | B151: 1 | C151: 1 | D151: 6 | E151: 1 | F151: 1 | G151: 4 | H151: 6 | I151: 2 | J151: 1 | L151: 10 | M151: 0 | O151: 24 | P151: 0
A152: 3 | B152: 2 | C152: 5 | D152: 1 | E152: 5 | F152: 2 | G152: 3 | H152: 2 | I152: 5 | J152: 2 | L152: 16 | M152: 0 | O152: 30 | P152: 0
A153: 3 | B153: 2 | C153: 3 | D153: 1 | E153: 5 | F153: 2 | G153: 1 | H153: 3 | I153: 6 | J153: 5 | L153: 14 | M153: 0 | O153: 31 | P153: 0
A154: 6 | B154: 3 | C154: 1 | D154: 6 | E154: 3 | F154: 4 | G154: 1 | H154: 3 | I154: 4 | J154: 2 | L154: 19 | M154: 0 | O154: 33 | P154: 0
A155: 5 | B155: 1 | C155: 2 | D155: 2 | E155: 4 | F155: 6 | G155: 4 | H155: 3 | I155: 3 | J155: 3 | L155: 14 | M155: 0 | O155: 33 | P155: 0
A156: 2 | B156: 2 | C156: 4 | D156: 6 | E156: 3 | F156: 6 | G156: 1 | H156: 3 | I156: 3 | J156: 3 | L156: 17 | M156: 0 | O156: 33 | P156: 0
A157: 4 | B157: 2 | C157: 6 | D157: 3 | E157: 5 | F157: 2 | G157: 3 | H157: 1 | I157: 5 | J157: 2 | L157: 20 | M157: 0 | O157: 33 | P157: 0
A158: 3 | B158: 1 | C158: 1 | D158: 2 | E158: 5 | F158: 5 | G158: 4 | H158: 6 | I158: 2 | J158: 1 | L158: 12 | M158: 0 | O158: 30 | P158: 0
A159: 5 | B159: 1 | C159: 3 | D159: 2 | E159: 1 | F159: 4 | G159: 5 | H159: 5 | I159: 3 | J159: 1 | L159: 12 | M159: 0 | O159: 30 | P159: 0
A160: 4 | B160: 4 | C160: 2 | D160: 2 | E160: 2 | F160: 1 | G160: 6 | H160: 4 | I160: 6 | J160: 5 | L160: 14 | M160: 0 | O160: 36 | P160: 0
A161: 5 | B161: 2 | C161: 1 | D161: 4 | E161: 6 | F161: 6 | G161: 1 | H161: 1 | I161: 1 | J161: 6 | L161: 18 | M161: 0 | O161: 33 | P161: 0
A162: 2 | B162: 1 | C162: 2 | D162: 4 | E162: 5 | F162: 3 | G162: 3 | H162: 3 | I162: 1 | J162: 3 | L162: 14 | M162: 0 | O162: 27 | P162: 0
A163: 4 | B163: 6 | C163: 3 | D163: 1 | E163: 2 | F163: =INT(RAND()*6+1) -> 4 | G163: 1 | H163: 4 | I163: 6 | J163: 1 | L163: 16 | M163: 0 | O163: 32 | P163: 0
A164: =INT(RAND()*6+1) -> 4 | B164: 4 | C164: 3 | D164: 6 | E164: 5 | F164: 3 | G164: 2 | H164: 3 | I164: 1 | J164: 4 | L164: 22 | M164: 0 | O164: 35 | P164: 0
A165: 4 | B165: 1 | C165: 1 | D165: 3 | E165: 2 | F165: 4 | G165: 3 | H165: 4 | I165: 1 | J165: 6 | L165: 11 | M165: 0 | O165: 29 | P165: 0
A166: 1 | B166: 4 | C166: 2 | D166: 3 | E166: 5 | F166: 6 | G166: 1 | H166: 1 | I166: 1 | J166: 2 | L166: 15 | M166: 0 | O166: 26 | P166: 0
A167: 4 | B167: 5 | C167: 4 | D167: 5 | E167: 4 | F167: 6 | G167: 4 | H167: 4 | I167: 6 | J167: 3 | L167: 22 | M167: 0 | O167: 45 | P167: 0
A168: 6 | B168: 4 | C168: 1 | D168: 1 | E168: 4 | F168: 4 | G168: 2 | H168: 1 | I168: 3 | J168: 1 | L168: 16 | M168: 0 | O168: 27 | P168: 0
A169: 2 | B169: 2 | C169: 1 | D169: 2 | E169: 5 | F169: 5 | G169: 1 | H169: 1 | I169: 4 | J169: 5 | L169: 12 | M169: 0 | O169: 28 | P169: 0
A170: 6 | B170: 3 | C170: 1 | D170: 4 | E170: 6 | F170: 3 | G170: 4 | H170: 6 | I170: 3 | J170: 1 | L170: 20 | M170: 0 | O170: 37 | P170: 0
A171: 5 | B171: 6 | C171: 6 | D171: 4 | E171: 5 | F171: 3 | G171: 1 | H171: 3 | I171: 1 | J171: 6 | L171: 26 | M171: 1 | O171: 40 | P171: 0
A172: 5 | B172: 3 | C172: 1 | D172: 2 | E172: 6 | F172: 6 | G172: 1 | H172: 2 | I172: 2 | J172: 3 | L172: 17 | M172: 0 | O172: 31 | P172: 0
A173: 2 | B173: 5 | C173: 1 | D173: 4 | E173: 1 | F173: 2 | G173: 5 | H173: 2 | I173: 3 | J173: 2 | L173: 13 | M173: 0 | O173: 27 | P173: 0
A174: 6 | B174: 2 | C174: 2 | D174: 2 | E174: 2 | F174: 1 | G174: 5 | H174: 4 | I174: 2 | J174: 6 | L174: 14 | M174: 0 | O174: 32 | P174: 0
A175: 4 | B175: 3 | C175: 5 | D175: 3 | E175: 3 | F175: 3 | G175: 1 | H175: 1 | I175: 3 | J175: 2 | L175: 18 | M175: 0 | O175: 28 | P175: 0
A176: 1 | B176: 3 | C176: 2 | D176: 5 | E176: 1 | F176: 5 | G176: 1 | H176: 5 | I176: 1 | J176: 6 | L176: 12 | M176: 0 | O176: 30 | P176: 0
A177: 2 | B177: 3 | C177: 4 | D177: 6 | E177: 4 | F177: 1 | G177: 1 | H177: 3 | I177: 5 | J177: 4 | L177: 19 | M177: 0 | O177: 33 | P177: 0
A178: 3 | B178: 3 | C178: 5 | D178: 5 | E178: 2 | F178: 5 | G178: 2 | H178: 1 | I178: 6 | J178: 3 | L178: 18 | M178: 0 | O178: 35 | P178: 0
A179: 1 | B179: 5 | C179: 3 | D179: 2 | E179: 1 | F179: 3 | G179: 4 | H179: 4 | I179: 1 | J179: 6 | L179: 12 | M179: 0 | O179: 30 | P179: 0
A180: 6 | B180: 6 | C180: 5 | D180: 1 | E180: 1 | F180: 5 | G180: 3 | H180: 3 | I180: 4 | J180: 2 | L180: 19 | M180: 0 | O180: 36 | P180: 0
A181: 5 | B181: 6 | C181: 3 | D181: 5 | E181: 6 | F181: 6 | G181: 4 | H181: 2 | I181: 2 | J181: 4 | L181: 25 | M181: 1 | O181: 43 | P181: 0
A182: 6 | B182: 5 | C182: 3 | D182: 1 | E182: 5 | F182: 2 | G182: 4 | H182: 6 | I182: 2 | J182: 5 | L182: 20 | M182: 0 | O182: 39 | P182: 0
A183: 3 | B183: 6 | C183: 2 | D183: 2 | E183: 3 | F183: 6 | G183: 4 | H183: 6 | I183: 6 | J183: 5 | L183: 16 | M183: 0 | O183: 43 | P183: 0
A184: 1 | B184: 1 | C184: 1 | D184: 4 | E184: 2 | F184: 4 | G184: 4 | H184: 6 | I184: 3 | J184: 6 | L184: 9 | M184: 0 | O184: 32 | P184: 0
A185: 4 | B185: 6 | C185: 6 | D185: 2 | E185: 6 | F185: 1 | G185: 2 | H185: 1 | I185: 1 | J185: 1 | L185: 24 | M185: 0 | O185: 30 | P185: 0
A186: 5 | B186: 6 | C186: 5 | D186: 3 | E186: 1 | F186: 5 | G186: 5 | H186: 6 | I186: 5 | J186: 4 | L186: 20 | M186: 0 | O186: 45 | P186: 0
A187: 6 | B187: 5 | C187: 4 | D187: 1 | E187: 6 | F187: 1 | G187: 6 | H187: 3 | I187: 1 | J187: 5 | L187: 22 | M187: 0 | O187: 38 | P187: 0
A188: 3 | B188: 4 | C188: 3 | D188: 3 | E188: 2 | F188: 3 | G188: 5 | H188: 6 | I188: 4 | J188: 6 | L188: 15 | M188: 0 | O188: 39 | P188: 0
A189: 4 | B189: 2 | C189: 5 | D189: 5 | E189: 3 | F189: 4 | G189: 4 | H189: 1 | I189: 2 | J189: 3 | L189: 19 | M189: 0 | O189: 33 | P189: 0
A190: 1 | B190: 3 | C190: 5 | D190: 2 | E190: 5 | F190: 1 | G190: 2 | H190: 3 | I190: 5 | J190: 4 | L190: 16 | M190: 0 | O190: 31 | P190: 0
A191: 6 | B191: 1 | C191: 1 | D191: 1 | E191: 1 | F191: 2 | G191: 6 | H191: 6 | I191: 1 | J191: 4 | L191: 10 | M191: 0 | O191: 29 | P191: 0
A192: 6 | B192: 1 | C192: 3 | D192: 3 | E192: 1 | F192: 2 | G192: 1 | H192: 2 | I192: 6 | J192: 6 | L192: 14 | M192: 0 | O192: 31 | P192: 0
A193: 1 | B193: 1 | C193: 5 | D193: 3 | E193: 6 | F193: 1 | G193: 6 | H193: 3 | I193: 1 | J193: 4 | L193: 16 | M193: 0 | O193: 31 | P193: 0
A194: 3 | B194: 6 | C194: 2 | D194: 6 | E194: 5 | F194: 3 | G194: 2 | H194: 3 | I194: 4 | J194: 5 | L194: 22 | M194: 0 | O194: 39 | P194: 0
A195: 2 | B195: 1 | C195: 1 | D195: 6 | E195: 5 | F195: 5 | G195: 6 | H195: 2 | I195: 6 | J195: 1 | L195: =SUM(A195:E195) -> 15 | M195: =IF(L195>=25,1,0) -> 0 | O195: =SUM(A195:J195) -> 35 | P195: =IF(O195>=O$1,1,0) -> 0
A196: 2 | B196: 1 | C196: 5 | D196: 6 | E196: 1 | F196: 1 | G196: 5 | H196: 4 | I196: 6 | J196: 1 | L196: 15 | M196: 0 | O196: 32 | P196: 0
A197: 4 | B197: 4 | C197: 6 | D197: 6 | E197: 5 | F197: 2 | G197: 6 | H197: 6 | I197: 1 | J197: 5 | L197: 25 | M197: 1 | O197: 45 | P197: 0
A198: 1 | B198: 3 | C198: 6 | D198: 2 | E198: 2 | F198: 3 | G198: 5 | H198: 3 | I198: 5 | J198: 2 | L198: 14 | M198: 0 | O198: 32 | P198: 0
A199: 3 | B199: 4 | C199: 4 | D199: 6 | E199: 3 | F199: 2 | G199: 4 | H199: 1 | I199: 1 | J199: 1 | L199: 20 | M199: 0 | O199: 29 | P199: 0
A200: 1 | B200: 4 | C200: 6 | D200: 6 | E200: 4 | F200: 6 | G200: 4 | H200: 3 | I200: 5 | J200: 5 | L200: 21 | M200: 0 | O200: 44 | P200: 0
... 801 more rows

Sheet pi.greco
A1: =RAND() -> 0.9624201109 | B1: =RAND() -> 0.9352325588 | C1: =(A1-0.5)^2+(B1-0.5)^2 -> 0.4032597392 | D1: =1*(C1<0.5^2) -> 0 | E1: =1*(ABS(A1-B1)<0.25) -> 1 | G1: =SUM(D:D)/1000*4 -> 3.176 | J1: 479 | K1: 3.141386221
A2: =RAND() -> 0.6761576399 | B2: 0.3850029119 | C2: =(A2-0.5)^2+(B2-0.5)^2 -> 0.04425584435 | D2: =1*(C2<0.5^2) -> 1 | E2: =1*(ABS(A2-B2)<0.25) -> 0 | J2: =J1+1 -> 480 | K2: =(K1*J1+G1)/(J1+1) -> 3.141458333
A3: 0.8602248363 | B3: 0.7156827609 | C3: 0.1762809861 | D3: 1 | E3: 1
A4: 0.06795770668 | B4: 0.03981679042 | C4: 0.3984291296 | D4: 0 | E4: 1
A5: 0.7808384856 | B5: 0.1261008082 | C5: 0.2186708606 | D5: 1 | E5: 0
A6: 0.909106403 | B6: 0.3437185915 | C6: 0.1917919276 | D6: 1 | E6: 0
A7: 0.5045178032 | B7: 0.5991259661 | C7: 0.009846367699 | D7: 1 | E7: 1
A8: 0.5641767693 | B8: 0.8534752615 | C8: 0.1290634182 | D8: 1 | E8: 0
A9: 0.6059706385 | B9: 0.4655406461 | C9: 0.01241722329 | D9: 1 | E9: 1
A10: 0.1235108867 | B10: 0.9236472076 | C10: 0.3212210089 | D10: 0 | E10: 0
A11: 0.6517626955 | B11: 0.138652207 | C11: 0.1536041433 | D11: 1 | E11: 0
A12: 0.03939335625 | B12: 0.2113472143 | C12: 0.2954789109 | D12: 0 | E12: 1
A13: 0.9852351957 | B13: 0.06546066756 | C13: 0.4242776266 | D13: 0 | E13: 0
A14: 0.6612458359 | B14: 0.8254077651 | C14: 0.1318904332 | D14: 1 | E14: 1
A15: 0.5856191444 | B15: 0.3129250411 | C15: 0.04232767816 | D15: 1 | E15: 0
A16: 0.6106701882 | B16: 0.0569123178 | C16: 0.2085745847 | D16: 1 | E16: 0
A17: 0.2598271469 | B17: 0.04256126947 | C17: 0.2669331916 | D17: 0 | E17: 1
A18: 0.4427271455 | B18: 0.9988929498 | C18: 0.2521743552 | D18: 0 | E18: 0
A19: 0.7408765542 | B19: 0.04384322465 | C19: 0.2661005181 | D19: 0 | E19: 0
A20: 0.1776770182 | B20: 0.538242134 | C20: 0.1053545654 | D20: 1 | E20: 0
A21: 0.5555227404 | B21: 0.859426507 | C21: 0.1322701886 | D21: 1 | E21: 0
A22: 0.1683808168 | B22: 0.04460376205 | C22: 0.3173570162 | D22: 0 | E22: 1
A23: 0.5154309834 | B23: 0.1972657643 | C23: 0.09188613273 | D23: 1 | E23: 0
A24: 0.8278795621 | B24: 0.3746568856 | C24: 0.1232159036 | D24: 1 | E24: 0
A25: 0.06890110306 | B25: 0.8257851305 | C25: 0.2919822102 | D25: 0 | E25: 0
A26: 0.9680634651 | B26: 0.7588433376 | C26: 0.2860832808 | D26: 0 | E26: 1
A27: 0.006386718954 | B27: 0.1259860799 | C27: 0.3835404836 | D27: 0 | E27: 1
A28: 0.9782886193 | B28: 0.3810121134 | C28: 0.2429181205 | D28: 1 | E28: 0
A29: 0.8851392744 | B29: 0.2568483131 | C29: 0.2074550035 | D29: 1 | E29: 0
A30: 0.4529705064 | B30: 0.1143999083 | C30: 0.150899204 | D30: 1 | E30: 0
A31: 0.329208211 | B31: 0.6650901041 | C31: 0.05642457768 | D31: 1 | E31: 0
A32: 0.1205593323 | B32: 0.7148669484 | C32: 0.1901430258 | D32: 1 | E32: 0
A33: 0.5329132023 | B33: 0.7493127175 | C33: 0.06324010998 | D33: 1 | E33: 1
A34: 0.6682742139 | B34: 0.0697998221 | C34: 0.2133884041 | D34: 1 | E34: 0
A35: 0.09800737219 | B35: 0.1005797607 | C35: 0.3211346004 | D35: 0 | E35: 1
A36: 0.9508049407 | B36: 0.8584124704 | C36: 0.3316845935 | D36: 0 | E36: 1
A37: 0.4357267987 | B37: 0.6781284722 | C37: 0.03586079702 | D37: 1 | E37: 1
A38: 0.4118189473 | B38: 0.01294725272 | C38: 0.2449962767 | D38: 1 | E38: 0
A39: 0.5033263234 | B39: 0.5901172315 | C39: 0.008132179835 | D39: 1 | E39: 1
A40: 0.9403975073 | B40: 0.6411059703 | C40: 0.2138608593 | D40: 1 | E40: 0
A41: 0.6983612453 | B41: 0.3775266861 | C41: 0.05434689624 | D41: 1 | E41: 0
A42: 0.3549768291 | B42: 0.1693625183 | C42: 0.1303528644 | D42: 1 | E42: 1
A43: 0.6435047022 | B43: 0.7935104814 | C43: 0.1067420022 | D43: 1 | E43: 1
A44: 0.4081396386 | B44: 0.5920336202 | C44: 0.01690851326 | D44: 1 | E44: 1
A45: 0.560047276 | B45: 0.5315876222 | C45: 0.004603453232 | D45: 1 | E45: 1
A46: 0.8887433564 | B46: 0.3448460246 | C46: 0.1751941532 | D46: 1 | E46: 0
A47: 0.5865489888 | B47: 0.2002379627 | C47: 0.0973480065 | D47: 1 | E47: 0
A48: 0.3161233281 | B48: 0.4309745164 | C48: 0.03857514785 | D48: 1 | E48: 1
A49: 0.5850884702 | B49: 0.2536020194 | C49: 0.06795201262 | D49: 1 | E49: 0
A50: 0.8007229083 | B50: 0.8154361041 | C50: 0.1899342033 | D50: 1 | E50: 1
A51: 0.1820383049 | B51: 0.3488231163 | C51: 0.1239540897 | D51: 1 | E51: 1
A52: 0.6317695956 | B52: 0.116500387 | C52: 0.1644351795 | D52: 1 | E52: 0
A53: 0.2930220801 | B53: 0.6380266994 | C53: 0.06189122907 | D53: 1 | E53: 0
A54: 0.4245392552 | B54: 0.6660065324 | C54: 0.03325249281 | D54: 1 | E54: 1
A55: 0.5263873461 | B55: 0.4017046829 | C55: 0.0103582614 | D55: 1 | E55: 1
A56: 0.9058257825 | B56: 0.1803818998 | C56: 0.2668502957 | D56: 0 | E56: 0
A57: 0.9911851085 | B57: 0.7515733273 | C57: 0.3045519498 | D57: 0 | E57: 1
A58: 0.4259776532 | B58: 0.5671015121 | C58: 0.009981920762 | D58: 1 | E58: 1
A59: 0.008046301102 | B59: 0.0968333179 | C59: 0.4045618154 | D59: 0 | E59: 1
A60: 0.6269237777 | B60: 0.04601583507 | C60: 0.2222112674 | D60: 1 | E60: 0
A61: 0.5517545459 | B61: 0.9027528916 | C61: 0.1648884247 | D61: 1 | E61: 0
A62: 0.05038294893 | B62: 0.240393086 | C62: 0.2695512424 | D62: 0 | E62: 1
A63: 0.5943266018 | B63: 0.00699484236 | C63: 0.2519515933 | D63: 0 | E63: 0
A64: 0.3632972869 | B64: 0.7862082759 | C64: 0.100602809 | D64: 1 | E64: 0
A65: 0.02653355738 | B65: 0.2877869245 | C65: 0.2692048617 | D65: 0 | E65: 0
A66: =RAND() -> 0.9162198475 | B66: 0.3281141021 | C66: =(A66-0.5)^2+(B66-0.5)^2 -> 0.2027837234 | D66: =1*(C66<0.5^2) -> 1 | E66: =1*(ABS(A66-B66)<0.25) -> 0
A67: 0.8781260128 | B67: 0.2242268098 | C67: 0.219030134 | D67: 1 | E67: 0
A68: 0.8056077263 | B68: 0.7629438183 | C68: 0.1625355339 | D68: 1 | E68: 1
A69: 0.2259088298 | B69: 0.8560629569 | C69: 0.2019067988 | D69: 1 | E69: 0
A70: 0.6757159433 | B70: 0.05445397152 | C70: 0.2293873562 | D70: 1 | E70: 0
A71: 0.1516881945 | B71: 0.9796628562 | C71: 0.3513975695 | D71: 0 | E71: 0
A72: 0.7395094821 | B72: 0.7001222624 | C72: 0.09741371193 | D72: 1 | E72: 1
A73: 0.8977264005 | B73: 0.2888986539 | C73: 0.202750068 | D73: 1 | E73: 0
A74: 0.1751244049 | B74: 0.7247821049 | C74: 0.156071147 | D74: 1 | E74: 0
A75: 0.8518438353 | B75: 0.5262791162 | C75: 0.1244846764 | D75: 1 | E75: 0
A76: 0.935317582 | B76: 0.4213525694 | C76: 0.1956868155 | D76: 1 | E76: 0
A77: 0.01099485746 | B77: 0.7472387202 | C77: 0.3002530142 | D77: 0 | E77: 0
A78: 0.06270615994 | B78: 0.05213678619 | C78: 0.3918073608 | D78: 0 | E78: 1
A79: 0.4517948656 | B79: 0.5267201484 | C79: 0.003037701308 | D79: 1 | E79: 1
A80: 0.5851663159 | B80: 0.8288520424 | C80: 0.1153969672 | D80: 1 | E80: 1
A81: 0.06814687384 | B81: 0.5796964985 | C81: 0.1928486544 | D81: 1 | E81: 0
A82: 0.5007533619 | B82: 0.5615242607 | C82: 0.003785802213 | D82: 1 | E82: 1
A83: 0.6105658984 | B83: 0.4094280424 | C83: 0.02042809739 | D83: 1 | E83: 1
A84: 0.5690085935 | B84: 0.6040150464 | C84: 0.01558131586 | D84: 1 | E84: 1
A85: 0.02696761092 | B85: 0.6151454036 | C85: 0.2370181051 | D85: 1 | E85: 0
A86: 0.9110556088 | B86: 0.1237164394 | C86: 0.3105560314 | D86: 0 | E86: 0
A87: 0.6648579172 | B87: 0.922309859 | C87: 0.2055237499 | D87: 1 | E87: 0
A88: 0.1918336061 | B88: 0.5855897209 | C88: 0.1022921266 | D88: 1 | E88: 0
A89: 0.8692912651 | B89: 0.7996552187 | C89: 0.2261692886 | D89: 1 | E89: 1
A90: 0.7709210159 | B90: 0.6668549614 | C90: 0.101238775 | D90: 1 | E90: 1
A91: 0.9914490744 | B91: 0.625100702 | C91: 0.2571723784 | D91: 0 | E91: 0
A92: 0.6864258171 | B92: 0.3558658901 | C92: 0.05552922693 | D92: 1 | E92: 0
A93: 0.3045575615 | B93: 0.2921827809 | C93: 0.08138574334 | D93: 1 | E93: 1
A94: 0.3555316418 | B94: 0.4258885446 | C94: 0.02636361434 | D94: 1 | E94: 1
A95: 0.09063309393 | B95: 0.06292098032 | C95: 0.3586193332 | D95: 0 | E95: 1
A96: 0.03355836922 | B96: 0.4470830535 | C96: 0.2203679981 | D96: 1 | E96: 0
A97: 0.5121433385 | B97: 0.1794533938 | C97: 0.1028975874 | D97: 1 | E97: 0
A98: 0.5191546598 | B98: 0.4631649665 | C98: 0.001723720684 | D98: 1 | E98: 1
A99: 0.1544935305 | B99: 0.3861477582 | C99: 0.1323370534 | D99: 1 | E99: 1
A100: 0.1637659522 | B100: 0.6595938559 | C100: 0.1385235338 | D100: 1 | E100: 0
A101: 0.384274271 | B101: 0.2124064053 | C101: 0.09610252009 | D101: 1 | E101: 1
A102: 0.329498506 | B102: 0.9908167382 | C102: 0.2699718299 | D102: 0 | E102: 0
A103: 0.8182220707 | B103: 0.6240092973 | C103: 0.1166435921 | D103: 1 | E103: 1
A104: 0.7120804774 | B104: 0.7457495253 | C104: 0.1053709581 | D104: 1 | E104: 1
A105: 0.8498303243 | B105: 0.3482367265 | C105: 0.145413347 | D105: 1 | E105: 0
A106: 0.7759862702 | B106: 0.4987832692 | C106: 0.07616990177 | D106: 1 | E106: 0
A107: 0.09930110719 | B107: 0.8244643568 | C107: 0.2658367215 | D107: 0 | E107: 0
A108: 0.962123767 | B108: 0.5241728069 | C108: 0.2141427006 | D108: 1 | E108: 0
A109: 0.2223075857 | B109: 0.396276231 | C109: 0.08787169723 | D109: 1 | E109: 1
A110: 0.6923679918 | B110: 0.2904595488 | C110: 0.08091264495 | D110: 1 | E110: 0
A111: 0.05779350404 | B111: 0.4979830081 | C111: 0.1955506533 | D111: 1 | E111: 0
A112: 0.4855316531 | B112: 0.7616229949 | C112: 0.06865592451 | D112: 1 | E112: 0
A113: 0.5519744658 | B113: 0.8953696092 | C113: 0.159018473 | D113: 1 | E113: 0
A114: 0.002403994895 | B114: 0.559150239 | C114: 0.2511005351 | D114: 0 | E114: 0
A115: 0.337516897 | B115: 0.432401338 | C115: 0.03097033786 | D115: 1 | E115: 1
A116: 0.7995907823 | B116: 0.6700476494 | C116: 0.1186708399 | D116: 1 | E116: 1
A117: 0.8072927436 | B117: 0.5990964059 | C117: 0.1042489279 | D117: 1 | E117: 1
A118: 0.4723429299 | B118: 0.33654115 | C118: 0.02748370917 | D118: 1 | E118: 1
A119: 0.6373528144 | B119: 0.6093041415 | C119: 0.03081319098 | D119: 1 | E119: 1
A120: 0.9073448258 | B120: 0.8617036439 | C120: 0.2967593331 | D120: 0 | E120: 1
A121: 0.1595827548 | B121: 0.6273419048 | C121: 0.1320998615 | D121: 1 | E121: 0
A122: 0.1061974732 | B122: 0.05661818013 | C122: 0.3516678683 | D122: 0 | E122: 1
A123: 0.118095424 | B123: 0.4093522771 | C123: 0.1540681148 | D123: 1 | E123: 0
A124: 0.5015440048 | B124: 0.4619081544 | C124: 0.001453372655 | D124: 1 | E124: 1
A125: 0.1530931862 | B125: 0.2567977457 | C125: 0.179491674 | D125: 1 | E125: 1
A126: 0.120559978 | B126: 0.2397439529 | C126: 0.2117079404 | D126: 1 | E126: 1
A127: 0.4995787586 | B127: 0.5682065905 | C127: 0.004652316426 | D127: 1 | E127: 1
A128: 0.4645435356 | B128: 0.5673760779 | C128: 0.005796696741 | D128: 1 | E128: 1
A129: 0.7401305254 | B129: 0.005825462155 | C129: 0.3018711431 | D129: 0 | E129: 0
A130: =RAND() -> 0.09701731654 | B130: 0.9899929142 | C130: =(A130-0.5)^2+(B130-0.5)^2 -> 0.4024880992 | D130: =1*(C130<0.5^2) -> 0 | E130: =1*(ABS(A130-B130)<0.25) -> 0
A131: 0.3586085771 | B131: 0.9250404083 | C131: 0.2006508831 | D131: 1 | E131: 0
A132: 0.4486705506 | B132: 0.5478622985 | C132: 0.004925511991 | D132: 1 | E132: 1
A133: 0.05904226976 | B133: 0.3681043131 | C133: 0.2118401921 | D133: 1 | E133: 0
A134: 0.4811911582 | B134: 0.7514114215 | C134: 0.0635614754 | D134: 1 | E134: 0
A135: 0.7728491163 | B135: 0.9497738312 | C135: 0.2767431395 | D135: 0 | E135: 1
A136: 0.2012511616 | B136: 0.2011470225 | C136: 0.1785639706 | D136: 1 | E136: 1
A137: 0.4352322586 | B137: 0.4330852536 | C137: 0.008672443615 | D137: 1 | E137: 1
A138: 0.07305056828 | B138: 0.3098752481 | C138: 0.2184332385 | D138: 1 | E138: 1
A139: 0.673207544 | B139: 0.6318730605 | C139: 0.0473913574 | D139: 1 | E139: 1
A140: 0.8890818528 | B140: 0.9374735071 | C140: 0.3427677576 | D140: 0 | E140: 1
A141: 0.5490931373 | B141: 0.2644805842 | C141: 0.05787953136 | D141: 1 | E141: 0
A142: 0.379300935 | B142: 0.8455829275 | C142: 0.1339958241 | D142: 1 | E142: 0
A143: 0.4507832527 | B143: 0.822068261 | C143: 0.1061502529 | D143: 1 | E143: 0
A144: 0.1990591665 | B144: 0.9732924276 | C144: 0.3145711073 | D144: 0 | E144: 0
A145: 0.007909511408 | B145: 0.9868830058 | C145: 0.4792081103 | D145: 0 | E145: 0
A146: 0.08048674681 | B146: 0.9044342586 | C146: 0.3395584391 | D146: 0 | E146: 0
A147: 0.6685093479 | B147: 0.3615257401 | C147: 0.04757052099 | D147: 1 | E147: 0
A148: 0.7846299209 | B148: 0.1993636341 | C148: 0.1713964164 | D148: 1 | E148: 0
A149: 0.6030620909 | B149: 0.008276818975 | C149: 0.2524134813 | D149: 0 | E149: 0
A150: 0.5619269472 | B150: 0.5392588172 | C150: 0.005376201517 | D150: 1 | E150: 1
A151: 0.8946842094 | B151: 0.5786119111 | C151: 0.1619554577 | D151: 1 | E151: 0
A152: 0.1338920008 | B152: 0.854266698 | C152: 0.2595399604 | D152: 0 | E152: 0
A153: 0.4046920381 | B153: 0.6284227359 | C153: 0.0255760067 | D153: 1 | E153: 1
A154: 0.8779703855 | B154: 0.07682997564 | C154: 0.3219344819 | D154: 0 | E154: 0
A155: 0.6593662925 | B155: 0.1441124813 | C155: 0.1520535412 | D155: 1 | E155: 0
A156: 0.9384632889 | B156: 0.2785208442 | C156: 0.2413030722 | D156: 1 | E156: 0
A157: 0.1704677976 | B157: 0.4097118459 | C157: 0.1167434232 | D157: 1 | E157: 1
A158: 0.06666101254 | B158: 0.2542910327 | C158: 0.2481555747 | D158: 1 | E158: 1
A159: 0.02421534769 | B159: 0.7828763281 | C159: 0.3063900524 | D159: 0 | E159: 0
A160: 0.149488951 | B160: 0.7476743792 | C160: 0.1842005936 | D160: 1 | E160: 0
A161: 0.3949180644 | B161: 0.03346638223 | C161: 0.2286958297 | D161: 1 | E161: 0
A162: 0.007431282163 | B162: 0.03293575573 | C162: 0.4607729501 | D162: 0 | E162: 1
A163: 0.5639456139 | B163: 0.4160933746 | C163: 0.01112936331 | D163: 1 | E163: 1
A164: 0.3469940165 | B164: 0.3418426949 | C164: 0.04842456414 | D164: 1 | E164: 1
A165: 0.9156481168 | B165: 0.04685169568 | C165: 0.3781067427 | D165: 0 | E165: 0
A166: 0.2751719396 | B166: 0.8756162152 | C166: 0.1916351979 | D166: 1 | E166: 0
A167: 0.5335413032 | B167: 0.5244603031 | C167: 0.00172332545 | D167: 1 | E167: 1
A168: 0.1538690388 | B168: 0.103130676 | C168: 0.2773119026 | D168: 0 | E168: 1
A169: 0.2620851037 | B169: 0.6214811715 | C169: 0.0713611729 | D169: 1 | E169: 0
A170: 0.01143937968 | B170: 0.3610106878 | C170: 0.2580095086 | D170: 0 | E170: 0
A171: 0.4160857964 | B171: 0.2026218301 | C171: 0.09547536951 | D171: 1 | E171: 1
A172: 0.9838950868 | B172: 0.6646176781 | C172: 0.261253435 | D172: 0 | E172: 0
A173: 0.3538853091 | B173: 0.3875573269 | C173: 0.03399285762 | D173: 1 | E173: 1
A174: 0.9632315605 | B174: 0.230449513 | C174: 0.2872409437 | D174: 0 | E174: 0
A175: 0.3661301416 | B175: 0.6203336048 | C175: 0.03240131542 | D175: 1 | E175: 0
A176: 0.3693059044 | B176: 0.2507546983 | C176: 0.07920416706 | D176: 1 | E176: 1
A177: 0.03900440501 | B177: 0.453022364 | C177: 0.2147238369 | D177: 1 | E177: 0
A178: 0.09706266546 | B178: 0.07597223444 | C178: 0.3421580415 | D178: 0 | E178: 1
A179: 0.9682979589 | B179: 0.1114165199 | C179: 0.3703000994 | D179: 0 | E179: 0
A180: 0.3045727415 | B180: 0.7910302483 | C180: 0.1228904188 | D180: 1 | E180: 0
A181: 0.3167171654 | B181: 0.4148150067 | C181: 0.04084908053 | D181: 1 | E181: 1
A182: 0.521993357 | B182: 0.5341263612 | C182: 0.00164831628 | D182: 1 | E182: 1
A183: 0.8525406291 | B183: 0.3407032891 | C183: 0.1496603373 | D183: 1 | E183: 0
A184: 0.4721308169 | B184: 0.7289519672 | C184: 0.05319569466 | D184: 1 | E184: 0
A185: 0.6229870717 | B185: 0.9095390239 | C185: 0.1828480319 | D185: 1 | E185: 0
A186: 0.1524846423 | B186: 0.7739998547 | C186: 0.1958428442 | D186: 1 | E186: 0
A187: 0.02142116398 | B187: 0.4613526752 | C187: 0.230531318 | D187: 1 | E187: 0
A188: 0.9643579905 | B188: 0.2982688432 | C188: 0.2563238029 | D188: 0 | E188: 0
A189: 0.8690135763 | B189: 0.4277924129 | C189: 0.1413849551 | D189: 1 | E189: 0
A190: 0.5481594518 | B190: 0.1527532107 | C190: 0.1228996655 | D190: 1 | E190: 0
A191: 0.4741263379 | B191: 0.3777065479 | C191: 0.01562513482 | D191: 1 | E191: 1
A192: 0.7373682193 | B192: 0.5538873319 | C192: 0.05924751605 | D192: 1 | E192: 1
A193: 0.5595260318 | B193: 0.187699685 | C193: 0.1010748352 | D193: 1 | E193: 0
A194: =RAND() -> 0.03196155304 | B194: 0.07069288077 | C194: =(A194-0.5)^2+(B194-0.5)^2 -> 0.4033645905 | D194: =1*(C194<0.5^2) -> 0 | E194: =1*(ABS(A194-B194)<0.25) -> 1
A195: 0.5229441288 | B195: 0.8749118986 | C195: 0.1410853648 | D195: 1 | E195: 0
A196: 0.9006138162 | B196: 0.8614811495 | C196: 0.2911600511 | D196: 0 | E196: 1
A197: 0.6002379014 | B197: 0.5503519137 | C197: 0.01258295209 | D197: 1 | E197: 1
A198: 0.9670556618 | B198: 0.9986644448 | C198: 0.4668072197 | D198: 0 | E198: 1
A199: 0.3382039045 | B199: 0.8527723398 | C199: 0.1506263003 | D199: 1 | E199: 0
A200: 0.8231450035 | B200: 0.3554767664 | C200: 0.1253096583 | D200: 1 | E200: 0
... 800 more rows

Sheet code
A1: min | B1: 2 | G1: assegnazione clienti 4 file | M1: assegnazione clienti fila unica | S1: tempi attesa 4 file | T1: tempi attesa fila unica | V1: guadagno 4 file | W1: guadagno fila unica
A2: max | B2: 8 | H2: 1 | I2: 2 | J2: 3 | K2: 4 | N2: 1 | O2: 2 | P2: 3 | Q2: 4
C4: 1 | D4: =RAND()*($B$2-$B$1)+$B$1 -> 3.60956889 | E4: =D4/1440 -> 00:03:36.574 | G4: =MOD(C4-1,4)+1 -> 1 | H4: =IF($G4=H$2,$E4,"") -> 00:03:36.574 | M4: =G4 -> 1 | N4: =H4 -> 00:03:36.574 | O4: =I4 ->  | P4: =J4 ->  | Q4: =K4 ->  | S4: =SUM(INDEX($H$3:$K3,0,$G4)) -> 00:00:00 | T4: =SUM(INDEX($N$3:$Q3,0,$M4)) -> 00:00:00 | V4: =IF(T4>S4,T4-S4,"") ->  | W4: =IF(S4>T4,S4-T4,"") -> 
C5: =C4+1 -> 2 | D5: 4.054597076 | E5: =D5/1440 -> 00:04:03.276 | G5: =MOD(C5-1,4)+1 -> 2 | I5: 00:04:03.276 | M5: =G5 -> 2 | O5: 00:04:03.276 | S5: =SUM(INDEX($H$3:$K4,0,$G5)) -> 00:00:00 | T5: =SUM(INDEX($N$3:$Q4,0,$M5)) -> 00:00:00
C6: =C5+1 -> 3 | D6: 2.73395901 | E6: 00:02:44.038 | G6: 3 | J6: 00:02:44.038 | M6: 3 | P6: 00:02:44.038 | S6: =SUM(INDEX($H$3:$K5,0,$G6)) -> 00:00:00 | T6: =SUM(INDEX($N$3:$Q5,0,$M6)) -> 00:00:00
C7: 4 | D7: 7.969202537 | E7: 00:07:58.152 | G7: 4 | K7: 00:07:58.152 | M7: 4 | Q7: 00:07:58.152 | S7: =SUM(INDEX($H$3:$K6,0,$G7)) -> 00:00:00 | T7: =SUM(INDEX($N$3:$Q6,0,$M7)) -> 00:00:00
C8: 5 | D8: 7.92704219 | E8: 00:07:55.623 | G8: 1 | H8: 00:07:55.623 | M8: =1*(N8<>"")+2*(O8<>"")+3*(P8<>"")+4*(Q8<>"") -> 3 | N8: =IF(SUM(N$4:N7)>MIN(SUM($N$4:$N7),SUM($O$4:$O7),SUM($P$4:$P7),SUM($Q$4:$Q7)),"",$E8) ->  | O8: =IF(SUM(O$4:O7)>MIN(SUM($N$4:$N7),SUM($O$4:$O7),SUM($P$4:$P7),SUM($Q$4:$Q7)),"",$E8) ->  | P8: =IF(SUM(P$4:P7)>MIN(SUM($N$4:$N7),SUM($O$4:$O7),SUM($P$4:$P7),SUM($Q$4:$Q7)),"",$E8) -> 00:07:55.623 | Q8: =IF(SUM(Q$4:Q7)>MIN(SUM($N$4:$N7),SUM($O$4:$O7),SUM($P$4:$P7),SUM($Q$4:$Q7)),"",$E8) ->  | S8: =SUM(INDEX($H$3:$K7,0,$G8)) -> 00:03:36.574 | T8: =SUM(INDEX($N$3:$Q7,0,$M8)) -> 00:02:44.038 | W8: 00:00:52.537
C9: 6 | D9: 5.753547702 | E9: 00:05:45.213 | G9: 2 | I9: 00:05:45.213 | M9: =1*(N9<>"")+2*(O9<>"")+3*(P9<>"")+4*(Q9<>"") -> 1 | N9: =IF(SUM(N$4:N8)>MIN(SUM($N$4:$N8),SUM($O$4:$O8),SUM($P$4:$P8),SUM($Q$4:$Q8)),"",$E9) -> 00:05:45.213 | O9: =IF(SUM(O$4:O8)>MIN(SUM($N$4:$N8),SUM($O$4:$O8),SUM($P$4:$P8),SUM($Q$4:$Q8)),"",$E9) ->  | P9: =IF(SUM(P$4:P8)>MIN(SUM($N$4:$N8),SUM($O$4:$O8),SUM($P$4:$P8),SUM($Q$4:$Q8)),"",$E9) ->  | Q9: =IF(SUM(Q$4:Q8)>MIN(SUM($N$4:$N8),SUM($O$4:$O8),SUM($P$4:$P8),SUM($Q$4:$Q8)),"",$E9) ->  | S9: =SUM(INDEX($H$3:$K8,0,$G9)) -> 00:04:03.276 | T9: =SUM(INDEX($N$3:$Q8,0,$M9)) -> 00:03:36.574 | W9: 00:00:26.702
C10: 7 | D10: 3.642039686 | E10: 00:03:38.522 | G10: 3 | J10: 00:03:38.522 | M10: 2 | N10: =IF(SUM(N$4:N9)>MIN(SUM($N$4:$N9),SUM($O$4:$O9),SUM($P$4:$P9),SUM($Q$4:$Q9)),"",$E10) ->  | O10: =IF(SUM(O$4:O9)>MIN(SUM($N$4:$N9),SUM($O$4:$O9),SUM($P$4:$P9),SUM($Q$4:$Q9)),"",$E10) -> 00:03:38.522 | P10: =IF(SUM(P$4:P9)>MIN(SUM($N$4:$N9),SUM($O$4:$O9),SUM($P$4:$P9),SUM($Q$4:$Q9)),"",$E10) ->  | Q10: =IF(SUM(Q$4:Q9)>MIN(SUM($N$4:$N9),SUM($O$4:$O9),SUM($P$4:$P9),SUM($Q$4:$Q9)),"",$E10) ->  | S10: =SUM(INDEX($H$3:$K9,0,$G10)) -> 00:02:44.038 | T10: =SUM(INDEX($N$3:$Q9,0,$M10)) -> 00:04:03.276 | V10: 00:01:19.238
C11: 8 | D11: 7.488151629 | E11: 00:07:29.289 | G11: 4 | K11: 00:07:29.289 | M11: 2 | N11: =IF(SUM(N$4:N10)>MIN(SUM($N$4:$N10),SUM($O$4:$O10),SUM($P$4:$P10),SUM($Q$4:$Q10)),"",$E11) ->  | O11: =IF(SUM(O$4:O10)>MIN(SUM($N$4:$N10),SUM($O$4:$O10),SUM($P$4:$P10),SUM($Q$4:$Q10)),"",$E11) -> 00:07:29.289 | P11: =IF(SUM(P$4:P10)>MIN(SUM($N$4:$N10),SUM($O$4:$O10),SUM($P$4:$P10),SUM($Q$4:$Q10)),"",$E11) ->  | Q11: =IF(SUM(Q$4:Q10)>MIN(SUM($N$4:$N10),SUM($O$4:$O10),SUM($P$4:$P10),SUM($Q$4:$Q10)),"",$E11) ->  | S11: =SUM(INDEX($H$3:$K10,0,$G11)) -> 00:07:58.152 | T11: =SUM(INDEX($N$3:$Q10,0,$M11)) -> 00:07:41.798 | W11: 00:00:16.354
C12: 9 | D12: 5.066584289 | E12: 00:05:03.995 | G12: 1 | H12: 00:05:03.995 | M12: 4 | N12: =IF(SUM(N$4:N11)>MIN(SUM($N$4:$N11),SUM($O$4:$O11),SUM($P$4:$P11),SUM($Q$4:$Q11)),"",$E12) ->  | O12: =IF(SUM(O$4:O11)>MIN(SUM($N$4:$N11),SUM($O$4:$O11),SUM($P$4:$P11),SUM($Q$4:$Q11)),"",$E12) ->  | P12: =IF(SUM(P$4:P11)>MIN(SUM($N$4:$N11),SUM($O$4:$O11),SUM($P$4:$P11),SUM($Q$4:$Q11)),"",$E12) ->  | Q12: =IF(SUM(Q$4:Q11)>MIN(SUM($N$4:$N11),SUM($O$4:$O11),SUM($P$4:$P11),SUM($Q$4:$Q11)),"",$E12) -> 00:05:03.995 | S12: =SUM(INDEX($H$3:$K11,0,$G12)) -> 00:11:32.197 | T12: =SUM(INDEX($N$3:$Q11,0,$M12)) -> 00:07:58.152 | W12: 00:03:34.045
C13: 10 | D13: 2.035944771 | E13: 00:02:02.157 | G13: 2 | I13: 00:02:02.157 | M13: 1 | N13: =IF(SUM(N$4:N12)>MIN(SUM($N$4:$N12),SUM($O$4:$O12),SUM($P$4:$P12),SUM($Q$4:$Q12)),"",$E13) -> 00:02:02.157 | O13: =IF(SUM(O$4:O12)>MIN(SUM($N$4:$N12),SUM($O$4:$O12),SUM($P$4:$P12),SUM($Q$4:$Q12)),"",$E13) ->  | P13: =IF(SUM(P$4:P12)>MIN(SUM($N$4:$N12),SUM($O$4:$O12),SUM($P$4:$P12),SUM($Q$4:$Q12)),"",$E13) ->  | Q13: =IF(SUM(Q$4:Q12)>MIN(SUM($N$4:$N12),SUM($O$4:$O12),SUM($P$4:$P12),SUM($Q$4:$Q12)),"",$E13) ->  | S13: =SUM(INDEX($H$3:$K12,0,$G13)) -> 00:09:48.489 | T13: =SUM(INDEX($N$3:$Q12,0,$M13)) -> 00:09:21.787 | W13: 00:00:26.702
C14: 11 | D14: 2.546291054 | E14: 00:02:32.777 | G14: 3 | J14: 00:02:32.777 | M14: 3 | N14: =IF(SUM(N$4:N13)>MIN(SUM($N$4:$N13),SUM($O$4:$O13),SUM($P$4:$P13),SUM($Q$4:$Q13)),"",$E14) ->  | O14: =IF(SUM(O$4:O13)>MIN(SUM($N$4:$N13),SUM($O$4:$O13),SUM($P$4:$P13),SUM($Q$4:$Q13)),"",$E14) ->  | P14: =IF(SUM(P$4:P13)>MIN(SUM($N$4:$N13),SUM($O$4:$O13),SUM($P$4:$P13),SUM($Q$4:$Q13)),"",$E14) -> 00:02:32.777 | Q14: =IF(SUM(Q$4:Q13)>MIN(SUM($N$4:$N13),SUM($O$4:$O13),SUM($P$4:$P13),SUM($Q$4:$Q13)),"",$E14) ->  | S14: =SUM(INDEX($H$3:$K13,0,$G14)) -> 00:06:22.560 | T14: =SUM(INDEX($N$3:$Q13,0,$M14)) -> 00:10:39.660 | V14: 00:04:17.100
C15: 12 | D15: 2.82697768 | E15: 00:02:49.619 | G15: 4 | K15: 00:02:49.619 | M15: 1 | N15: =IF(SUM(N$4:N14)>MIN(SUM($N$4:$N14),SUM($O$4:$O14),SUM($P$4:$P14),SUM($Q$4:$Q14)),"",$E15) -> 00:02:49.619 | O15: =IF(SUM(O$4:O14)>MIN(SUM($N$4:$N14),SUM($O$4:$O14),SUM($P$4:$P14),SUM($Q$4:$Q14)),"",$E15) ->  | P15: =IF(SUM(P$4:P14)>MIN(SUM($N$4:$N14),SUM($O$4:$O14),SUM($P$4:$P14),SUM($Q$4:$Q14)),"",$E15) ->  | Q15: =IF(SUM(Q$4:Q14)>MIN(SUM($N$4:$N14),SUM($O$4:$O14),SUM($P$4:$P14),SUM($Q$4:$Q14)),"",$E15) ->  | S15: =SUM(INDEX($H$3:$K14,0,$G15)) -> 00:15:27.441 | T15: =SUM(INDEX($N$3:$Q14,0,$M15)) -> 00:11:23.944 | W15: 00:04:03.498
C16: 13 | D16: 5.462612889 | E16: 00:05:27.757 | G16: 1 | H16: 00:05:27.757 | M16: 4 | N16: =IF(SUM(N$4:N15)>MIN(SUM($N$4:$N15),SUM($O$4:$O15),SUM($P$4:$P15),SUM($Q$4:$Q15)),"",$E16) ->  | O16: =IF(SUM(O$4:O15)>MIN(SUM($N$4:$N15),SUM($O$4:$O15),SUM($P$4:$P15),SUM($Q$4:$Q15)),"",$E16) ->  | P16: =IF(SUM(P$4:P15)>MIN(SUM($N$4:$N15),SUM($O$4:$O15),SUM($P$4:$P15),SUM($Q$4:$Q15)),"",$E16) ->  | Q16: =IF(SUM(Q$4:Q15)>MIN(SUM($N$4:$N15),SUM($O$4:$O15),SUM($P$4:$P15),SUM($Q$4:$Q15)),"",$E16) -> 00:05:27.757 | S16: =SUM(INDEX($H$3:$K15,0,$G16)) -> 00:16:36.192 | T16: =SUM(INDEX($N$3:$Q15,0,$M16)) -> 00:13:02.147 | W16: 00:03:34.045
C17: 14 | D17: 6.975228968 | E17: 00:06:58.514 | G17: 2 | I17: 00:06:58.514 | M17: 3 | N17: =IF(SUM(N$4:N16)>MIN(SUM($N$4:$N16),SUM($O$4:$O16),SUM($P$4:$P16),SUM($Q$4:$Q16)),"",$E17) ->  | O17: =IF(SUM(O$4:O16)>MIN(SUM($N$4:$N16),SUM($O$4:$O16),SUM($P$4:$P16),SUM($Q$4:$Q16)),"",$E17) ->  | P17: =IF(SUM(P$4:P16)>MIN(SUM($N$4:$N16),SUM($O$4:$O16),SUM($P$4:$P16),SUM($Q$4:$Q16)),"",$E17) -> 00:06:58.514 | Q17: =IF(SUM(Q$4:Q16)>MIN(SUM($N$4:$N16),SUM($O$4:$O16),SUM($P$4:$P16),SUM($Q$4:$Q16)),"",$E17) ->  | S17: =SUM(INDEX($H$3:$K16,0,$G17)) -> 00:11:50.645 | T17: =SUM(INDEX($N$3:$Q16,0,$M17)) -> 00:13:12.438 | V17: 00:01:21.792
C18: 15 | D18: 5.467731929 | E18: 00:05:28.064 | G18: 3 | J18: 00:05:28.064 | M18: 1 | N18: =IF(SUM(N$4:N17)>MIN(SUM($N$4:$N17),SUM($O$4:$O17),SUM($P$4:$P17),SUM($Q$4:$Q17)),"",$E18) -> 00:05:28.064 | O18: =IF(SUM(O$4:O17)>MIN(SUM($N$4:$N17),SUM($O$4:$O17),SUM($P$4:$P17),SUM($Q$4:$Q17)),"",$E18) ->  | P18: =IF(SUM(P$4:P17)>MIN(SUM($N$4:$N17),SUM($O$4:$O17),SUM($P$4:$P17),SUM($Q$4:$Q17)),"",$E18) ->  | Q18: =IF(SUM(Q$4:Q17)>MIN(SUM($N$4:$N17),SUM($O$4:$O17),SUM($P$4:$P17),SUM($Q$4:$Q17)),"",$E18) ->  | S18: =SUM(INDEX($H$3:$K17,0,$G18)) -> 00:08:55.337 | T18: =SUM(INDEX($N$3:$Q17,0,$M18)) -> 00:14:13.562 | V18: 00:05:18.225
C19: 16 | D19: 5.373667724 | E19: 00:05:22.420 | G19: 4 | K19: 00:05:22.420 | M19: 2 | N19: =IF(SUM(N$4:N18)>MIN(SUM($N$4:$N18),SUM($O$4:$O18),SUM($P$4:$P18),SUM($Q$4:$Q18)),"",$E19) ->  | O19: =IF(SUM(O$4:O18)>MIN(SUM($N$4:$N18),SUM($O$4:$O18),SUM($P$4:$P18),SUM($Q$4:$Q18)),"",$E19) -> 00:05:22.420 | P19: =IF(SUM(P$4:P18)>MIN(SUM($N$4:$N18),SUM($O$4:$O18),SUM($P$4:$P18),SUM($Q$4:$Q18)),"",$E19) ->  | Q19: =IF(SUM(Q$4:Q18)>MIN(SUM($N$4:$N18),SUM($O$4:$O18),SUM($P$4:$P18),SUM($Q$4:$Q18)),"",$E19) ->  | S19: =SUM(INDEX($H$3:$K18,0,$G19)) -> 00:18:17.060 | T19: =SUM(INDEX($N$3:$Q18,0,$M19)) -> 00:15:11.087 | W19: 00:03:05.973
C20: 17 | D20: 4.49758399 | E20: 00:04:29.855 | G20: 1 | H20: 00:04:29.855 | M20: 4 | N20: =IF(SUM(N$4:N19)>MIN(SUM($N$4:$N19),SUM($O$4:$O19),SUM($P$4:$P19),SUM($Q$4:$Q19)),"",$E20) ->  | O20: =IF(SUM(O$4:O19)>MIN(SUM($N$4:$N19),SUM($O$4:$O19),SUM($P$4:$P19),SUM($Q$4:$Q19)),"",$E20) ->  | P20: =IF(SUM(P$4:P19)>MIN(SUM($N$4:$N19),SUM($O$4:$O19),SUM($P$4:$P19),SUM($Q$4:$Q19)),"",$E20) ->  | Q20: =IF(SUM(Q$4:Q19)>MIN(SUM($N$4:$N19),SUM($O$4:$O19),SUM($P$4:$P19),SUM($Q$4:$Q19)),"",$E20) -> 00:04:29.855 | S20: =SUM(INDEX($H$3:$K19,0,$G20)) -> 00:22:03.948 | T20: =SUM(INDEX($N$3:$Q19,0,$M20)) -> 00:18:29.904 | W20: 00:03:34.045
C21: 18 | D21: 6.829457005 | E21: 00:06:49.767 | G21: 2 | I21: 00:06:49.767 | M21: 1 | N21: =IF(SUM(N$4:N20)>MIN(SUM($N$4:$N20),SUM($O$4:$O20),SUM($P$4:$P20),SUM($Q$4:$Q20)),"",$E21) -> 00:06:49.767 | O21: =IF(SUM(O$4:O20)>MIN(SUM($N$4:$N20),SUM($O$4:$O20),SUM($P$4:$P20),SUM($Q$4:$Q20)),"",$E21) ->  | P21: =IF(SUM(P$4:P20)>MIN(SUM($N$4:$N20),SUM($O$4:$O20),SUM($P$4:$P20),SUM($Q$4:$Q20)),"",$E21) ->  | Q21: =IF(SUM(Q$4:Q20)>MIN(SUM($N$4:$N20),SUM($O$4:$O20),SUM($P$4:$P20),SUM($Q$4:$Q20)),"",$E21) ->  | S21: =SUM(INDEX($H$3:$K20,0,$G21)) -> 00:18:49.159 | T21: =SUM(INDEX($N$3:$Q20,0,$M21)) -> 00:19:41.626 | V21: 00:00:52.467
C22: 19 | D22: 4.476444133 | E22: 00:04:28.587 | G22: 3 | J22: 00:04:28.587 | M22: 3 | N22: =IF(SUM(N$4:N21)>MIN(SUM($N$4:$N21),SUM($O$4:$O21),SUM($P$4:$P21),SUM($Q$4:$Q21)),"",$E22) ->  | O22: =IF(SUM(O$4:O21)>MIN(SUM($N$4:$N21),SUM($O$4:$O21),SUM($P$4:$P21),SUM($Q$4:$Q21)),"",$E22) ->  | P22: =IF(SUM(P$4:P21)>MIN(SUM($N$4:$N21),SUM($O$4:$O21),SUM($P$4:$P21),SUM($Q$4:$Q21)),"",$E22) -> 00:04:28.587 | Q22: =IF(SUM(Q$4:Q21)>MIN(SUM($N$4:$N21),SUM($O$4:$O21),SUM($P$4:$P21),SUM($Q$4:$Q21)),"",$E22) ->  | S22: =SUM(INDEX($H$3:$K21,0,$G22)) -> 00:14:23.401 | T22: =SUM(INDEX($N$3:$Q21,0,$M22)) -> 00:20:10.951 | V22: 00:05:47.550
C23: 20 | D23: 2.20683545 | E23: 00:02:12.410 | G23: 4 | K23: 00:02:12.410 | M23: 2 | N23: =IF(SUM(N$4:N22)>MIN(SUM($N$4:$N22),SUM($O$4:$O22),SUM($P$4:$P22),SUM($Q$4:$Q22)),"",$E23) ->  | O23: =IF(SUM(O$4:O22)>MIN(SUM($N$4:$N22),SUM($O$4:$O22),SUM($P$4:$P22),SUM($Q$4:$Q22)),"",$E23) -> 00:02:12.410 | P23: =IF(SUM(P$4:P22)>MIN(SUM($N$4:$N22),SUM($O$4:$O22),SUM($P$4:$P22),SUM($Q$4:$Q22)),"",$E23) ->  | Q23: =IF(SUM(Q$4:Q22)>MIN(SUM($N$4:$N22),SUM($O$4:$O22),SUM($P$4:$P22),SUM($Q$4:$Q22)),"",$E23) ->  | S23: =SUM(INDEX($H$3:$K22,0,$G23)) -> 00:23:39.480 | T23: =SUM(INDEX($N$3:$Q22,0,$M23)) -> 00:20:33.507 | W23: 00:03:05.973
C24: 21 | D24: 4.600780525 | E24: 00:04:36.047 | G24: 1 | H24: =IF($G24=H$2,$E24,"") -> 00:04:36.047 | M24: 2 | N24: =IF(SUM(N$4:N23)>MIN(SUM($N$4:$N23),SUM($O$4:$O23),SUM($P$4:$P23),SUM($Q$4:$Q23)),"",$E24) ->  | O24: =IF(SUM(O$4:O23)>MIN(SUM($N$4:$N23),SUM($O$4:$O23),SUM($P$4:$P23),SUM($Q$4:$Q23)),"",$E24) -> 00:04:36.047 | P24: =IF(SUM(P$4:P23)>MIN(SUM($N$4:$N23),SUM($O$4:$O23),SUM($P$4:$P23),SUM($Q$4:$Q23)),"",$E24) ->  | Q24: =IF(SUM(Q$4:Q23)>MIN(SUM($N$4:$N23),SUM($O$4:$O23),SUM($P$4:$P23),SUM($Q$4:$Q23)),"",$E24) ->  | S24: =SUM(INDEX($H$3:$K23,0,$G24)) -> 00:26:33.804 | T24: =SUM(INDEX($N$3:$Q23,0,$M24)) -> 00:22:45.917 | W24: 00:03:47.886
C25: 22 | D25: 4.882373181 | E25: 00:04:52.942 | G25: 2 | I25: 00:04:52.942 | M25: 4 | N25: =IF(SUM(N$4:N24)>MIN(SUM($N$4:$N24),SUM($O$4:$O24),SUM($P$4:$P24),SUM($Q$4:$Q24)),"",$E25) ->  | O25: =IF(SUM(O$4:O24)>MIN(SUM($N$4:$N24),SUM($O$4:$O24),SUM($P$4:$P24),SUM($Q$4:$Q24)),"",$E25) ->  | P25: =IF(SUM(P$4:P24)>MIN(SUM($N$4:$N24),SUM($O$4:$O24),SUM($P$4:$P24),SUM($Q$4:$Q24)),"",$E25) ->  | Q25: =IF(SUM(Q$4:Q24)>MIN(SUM($N$4:$N24),SUM($O$4:$O24),SUM($P$4:$P24),SUM($Q$4:$Q24)),"",$E25) -> 00:04:52.942 | S25: =SUM(INDEX($H$3:$K24,0,$G25)) -> 00:25:38.927 | T25: =SUM(INDEX($N$3:$Q24,0,$M25)) -> 00:22:59.759 | W25: 00:02:39.168
C26: 23 | D26: 5.118206103 | E26: 00:05:07.092 | G26: 3 | J26: 00:05:07.092 | M26: 3 | N26: =IF(SUM(N$4:N25)>MIN(SUM($N$4:$N25),SUM($O$4:$O25),SUM($P$4:$P25),SUM($Q$4:$Q25)),"",$E26) ->  | O26: =IF(SUM(O$4:O25)>MIN(SUM($N$4:$N25),SUM($O$4:$O25),SUM($P$4:$P25),SUM($Q$4:$Q25)),"",$E26) ->  | P26: =IF(SUM(P$4:P25)>MIN(SUM($N$4:$N25),SUM($O$4:$O25),SUM($P$4:$P25),SUM($Q$4:$Q25)),"",$E26) -> 00:05:07.092 | Q26: =IF(SUM(Q$4:Q25)>MIN(SUM($N$4:$N25),SUM($O$4:$O25),SUM($P$4:$P25),SUM($Q$4:$Q25)),"",$E26) ->  | S26: =SUM(INDEX($H$3:$K25,0,$G26)) -> 00:18:51.988 | T26: =SUM(INDEX($N$3:$Q25,0,$M26)) -> 00:24:39.538 | V26: 00:05:47.550
C27: 24 | D27: 5.427414269 | E27: 00:05:25.645 | G27: 4 | K27: 00:05:25.645 | M27: 1 | N27: =IF(SUM(N$4:N26)>MIN(SUM($N$4:$N26),SUM($O$4:$O26),SUM($P$4:$P26),SUM($Q$4:$Q26)),"",$E27) -> 00:05:25.645 | O27: =IF(SUM(O$4:O26)>MIN(SUM($N$4:$N26),SUM($O$4:$O26),SUM($P$4:$P26),SUM($Q$4:$Q26)),"",$E27) ->  | P27: =IF(SUM(P$4:P26)>MIN(SUM($N$4:$N26),SUM($O$4:$O26),SUM($P$4:$P26),SUM($Q$4:$Q26)),"",$E27) ->  | Q27: =IF(SUM(Q$4:Q26)>MIN(SUM($N$4:$N26),SUM($O$4:$O26),SUM($P$4:$P26),SUM($Q$4:$Q26)),"",$E27) ->  | S27: =SUM(INDEX($H$3:$K26,0,$G27)) -> 00:25:51.890 | T27: =SUM(INDEX($N$3:$Q26,0,$M27)) -> 00:26:31.394 | V27: 00:00:39.504
C28: 25 | D28: 6.919904151 | E28: 00:06:55.194 | G28: 1 | H28: 00:06:55.194 | M28: 2 | N28: =IF(SUM(N$4:N27)>MIN(SUM($N$4:$N27),SUM($O$4:$O27),SUM($P$4:$P27),SUM($Q$4:$Q27)),"",$E28) ->  | O28: =IF(SUM(O$4:O27)>MIN(SUM($N$4:$N27),SUM($O$4:$O27),SUM($P$4:$P27),SUM($Q$4:$Q27)),"",$E28) -> 00:06:55.194 | P28: =IF(SUM(P$4:P27)>MIN(SUM($N$4:$N27),SUM($O$4:$O27),SUM($P$4:$P27),SUM($Q$4:$Q27)),"",$E28) ->  | Q28: =IF(SUM(Q$4:Q27)>MIN(SUM($N$4:$N27),SUM($O$4:$O27),SUM($P$4:$P27),SUM($Q$4:$Q27)),"",$E28) ->  | S28: =SUM(INDEX($H$3:$K27,0,$G28)) -> 00:31:09.850 | T28: =SUM(INDEX($N$3:$Q27,0,$M28)) -> 00:27:21.964 | W28: 00:03:47.886
C29: 26 | D29: 3.949202102 | E29: 00:03:56.952 | G29: 2 | I29: 00:03:56.952 | M29: 4 | N29: =IF(SUM(N$4:N28)>MIN(SUM($N$4:$N28),SUM($O$4:$O28),SUM($P$4:$P28),SUM($Q$4:$Q28)),"",$E29) ->  | O29: =IF(SUM(O$4:O28)>MIN(SUM($N$4:$N28),SUM($O$4:$O28),SUM($P$4:$P28),SUM($Q$4:$Q28)),"",$E29) ->  | P29: =IF(SUM(P$4:P28)>MIN(SUM($N$4:$N28),SUM($O$4:$O28),SUM($P$4:$P28),SUM($Q$4:$Q28)),"",$E29) ->  | Q29: =IF(SUM(Q$4:Q28)>MIN(SUM($N$4:$N28),SUM($O$4:$O28),SUM($P$4:$P28),SUM($Q$4:$Q28)),"",$E29) -> 00:03:56.952 | S29: =SUM(INDEX($H$3:$K28,0,$G29)) -> 00:30:31.869 | T29: =SUM(INDEX($N$3:$Q28,0,$M29)) -> 00:27:52.701 | W29: 00:02:39.168
C30: 27 | D30: 2.03897911 | E30: 00:02:02.339 | G30: 3 | J30: 00:02:02.339 | M30: 3 | N30: =IF(SUM(N$4:N29)>MIN(SUM($N$4:$N29),SUM($O$4:$O29),SUM($P$4:$P29),SUM($Q$4:$Q29)),"",$E30) ->  | O30: =IF(SUM(O$4:O29)>MIN(SUM($N$4:$N29),SUM($O$4:$O29),SUM($P$4:$P29),SUM($Q$4:$Q29)),"",$E30) ->  | P30: =IF(SUM(P$4:P29)>MIN(SUM($N$4:$N29),SUM($O$4:$O29),SUM($P$4:$P29),SUM($Q$4:$Q29)),"",$E30) -> 00:02:02.339 | Q30: =IF(SUM(Q$4:Q29)>MIN(SUM($N$4:$N29),SUM($O$4:$O29),SUM($P$4:$P29),SUM($Q$4:$Q29)),"",$E30) ->  | S30: =SUM(INDEX($H$3:$K29,0,$G30)) -> 00:23:59.080 | T30: =SUM(INDEX($N$3:$Q29,0,$M30)) -> 00:29:46.630 | V30: 00:05:47.550
C31: 28 | D31: 4.356603025 | E31: 00:04:21.396 | G31: 4 | K31: 00:04:21.396 | M31: 3 | N31: =IF(SUM(N$4:N30)>MIN(SUM($N$4:$N30),SUM($O$4:$O30),SUM($P$4:$P30),SUM($Q$4:$Q30)),"",$E31) ->  | O31: =IF(SUM(O$4:O30)>MIN(SUM($N$4:$N30),SUM($O$4:$O30),SUM($P$4:$P30),SUM($Q$4:$Q30)),"",$E31) ->  | P31: =IF(SUM(P$4:P30)>MIN(SUM($N$4:$N30),SUM($O$4:$O30),SUM($P$4:$P30),SUM($Q$4:$Q30)),"",$E31) -> 00:04:21.396 | Q31: =IF(SUM(Q$4:Q30)>MIN(SUM($N$4:$N30),SUM($O$4:$O30),SUM($P$4:$P30),SUM($Q$4:$Q30)),"",$E31) ->  | S31: =SUM(INDEX($H$3:$K30,0,$G31)) -> 00:31:17.535 | T31: =SUM(INDEX($N$3:$Q30,0,$M31)) -> 00:31:48.969 | V31: 00:00:31.434
C32: 29 | D32: 6.004483649 | E32: 00:06:00.269 | G32: 1 | H32: 00:06:00.269 | M32: 4 | N32: =IF(SUM(N$4:N31)>MIN(SUM($N$4:$N31),SUM($O$4:$O31),SUM($P$4:$P31),SUM($Q$4:$Q31)),"",$E32) ->  | O32: =IF(SUM(O$4:O31)>MIN(SUM($N$4:$N31),SUM($O$4:$O31),SUM($P$4:$P31),SUM($Q$4:$Q31)),"",$E32) ->  | P32: =IF(SUM(P$4:P31)>MIN(SUM($N$4:$N31),SUM($O$4:$O31),SUM($P$4:$P31),SUM($Q$4:$Q31)),"",$E32) ->  | Q32: =IF(SUM(Q$4:Q31)>MIN(SUM($N$4:$N31),SUM($O$4:$O31),SUM($P$4:$P31),SUM($Q$4:$Q31)),"",$E32) -> 00:06:00.269 | S32: =SUM(INDEX($H$3:$K31,0,$G32)) -> 00:38:05.045 | T32: =SUM(INDEX($N$3:$Q31,0,$M32)) -> 00:31:49.654 | W32: 00:06:15.391
C33: 30 | D33: 3.955876214 | E33: 00:03:57.353 | G33: 2 | I33: 00:03:57.353 | M33: 1 | N33: =IF(SUM(N$4:N32)>MIN(SUM($N$4:$N32),SUM($O$4:$O32),SUM($P$4:$P32),SUM($Q$4:$Q32)),"",$E33) -> 00:03:57.353 | O33: =IF(SUM(O$4:O32)>MIN(SUM($N$4:$N32),SUM($O$4:$O32),SUM($P$4:$P32),SUM($Q$4:$Q32)),"",$E33) ->  | P33: =IF(SUM(P$4:P32)>MIN(SUM($N$4:$N32),SUM($O$4:$O32),SUM($P$4:$P32),SUM($Q$4:$Q32)),"",$E33) ->  | Q33: =IF(SUM(Q$4:Q32)>MIN(SUM($N$4:$N32),SUM($O$4:$O32),SUM($P$4:$P32),SUM($Q$4:$Q32)),"",$E33) ->  | S33: =SUM(INDEX($H$3:$K32,0,$G33)) -> 00:34:28.821 | T33: =SUM(INDEX($N$3:$Q32,0,$M33)) -> 00:31:57.039 | W33: 00:02:31.783
C34: 31 | D34: 3.092762293 | E34: 00:03:05.566 | G34: 3 | J34: 00:03:05.566 | M34: 2 | N34: =IF(SUM(N$4:N33)>MIN(SUM($N$4:$N33),SUM($O$4:$O33),SUM($P$4:$P33),SUM($Q$4:$Q33)),"",$E34) ->  | O34: =IF(SUM(O$4:O33)>MIN(SUM($N$4:$N33),SUM($O$4:$O33),SUM($P$4:$P33),SUM($Q$4:$Q33)),"",$E34) -> 00:03:05.566 | P34: =IF(SUM(P$4:P33)>MIN(SUM($N$4:$N33),SUM($O$4:$O33),SUM($P$4:$P33),SUM($Q$4:$Q33)),"",$E34) ->  | Q34: =IF(SUM(Q$4:Q33)>MIN(SUM($N$4:$N33),SUM($O$4:$O33),SUM($P$4:$P33),SUM($Q$4:$Q33)),"",$E34) ->  | S34: =SUM(INDEX($H$3:$K33,0,$G34)) -> 00:26:01.419 | T34: =SUM(INDEX($N$3:$Q33,0,$M34)) -> 00:34:17.159 | V34: 00:08:15.740
C35: 32 | D35: 2.825258976 | E35: 00:02:49.516 | G35: 4 | K35: 00:02:49.516 | M35: 1 | N35: =IF(SUM(N$4:N34)>MIN(SUM($N$4:$N34),SUM($O$4:$O34),SUM($P$4:$P34),SUM($Q$4:$Q34)),"",$E35) -> 00:02:49.516 | O35: =IF(SUM(O$4:O34)>MIN(SUM($N$4:$N34),SUM($O$4:$O34),SUM($P$4:$P34),SUM($Q$4:$Q34)),"",$E35) ->  | P35: =IF(SUM(P$4:P34)>MIN(SUM($N$4:$N34),SUM($O$4:$O34),SUM($P$4:$P34),SUM($Q$4:$Q34)),"",$E35) ->  | Q35: =IF(SUM(Q$4:Q34)>MIN(SUM($N$4:$N34),SUM($O$4:$O34),SUM($P$4:$P34),SUM($Q$4:$Q34)),"",$E35) ->  | S35: =SUM(INDEX($H$3:$K34,0,$G35)) -> 00:35:38.931 | T35: =SUM(INDEX($N$3:$Q34,0,$M35)) -> 00:35:54.391 | V35: 00:00:15.460
C36: 33 | D36: 2.651855959 | E36: 00:02:39.111 | G36: 1 | H36: 00:02:39.111 | M36: 3 | N36: =IF(SUM(N$4:N35)>MIN(SUM($N$4:$N35),SUM($O$4:$O35),SUM($P$4:$P35),SUM($Q$4:$Q35)),"",$E36) ->  | O36: =IF(SUM(O$4:O35)>MIN(SUM($N$4:$N35),SUM($O$4:$O35),SUM($P$4:$P35),SUM($Q$4:$Q35)),"",$E36) ->  | P36: =IF(SUM(P$4:P35)>MIN(SUM($N$4:$N35),SUM($O$4:$O35),SUM($P$4:$P35),SUM($Q$4:$Q35)),"",$E36) -> 00:02:39.111 | Q36: =IF(SUM(Q$4:Q35)>MIN(SUM($N$4:$N35),SUM($O$4:$O35),SUM($P$4:$P35),SUM($Q$4:$Q35)),"",$E36) ->  | S36: =SUM(INDEX($H$3:$K35,0,$G36)) -> 00:44:05.314 | T36: =SUM(INDEX($N$3:$Q35,0,$M36)) -> 00:36:10.365 | W36: 00:07:54.948
C37: 34 | D37: 4.18657861 | E37: 00:04:11.195 | G37: 2 | I37: 00:04:11.195 | M37: 2 | N37: =IF(SUM(N$4:N36)>MIN(SUM($N$4:$N36),SUM($O$4:$O36),SUM($P$4:$P36),SUM($Q$4:$Q36)),"",$E37) ->  | O37: =IF(SUM(O$4:O36)>MIN(SUM($N$4:$N36),SUM($O$4:$O36),SUM($P$4:$P36),SUM($Q$4:$Q36)),"",$E37) -> 00:04:11.195 | P37: =IF(SUM(P$4:P36)>MIN(SUM($N$4:$N36),SUM($O$4:$O36),SUM($P$4:$P36),SUM($Q$4:$Q36)),"",$E37) ->  | Q37: =IF(SUM(Q$4:Q36)>MIN(SUM($N$4:$N36),SUM($O$4:$O36),SUM($P$4:$P36),SUM($Q$4:$Q36)),"",$E37) ->  | S37: =SUM(INDEX($H$3:$K36,0,$G37)) -> 00:38:26.174 | T37: =SUM(INDEX($N$3:$Q36,0,$M37)) -> 00:37:22.724 | W37: 00:01:03.449
C38: 35 | D38: 6.668027464 | E38: 00:06:40.082 | G38: 3 | J38: 00:06:40.082 | M38: 4 | N38: =IF(SUM(N$4:N37)>MIN(SUM($N$4:$N37),SUM($O$4:$O37),SUM($P$4:$P37),SUM($Q$4:$Q37)),"",$E38) ->  | O38: =IF(SUM(O$4:O37)>MIN(SUM($N$4:$N37),SUM($O$4:$O37),SUM($P$4:$P37),SUM($Q$4:$Q37)),"",$E38) ->  | P38: =IF(SUM(P$4:P37)>MIN(SUM($N$4:$N37),SUM($O$4:$O37),SUM($P$4:$P37),SUM($Q$4:$Q37)),"",$E38) ->  | Q38: =IF(SUM(Q$4:Q37)>MIN(SUM($N$4:$N37),SUM($O$4:$O37),SUM($P$4:$P37),SUM($Q$4:$Q37)),"",$E38) -> 00:06:40.082 | S38: =SUM(INDEX($H$3:$K37,0,$G38)) -> 00:29:06.985 | T38: =SUM(INDEX($N$3:$Q37,0,$M38)) -> 00:37:49.923 | V38: 00:08:42.938
C39: 36 | D39: 5.007269495 | E39: 00:05:00.436 | G39: 4 | K39: 00:05:00.436 | M39: 1 | N39: =IF(SUM(N$4:N38)>MIN(SUM($N$4:$N38),SUM($O$4:$O38),SUM($P$4:$P38),SUM($Q$4:$Q38)),"",$E39) -> 00:05:00.436 | O39: =IF(SUM(O$4:O38)>MIN(SUM($N$4:$N38),SUM($O$4:$O38),SUM($P$4:$P38),SUM($Q$4:$Q38)),"",$E39) ->  | P39: =IF(SUM(P$4:P38)>MIN(SUM($N$4:$N38),SUM($O$4:$O38),SUM($P$4:$P38),SUM($Q$4:$Q38)),"",$E39) ->  | Q39: =IF(SUM(Q$4:Q38)>MIN(SUM($N$4:$N38),SUM($O$4:$O38),SUM($P$4:$P38),SUM($Q$4:$Q38)),"",$E39) ->  | S39: =SUM(INDEX($H$3:$K38,0,$G39)) -> 00:38:28.447 | T39: =SUM(INDEX($N$3:$Q38,0,$M39)) -> 00:38:43.907 | V39: 00:00:15.460
C40: 37 | D40: 6.652569642 | E40: 00:06:39.154 | G40: 1 | H40: 00:06:39.154 | M40: 3 | N40: =IF(SUM(N$4:N39)>MIN(SUM($N$4:$N39),SUM($O$4:$O39),SUM($P$4:$P39),SUM($Q$4:$Q39)),"",$E40) ->  | O40: =IF(SUM(O$4:O39)>MIN(SUM($N$4:$N39),SUM($O$4:$O39),SUM($P$4:$P39),SUM($Q$4:$Q39)),"",$E40) ->  | P40: =IF(SUM(P$4:P39)>MIN(SUM($N$4:$N39),SUM($O$4:$O39),SUM($P$4:$P39),SUM($Q$4:$Q39)),"",$E40) -> 00:06:39.154 | Q40: =IF(SUM(Q$4:Q39)>MIN(SUM($N$4:$N39),SUM($O$4:$O39),SUM($P$4:$P39),SUM($Q$4:$Q39)),"",$E40) ->  | S40: =SUM(INDEX($H$3:$K39,0,$G40)) -> 00:46:44.425 | T40: =SUM(INDEX($N$3:$Q39,0,$M40)) -> 00:38:49.477 | W40: 00:07:54.948
C41: 38 | D41: 3.973559574 | E41: 00:03:58.414 | G41: 2 | I41: 00:03:58.414 | M41: 2 | N41: =IF(SUM(N$4:N40)>MIN(SUM($N$4:$N40),SUM($O$4:$O40),SUM($P$4:$P40),SUM($Q$4:$Q40)),"",$E41) ->  | O41: =IF(SUM(O$4:O40)>MIN(SUM($N$4:$N40),SUM($O$4:$O40),SUM($P$4:$P40),SUM($Q$4:$Q40)),"",$E41) -> 00:03:58.414 | P41: =IF(SUM(P$4:P40)>MIN(SUM($N$4:$N40),SUM($O$4:$O40),SUM($P$4:$P40),SUM($Q$4:$Q40)),"",$E41) ->  | Q41: =IF(SUM(Q$4:Q40)>MIN(SUM($N$4:$N40),SUM($O$4:$O40),SUM($P$4:$P40),SUM($Q$4:$Q40)),"",$E41) ->  | S41: =SUM(INDEX($H$3:$K40,0,$G41)) -> 00:42:37.368 | T41: =SUM(INDEX($N$3:$Q40,0,$M41)) -> 00:41:33.919 | W41: 00:01:03.449
C42: 39 | D42: 4.934295521 | E42: 00:04:56.058 | G42: 3 | J42: 00:04:56.058 | M42: 1 | N42: =IF(SUM(N$4:N41)>MIN(SUM($N$4:$N41),SUM($O$4:$O41),SUM($P$4:$P41),SUM($Q$4:$Q41)),"",$E42) -> 00:04:56.058 | O42: =IF(SUM(O$4:O41)>MIN(SUM($N$4:$N41),SUM($O$4:$O41),SUM($P$4:$P41),SUM($Q$4:$Q41)),"",$E42) ->  | P42: =IF(SUM(P$4:P41)>MIN(SUM($N$4:$N41),SUM($O$4:$O41),SUM($P$4:$P41),SUM($Q$4:$Q41)),"",$E42) ->  | Q42: =IF(SUM(Q$4:Q41)>MIN(SUM($N$4:$N41),SUM($O$4:$O41),SUM($P$4:$P41),SUM($Q$4:$Q41)),"",$E42) ->  | S42: =SUM(INDEX($H$3:$K41,0,$G42)) -> 00:35:47.066 | T42: =SUM(INDEX($N$3:$Q41,0,$M42)) -> 00:43:44.343 | V42: 00:07:57.276
C43: 40 | D43: 2.337644532 | E43: 00:02:20.259 | G43: 4 | K43: 00:02:20.259 | M43: 4 | N43: =IF(SUM(N$4:N42)>MIN(SUM($N$4:$N42),SUM($O$4:$O42),SUM($P$4:$P42),SUM($Q$4:$Q42)),"",$E43) ->  | O43: =IF(SUM(O$4:O42)>MIN(SUM($N$4:$N42),SUM($O$4:$O42),SUM($P$4:$P42),SUM($Q$4:$Q42)),"",$E43) ->  | P43: =IF(SUM(P$4:P42)>MIN(SUM($N$4:$N42),SUM($O$4:$O42),SUM($P$4:$P42),SUM($Q$4:$Q42)),"",$E43) ->  | Q43: =IF(SUM(Q$4:Q42)>MIN(SUM($N$4:$N42),SUM($O$4:$O42),SUM($P$4:$P42),SUM($Q$4:$Q42)),"",$E43) -> 00:02:20.259 | S43: =SUM(INDEX($H$3:$K42,0,$G43)) -> 00:43:28.883 | T43: =SUM(INDEX($N$3:$Q42,0,$M43)) -> 00:44:30.004 | V43: 00:01:01.121
U45: totali | V45: =SUM(V4:V43) -> 0.04039820846 | W45: =SUM(W4:W43) -> 0.04349474986

Sheet viaggio
D1: attesa | F1: tram
B2: percorso A | D2: 15 e 15 | F2: 15
B4: percorso B | D4: 5 | F4: 5 | H4: 15
D5: piedi | F5: attesa max | H5: metro
A7: 0 | B7: 0 | D7: 12 | K7: 0
A8: 20 | B8: 20 | D8: 6 | K8: 5
A9: attesa tram 1 | B9: attesa tram 2 | C9: attesa | D9: tempo tram | E9: tempo compl. A | J9: piedi | K9: attesa | L9: metro | M9: tempo compl. B
A10: =A$7+RAND()*A$8 -> 10.96472649 | B10: 1.070654372 | C10: =MIN(A10:B10) -> 1.070654372 | D10: =D$7+RAND()*D$8 -> 16.14254669 | E10: =D10+C10 -> 17.21320106 | G10: =AVERAGE(C10:C894) -> 6.660306275 | J10: 5 | K10: =K$7+RAND()*K$8 -> 1.293939834 | L10: 15 | M10: =L10+K10+J10 -> 21.29393983 | O10: 1 | P10: =(E10<M10)*1 -> 1 | Q10: =SUM(P$10:P10)/O10 -> 1 | R10: =E10-M10 -> -4.080738771 | S10: =Q894 -> 0.5920903955
A11: 12.21901045 | B11: 13.95116394 | C11: 12.21901045 | D11: 13.23143676 | E11: 25.45044721 | J11: 5 | K11: 2.411859147 | L11: 15 | M11: 22.41185915 | O11: =O10+1 -> 2 | P11: 0 | Q11: =SUM(P$10:P11)/O11 -> 0.5 | R11: 3.038588063
A12: 6.908469926 | B12: 19.21005928 | C12: 6.908469926 | D12: 15.70648204 | E12: 22.61495196 | J12: 5 | K12: 3.971230666 | L12: 15 | M12: 23.97123067 | O12: 3 | P12: 1 | Q12: =SUM(P$10:P12)/O12 -> 0.6666666667 | R12: -1.356278704
A13: 16.93812576 | B13: 9.786486592 | C13: 9.786486592 | D13: 16.3347989 | E13: 26.12128549 | J13: 5 | K13: 0.226690992 | L13: 15 | M13: 20.22669099 | O13: 4 | P13: 0 | Q13: =SUM(P$10:P13)/O13 -> 0.5 | R13: 5.894594497
A14: 17.29531342 | B14: 5.275858533 | C14: 5.275858533 | D14: 13.06522469 | E14: 18.34108322 | J14: 5 | K14: 2.964262082 | L14: 15 | M14: 22.96426208 | O14: 5 | P14: 1 | Q14: =SUM(P$10:P14)/O14 -> 0.6 | R14: -4.623178858
A15: 15.05613416 | B15: 12.71273718 | C15: 12.71273718 | D15: 12.24122488 | E15: 24.95396206 | J15: 5 | K15: 2.786687835 | L15: 15 | M15: 22.78668783 | O15: 6 | P15: 0 | Q15: =SUM(P$10:P15)/O15 -> 0.5 | R15: 2.167274228
A16: 6.4357668 | B16: 1.982384273 | C16: 1.982384273 | D16: 15.91371428 | E16: 17.89609855 | J16: 5 | K16: 4.122997677 | L16: 15 | M16: 24.12299768 | O16: 7 | P16: 1 | Q16: =SUM(P$10:P16)/O16 -> 0.5714285714 | R16: -6.226899123
A17: 3.857796637 | B17: 0.01732710504 | C17: 0.01732710504 | D17: 15.19230325 | E17: 15.20963036 | J17: 5 | K17: 3.113797477 | L17: 15 | M17: 23.11379748 | O17: 8 | P17: 1 | Q17: =SUM(P$10:P17)/O17 -> 0.625 | R17: -7.904167118
A18: 7.599299144 | B18: 15.11491892 | C18: 7.599299144 | D18: 15.27818669 | E18: 22.87748584 | J18: 5 | K18: 0.828338369 | L18: 15 | M18: 20.82833837 | O18: 9 | P18: 0 | Q18: =SUM(P$10:P18)/O18 -> 0.5555555556 | R18: 2.04914747
A19: 10.34666121 | B19: 6.145115557 | C19: 6.145115557 | D19: 14.0787493 | E19: 20.22386486 | J19: 5 | K19: 3.25485105 | L19: 15 | M19: 23.25485105 | O19: 10 | P19: 1 | Q19: =SUM(P$10:P19)/O19 -> 0.6 | R19: -3.030986195
A20: 0.07314183609 | B20: 8.68776007 | C20: 0.07314183609 | D20: 15.35877918 | E20: 15.43192101 | J20: 5 | K20: 1.12222847 | L20: 15 | M20: 21.12222847 | O20: 11 | P20: 1 | Q20: =SUM(P$10:P20)/O20 -> 0.6363636364 | R20: -5.690307457
A21: 8.065372121 | B21: 3.244400501 | C21: 3.244400501 | D21: 14.80977126 | E21: 18.05417176 | J21: 5 | K21: 3.594910614 | L21: 15 | M21: 23.59491061 | O21: 12 | P21: 1 | Q21: =SUM(P$10:P21)/O21 -> 0.6666666667 | R21: -5.540738852
A22: 10.74205283 | B22: 11.33138573 | C22: 10.74205283 | D22: 14.26770599 | E22: 25.00975882 | J22: 5 | K22: 4.514069244 | L22: 15 | M22: 24.51406924 | O22: 13 | P22: 0 | Q22: =SUM(P$10:P22)/O22 -> 0.6153846154 | R22: 0.4956895809
A23: 10.23116163 | B23: 4.592610271 | C23: 4.592610271 | D23: 13.63220436 | E23: 18.22481463 | J23: 5 | K23: 4.173389031 | L23: 15 | M23: 24.17338903 | O23: 14 | P23: 1 | Q23: =SUM(P$10:P23)/O23 -> 0.6428571429 | R23: -5.948574398
A24: 14.81953953 | B24: 8.542988033 | C24: 8.542988033 | D24: 14.60539239 | E24: 23.14838043 | J24: 5 | K24: 4.596500362 | L24: 15 | M24: 24.59650036 | O24: 15 | P24: 1 | Q24: =SUM(P$10:P24)/O24 -> 0.6666666667 | R24: -1.448119935
A25: 2.011385176 | B25: 18.76109128 | C25: 2.011385176 | D25: 16.7957385 | E25: 18.80712368 | J25: 5 | K25: 4.191141403 | L25: 15 | M25: 24.1911414 | O25: 16 | P25: 1 | Q25: =SUM(P$10:P25)/O25 -> 0.6875 | R25: -5.384017726
A26: 4.598793576 | B26: 4.816619836 | C26: 4.598793576 | D26: 17.97979464 | E26: 22.57858821 | J26: 5 | K26: 0.3640087517 | L26: 15 | M26: 20.36400875 | O26: 17 | P26: 0 | Q26: =SUM(P$10:P26)/O26 -> 0.6470588235 | R26: 2.214579462
A27: 8.902904544 | B27: 19.21074601 | C27: 8.902904544 | D27: 16.56275455 | E27: 25.4656591 | J27: 5 | K27: 0.07253556386 | L27: 15 | M27: 20.07253556 | O27: 18 | P27: 0 | Q27: =SUM(P$10:P27)/O27 -> 0.6111111111 | R27: 5.393123532
A28: 14.33978152 | B28: 16.55837715 | C28: 14.33978152 | D28: 13.60770205 | E28: 27.94748356 | J28: 5 | K28: 3.864343751 | L28: 15 | M28: 23.86434375 | O28: 19 | P28: 0 | Q28: =SUM(P$10:P28)/O28 -> 0.5789473684 | R28: 4.083139811
A29: 16.00571745 | B29: 4.02160485 | C29: 4.02160485 | D29: 15.58521559 | E29: 19.60682044 | J29: 5 | K29: 2.861926977 | L29: 15 | M29: 22.86192698 | O29: 20 | P29: 1 | Q29: =SUM(P$10:P29)/O29 -> 0.6 | R29: -3.255106533
A30: =A$7+RAND()*A$8 -> 15.42624872 | B30: 17.43458275 | C30: 15.42624872 | D30: 16.509736 | E30: 31.93598472 | J30: 5 | K30: 2.579666417 | L30: 15 | M30: 22.57966642 | O30: 21 | P30: 0 | Q30: =SUM(P$10:P30)/O30 -> 0.5714285714 | R30: 9.356318303
A31: 14.53187872 | B31: 1.204392808 | C31: 1.204392808 | D31: 14.9062187 | E31: 16.11061151 | J31: 5 | K31: 0.111503135 | L31: 15 | M31: 20.11150313 | O31: 22 | P31: 1 | Q31: =SUM(P$10:P31)/O31 -> 0.5909090909 | R31: -4.000891625
A32: 11.58817784 | B32: 12.36687994 | C32: 11.58817784 | D32: 13.27770837 | E32: 24.86588621 | J32: 5 | K32: 4.348921442 | L32: 15 | M32: 24.34892144 | O32: 23 | P32: 0 | Q32: =SUM(P$10:P32)/O32 -> 0.5652173913 | R32: 0.5169647699
A33: 10.48621043 | B33: 1.392587342 | C33: 1.392587342 | D33: 16.15929629 | E33: 17.55188364 | J33: 5 | K33: 0.3924205214 | L33: 15 | M33: 20.39242052 | O33: 24 | P33: 1 | Q33: =SUM(P$10:P33)/O33 -> 0.5833333333 | R33: -2.840536886
A34: 16.45892146 | B34: 10.15936483 | C34: 10.15936483 | D34: 12.01610536 | E34: 22.17547019 | J34: 5 | K34: 0.04337628779 | L34: 15 | M34: 20.04337629 | O34: 25 | P34: 0 | Q34: =SUM(P$10:P34)/O34 -> 0.56 | R34: 2.1320939
A35: 15.17330455 | B35: 9.482578734 | C35: 9.482578734 | D35: 14.08372569 | E35: 23.56630442 | J35: 5 | K35: 2.301812268 | L35: 15 | M35: 22.30181227 | O35: 26 | P35: 0 | Q35: =SUM(P$10:P35)/O35 -> 0.5384615385 | R35: 1.264492151
A36: 0.7492051972 | B36: 0.2481398644 | C36: 0.2481398644 | D36: 17.64768957 | E36: 17.89582944 | J36: 5 | K36: 2.517949361 | L36: 15 | M36: 22.51794936 | O36: 27 | P36: 1 | Q36: =SUM(P$10:P36)/O36 -> 0.5555555556 | R36: -4.622119925
A37: 14.02844518 | B37: 2.878524825 | C37: 2.878524825 | D37: 14.28555898 | E37: 17.1640838 | J37: 5 | K37: 3.030162584 | L37: 15 | M37: 23.03016258 | O37: 28 | P37: 1 | Q37: =SUM(P$10:P37)/O37 -> 0.5714285714 | R37: -5.866078779
A38: 7.525991622 | B38: 2.871680727 | C38: 2.871680727 | D38: 14.63927047 | E38: 17.5109512 | J38: 5 | K38: 0.7159880886 | L38: 15 | M38: 20.71598809 | O38: 29 | P38: 1 | Q38: =SUM(P$10:P38)/O38 -> 0.5862068966 | R38: -3.205036887
A39: 9.361514187 | B39: 13.10754514 | C39: 9.361514187 | D39: 12.32026706 | E39: 21.68178125 | J39: 5 | K39: 4.324949434 | L39: 15 | M39: 24.32494943 | O39: 30 | P39: 1 | Q39: =SUM(P$10:P39)/O39 -> 0.6 | R39: -2.643168184
A40: 3.933006186 | B40: 15.88495806 | C40: 3.933006186 | D40: 16.0110291 | E40: 19.94403528 | J40: 5 | K40: 0.740445827 | L40: 15 | M40: 20.74044583 | O40: 31 | P40: 1 | Q40: =SUM(P$10:P40)/O40 -> 0.6129032258 | R40: -0.7964105421
A41: 15.7753445 | B41: 2.263287652 | C41: 2.263287652 | D41: 12.71635386 | E41: 14.97964151 | J41: 5 | K41: 3.09484801 | L41: 15 | M41: 23.09484801 | O41: 32 | P41: 1 | Q41: =SUM(P$10:P41)/O41 -> 0.625 | R41: -8.115206499
A42: 7.994230287 | B42: 15.65091556 | C42: 7.994230287 | D42: 17.22304651 | E42: 25.2172768 | J42: 5 | K42: 3.526517666 | L42: 15 | M42: 23.52651767 | O42: 33 | P42: 0 | Q42: =SUM(P$10:P42)/O42 -> 0.6060606061 | R42: 1.69075913
A43: 6.229582458 | B43: 3.454847954 | C43: 3.454847954 | D43: 16.46238904 | E43: 19.917237 | J43: 5 | K43: 2.815498281 | L43: 15 | M43: 22.81549828 | O43: 34 | P43: 1 | Q43: =SUM(P$10:P43)/O43 -> 0.6176470588 | R43: -2.898261286
A44: 3.414757067 | B44: 7.21269669 | C44: 3.414757067 | D44: 14.95315793 | E44: 18.367915 | J44: 5 | K44: 3.936270304 | L44: 15 | M44: 23.9362703 | O44: 35 | P44: 1 | Q44: =SUM(P$10:P44)/O44 -> 0.6285714286 | R44: -5.568355307
A45: 16.24766164 | B45: 14.97598868 | C45: 14.97598868 | D45: 16.08833506 | E45: 31.06432373 | J45: 5 | K45: 0.8257165531 | L45: 15 | M45: 20.82571655 | O45: 36 | P45: 0 | Q45: =SUM(P$10:P45)/O45 -> 0.6111111111 | R45: 10.23860718
A46: 7.722444547 | B46: 2.900508705 | C46: 2.900508705 | D46: 14.60698951 | E46: 17.50749822 | J46: 5 | K46: 4.055943022 | L46: 15 | M46: 24.05594302 | O46: 37 | P46: 1 | Q46: =SUM(P$10:P46)/O46 -> 0.6216216216 | R46: -6.548444807
A47: 2.386423323 | B47: 12.76736481 | C47: 2.386423323 | D47: 12.71168966 | E47: 15.09811298 | J47: 5 | K47: 2.903468968 | L47: 15 | M47: 22.90346897 | O47: 38 | P47: 1 | Q47: =SUM(P$10:P47)/O47 -> 0.6315789474 | R47: -7.805355984
A48: 17.28564322 | B48: 16.61661135 | C48: 16.61661135 | D48: 13.05621769 | E48: 29.67282904 | J48: 5 | K48: 4.562636471 | L48: 15 | M48: 24.56263647 | O48: 39 | P48: 0 | Q48: =SUM(P$10:P48)/O48 -> 0.6153846154 | R48: 5.11019257
A49: 18.7577893 | B49: 3.487420542 | C49: 3.487420542 | D49: 13.54320282 | E49: 17.03062336 | J49: 5 | K49: 2.560068951 | L49: 15 | M49: 22.56006895 | O49: 40 | P49: 1 | Q49: =SUM(P$10:P49)/O49 -> 0.625 | R49: -5.52944559
A50: =A$7+RAND()*A$8 -> 4.174997798 | B50: 11.56533954 | C50: 4.174997798 | D50: 12.09346689 | E50: 16.26846469 | J50: 5 | K50: 1.970440304 | L50: 15 | M50: 21.9704403 | O50: 41 | P50: 1 | Q50: =SUM(P$10:P50)/O50 -> 0.6341463415 | R50: -5.701975614
A51: 8.703586904 | B51: 18.33934881 | C51: 8.703586904 | D51: 17.92342971 | E51: 26.62701661 | J51: 5 | K51: 4.968929834 | L51: 15 | M51: 24.96892983 | O51: 42 | P51: 0 | Q51: =SUM(P$10:P51)/O51 -> 0.619047619 | R51: 1.658086775
A52: 0.08531028231 | B52: 3.313451641 | C52: 0.08531028231 | D52: 12.49011461 | E52: 12.57542489 | J52: 5 | K52: 3.604190014 | L52: 15 | M52: 23.60419001 | O52: 43 | P52: 1 | Q52: =SUM(P$10:P52)/O52 -> 0.6279069767 | R52: -11.02876512
A53: 2.403834335 | B53: 3.710515631 | C53: 2.403834335 | D53: 15.92911466 | E53: 18.332949 | J53: 5 | K53: 1.798124014 | L53: 15 | M53: 21.79812401 | O53: 44 | P53: 1 | Q53: =SUM(P$10:P53)/O53 -> 0.6363636364 | R53: -3.465175018
A54: 17.0973784 | B54: 18.36830888 | C54: 17.0973784 | D54: 14.45731091 | E54: 31.55468931 | J54: 5 | K54: 3.062171341 | L54: 15 | M54: 23.06217134 | O54: 45 | P54: 0 | Q54: =SUM(P$10:P54)/O54 -> 0.6222222222 | R54: 8.492517964
A55: 0.9554568366 | B55: 2.577352184 | C55: 0.9554568366 | D55: 14.01905701 | E55: 14.97451384 | J55: 5 | K55: 1.378637147 | L55: 15 | M55: 21.37863715 | O55: 46 | P55: 1 | Q55: =SUM(P$10:P55)/O55 -> 0.6304347826 | R55: -6.404123304
A56: 2.020732602 | B56: 5.720996478 | C56: 2.020732602 | D56: 14.15097544 | E56: 16.17170805 | J56: 5 | K56: 3.004925971 | L56: 15 | M56: 23.00492597 | O56: 47 | P56: 1 | Q56: =SUM(P$10:P56)/O56 -> 0.6382978723 | R56: -6.833217924
A57: 14.99117912 | B57: 16.03792408 | C57: 14.99117912 | D57: 16.40034017 | E57: 31.3915193 | J57: 5 | K57: 4.183183602 | L57: 15 | M57: 24.1831836 | O57: 48 | P57: 0 | Q57: =SUM(P$10:P57)/O57 -> 0.625 | R57: 7.208335694
A58: 18.75979836 | B58: 4.91171565 | C58: 4.91171565 | D58: 12.54392241 | E58: 17.45563806 | J58: 5 | K58: 2.187114252 | L58: 15 | M58: 22.18711425 | O58: 49 | P58: 1 | Q58: =SUM(P$10:P58)/O58 -> 0.6326530612 | R58: -4.731476196
A59: 7.857496121 | B59: 2.848433882 | C59: 2.848433882 | D59: 13.77387869 | E59: 16.62231257 | J59: 5 | K59: 3.308711335 | L59: 15 | M59: 23.30871134 | O59: 50 | P59: 1 | Q59: =SUM(P$10:P59)/O59 -> 0.64 | R59: -6.686398763
A60: 5.727865256 | B60: 18.88338175 | C60: 5.727865256 | D60: 17.88417319 | E60: 23.61203844 | J60: 5 | K60: 0.8769866497 | L60: 15 | M60: 20.87698665 | O60: 51 | P60: 0 | Q60: =SUM(P$10:P60)/O60 -> 0.6274509804 | R60: 2.735051792
A61: 18.10200265 | B61: 15.50741905 | C61: 15.50741905 | D61: 13.58166237 | E61: 29.08908142 | J61: 5 | K61: 3.677984958 | L61: 15 | M61: 23.67798496 | O61: 52 | P61: 0 | Q61: =SUM(P$10:P61)/O61 -> 0.6153846154 | R61: 5.411096464
A62: 13.59046973 | B62: 13.60244696 | C62: 13.59046973 | D62: 16.11953911 | E62: 29.71000884 | J62: 5 | K62: 2.964365529 | L62: 15 | M62: 22.96436553 | O62: 53 | P62: 0 | Q62: =SUM(P$10:P62)/O62 -> 0.6037735849 | R62: 6.74564331
A63: 3.319467703 | B63: 2.089550385 | C63: 2.089550385 | D63: 12.48535557 | E63: 14.57490596 | J63: 5 | K63: 3.638824889 | L63: 15 | M63: 23.63882489 | O63: 54 | P63: 1 | Q63: =SUM(P$10:P63)/O63 -> 0.6111111111 | R63: -9.063918933
A64: 4.653626608 | B64: 6.727717638 | C64: 4.653626608 | D64: 12.35844057 | E64: 17.01206718 | J64: 5 | K64: 1.566647345 | L64: 15 | M64: 21.56664735 | O64: 55 | P64: 1 | Q64: =SUM(P$10:P64)/O64 -> 0.6181818182 | R64: -4.55458017
A65: 0.2921040729 | B65: 11.8174748 | C65: 0.2921040729 | D65: 16.81121066 | E65: 17.10331473 | J65: 5 | K65: 0.379529358 | L65: 15 | M65: 20.37952936 | O65: 56 | P65: 1 | Q65: =SUM(P$10:P65)/O65 -> 0.625 | R65: -3.276214627
A66: 5.481370051 | B66: 6.710448836 | C66: 5.481370051 | D66: 16.96992461 | E66: 22.45129466 | J66: 5 | K66: 0.09660978576 | L66: 15 | M66: 20.09660979 | O66: 57 | P66: 0 | Q66: =SUM(P$10:P66)/O66 -> 0.6140350877 | R66: 2.354684872
A67: 19.41702033 | B67: 1.603260995 | C67: 1.603260995 | D67: 12.62644964 | E67: 14.22971063 | J67: 5 | K67: 1.091204785 | L67: 15 | M67: 21.09120479 | O67: 58 | P67: 1 | Q67: =SUM(P$10:P67)/O67 -> 0.6206896552 | R67: -6.861494154
A68: 9.8499415 | B68: 8.999960298 | C68: 8.999960298 | D68: 16.26030609 | E68: 25.26026639 | J68: 5 | K68: 1.647439998 | L68: 15 | M68: 21.64744 | O68: 59 | P68: 0 | Q68: =SUM(P$10:P68)/O68 -> 0.6101694915 | R68: 3.612826392
A69: 10.98123217 | B69: 10.91932021 | C69: 10.91932021 | D69: 16.56464733 | E69: 27.48396754 | J69: 5 | K69: 4.552284451 | L69: 15 | M69: 24.55228445 | O69: 60 | P69: 0 | Q69: =SUM(P$10:P69)/O69 -> 0.6 | R69: 2.931683089
A70: =A$7+RAND()*A$8 -> 10.57824356 | B70: 9.012261586 | C70: 9.012261586 | D70: 16.10445302 | E70: 25.11671461 | J70: 5 | K70: 2.795382372 | L70: 15 | M70: 22.79538237 | O70: 61 | P70: 0 | Q70: =SUM(P$10:P70)/O70 -> 0.5901639344 | R70: 2.321332237
A71: 15.84244829 | B71: 6.855755432 | C71: 6.855755432 | D71: 17.63209701 | E71: 24.48785245 | J71: 5 | K71: 3.786666111 | L71: 15 | M71: 23.78666611 | O71: 62 | P71: 0 | Q71: =SUM(P$10:P71)/O71 -> 0.5806451613 | R71: 0.7011863356
A72: 4.268778651 | B72: 11.34041694 | C72: 4.268778651 | D72: 15.08030308 | E72: 19.34908173 | J72: 5 | K72: 2.966501575 | L72: 15 | M72: 22.96650157 | O72: 63 | P72: 1 | Q72: =SUM(P$10:P72)/O72 -> 0.5873015873 | R72: -3.617419849
A73: 0.07127948413 | B73: 15.64477295 | C73: 0.07127948413 | D73: 17.93137869 | E73: 18.00265817 | J73: 5 | K73: 4.793319021 | L73: 15 | M73: 24.79331902 | O73: 64 | P73: 1 | Q73: =SUM(P$10:P73)/O73 -> 0.59375 | R73: -6.790660848
A74: 14.24741661 | B74: 12.18558009 | C74: =MIN(A74:B74) -> 12.18558009 | D74: =D$7+RAND()*D$8 -> 16.89721006 | E74: =D74+C74 -> 29.08279015 | J74: 5 | K74: =K$7+RAND()*K$8 -> 2.637862864 | L74: 15 | M74: =L74+K74+J74 -> 22.63786286 | O74: 65 | P74: =(E74<M74)*1 -> 0 | Q74: =SUM(P$10:P74)/O74 -> 0.5846153846 | R74: =E74-M74 -> 6.444927286
A75: 3.042719643 | B75: 6.235647988 | C75: 3.042719643 | D75: 16.81742428 | E75: 19.86014393 | J75: 5 | K75: 0.2383641092 | L75: 15 | M75: 20.23836411 | O75: =O74+1 -> 66 | P75: 1 | Q75: =SUM(P$10:P75)/O75 -> 0.5909090909 | R75: -0.3782201817
A76: 2.13757626 | B76: 8.519036927 | C76: 2.13757626 | D76: 17.42278249 | E76: 19.56035875 | J76: 5 | K76: 1.330385413 | L76: 15 | M76: 21.33038541 | O76: 67 | P76: 1 | Q76: =SUM(P$10:P76)/O76 -> 0.5970149254 | R76: -1.770026664
A77: 0.3868771278 | B77: 17.49479832 | C77: 0.3868771278 | D77: 16.08999074 | E77: 16.47686787 | J77: 5 | K77: 2.308736773 | L77: 15 | M77: 22.30873677 | O77: 68 | P77: 1 | Q77: =SUM(P$10:P77)/O77 -> 0.6029411765 | R77: -5.831868906
A78: 8.640717202 | B78: 13.83023557 | C78: 8.640717202 | D78: 13.29931634 | E78: 21.94003354 | J78: 5 | K78: 4.896700172 | L78: 15 | M78: 24.89670017 | O78: 69 | P78: 1 | Q78: =SUM(P$10:P78)/O78 -> 0.6086956522 | R78: -2.956666634
A79: 11.05981414 | B79: 8.151779161 | C79: 8.151779161 | D79: 15.98093249 | E79: 24.13271165 | J79: 5 | K79: 1.444108058 | L79: 15 | M79: 21.44410806 | O79: 70 | P79: 0 | Q79: =SUM(P$10:P79)/O79 -> 0.6 | R79: 2.688603589
A80: 19.3170986 | B80: 6.404912111 | C80: 6.404912111 | D80: 15.81897056 | E80: 22.22388267 | J80: 5 | K80: 2.752147141 | L80: 15 | M80: 22.75214714 | O80: 71 | P80: 1 | Q80: =SUM(P$10:P80)/O80 -> 0.6056338028 | R80: -0.5282644716
A81: 8.095363952 | B81: 2.718348744 | C81: 2.718348744 | D81: 13.34101353 | E81: 16.05936227 | J81: 5 | K81: 2.36258075 | L81: 15 | M81: 22.36258075 | O81: 72 | P81: 1 | Q81: =SUM(P$10:P81)/O81 -> 0.6111111111 | R81: -6.303218481
A82: 4.063163339 | B82: 9.439461168 | C82: 4.063163339 | D82: 14.24554052 | E82: 18.30870386 | J82: 5 | K82: 4.461728527 | L82: 15 | M82: 24.46172853 | O82: 73 | P82: 1 | Q82: =SUM(P$10:P82)/O82 -> 0.6164383562 | R82: -6.153024664
A83: 12.85760249 | B83: 1.112331222 | C83: 1.112331222 | D83: 16.74547733 | E83: 17.85780855 | J83: 5 | K83: 3.575909585 | L83: 15 | M83: 23.57590958 | O83: 74 | P83: 1 | Q83: =SUM(P$10:P83)/O83 -> 0.6216216216 | R83: -5.718101035
A84: 11.27283429 | B84: 18.31850014 | C84: 11.27283429 | D84: 13.25105428 | E84: 24.52388857 | J84: 5 | K84: 1.94247126 | L84: 15 | M84: 21.94247126 | O84: 75 | P84: 0 | Q84: =SUM(P$10:P84)/O84 -> 0.6133333333 | R84: 2.581417309
A85: 17.93640161 | B85: 15.13448291 | C85: 15.13448291 | D85: 13.5518642 | E85: 28.68634711 | J85: 5 | K85: 0.264428228 | L85: 15 | M85: 20.26442823 | O85: 76 | P85: 0 | Q85: =SUM(P$10:P85)/O85 -> 0.6052631579 | R85: 8.421918878
A86: 9.755147935 | B86: 15.44019435 | C86: 9.755147935 | D86: 12.3106593 | E86: 22.06580723 | J86: 5 | K86: 4.885936468 | L86: 15 | M86: 24.88593647 | O86: 77 | P86: 1 | Q86: =SUM(P$10:P86)/O86 -> 0.6103896104 | R86: -2.820129234
A87: 17.38688759 | B87: 0.5202757789 | C87: 0.5202757789 | D87: 13.13963708 | E87: 13.65991286 | J87: 5 | K87: 3.452305159 | L87: 15 | M87: 23.45230516 | O87: 78 | P87: 1 | Q87: =SUM(P$10:P87)/O87 -> 0.6153846154 | R87: -9.792392298
A88: 5.509576196 | B88: 7.058924529 | C88: 5.509576196 | D88: 13.07239694 | E88: 18.58197313 | J88: 5 | K88: 4.191085048 | L88: 15 | M88: 24.19108505 | O88: 79 | P88: 1 | Q88: =SUM(P$10:P88)/O88 -> 0.6202531646 | R88: -5.609111914
A89: 13.57291437 | B89: 0.2413349299 | C89: 0.2413349299 | D89: 14.50736078 | E89: 14.74869571 | J89: 5 | K89: 3.230759912 | L89: 15 | M89: 23.23075991 | O89: 80 | P89: 1 | Q89: =SUM(P$10:P89)/O89 -> 0.625 | R89: -8.482064201
A90: =A$7+RAND()*A$8 -> 13.71465272 | B90: 6.472257058 | C90: 6.472257058 | D90: 15.13446537 | E90: 21.60672242 | J90: 5 | K90: 4.847484753 | L90: 15 | M90: 24.84748475 | O90: 81 | P90: 1 | Q90: =SUM(P$10:P90)/O90 -> 0.6296296296 | R90: -3.24076233
A91: 7.454991131 | B91: 11.73592665 | C91: 7.454991131 | D91: 17.00135582 | E91: 24.45634696 | J91: 5 | K91: 1.887756392 | L91: 15 | M91: 21.88775639 | O91: 82 | P91: 0 | Q91: =SUM(P$10:P91)/O91 -> 0.6219512195 | R91: 2.568590563
A92: 7.230559459 | B92: 3.415377312 | C92: 3.415377312 | D92: 15.3655122 | E92: 18.78088952 | J92: 5 | K92: 3.474762525 | L92: 15 | M92: 23.47476253 | O92: 83 | P92: 1 | Q92: =SUM(P$10:P92)/O92 -> 0.6265060241 | R92: -4.693873009
A93: 1.054049678 | B93: 17.27341348 | C93: 1.054049678 | D93: 15.53421443 | E93: 16.58826411 | J93: 5 | K93: 1.917937648 | L93: 15 | M93: 21.91793765 | O93: 84 | P93: 1 | Q93: =SUM(P$10:P93)/O93 -> 0.630952381 | R93: -5.32967354
A94: 14.20108725 | B94: 10.21424852 | C94: 10.21424852 | D94: 14.06681975 | E94: 24.28106827 | J94: 5 | K94: 1.657263109 | L94: 15 | M94: 21.65726311 | O94: 85 | P94: 0 | Q94: =SUM(P$10:P94)/O94 -> 0.6235294118 | R94: 2.623805162
A95: 13.56352958 | B95: 12.55418417 | C95: 12.55418417 | D95: 12.26365968 | E95: 24.81784384 | J95: 5 | K95: 2.627149375 | L95: 15 | M95: 22.62714937 | O95: 86 | P95: 0 | Q95: =SUM(P$10:P95)/O95 -> 0.6162790698 | R95: 2.19069447
A96: 12.7796844 | B96: 0.4863909368 | C96: 0.4863909368 | D96: 14.00472992 | E96: 14.49112085 | J96: 5 | K96: 0.3541694688 | L96: 15 | M96: 20.35416947 | O96: 87 | P96: 1 | Q96: =SUM(P$10:P96)/O96 -> 0.6206896552 | R96: -5.863048615
A97: 1.988993454 | B97: 1.181747013 | C97: 1.181747013 | D97: 12.99085888 | E97: 14.17260589 | J97: 5 | K97: 3.62140329 | L97: 15 | M97: 23.62140329 | O97: 88 | P97: 1 | Q97: =SUM(P$10:P97)/O97 -> 0.625 | R97: -9.448797397
A98: 18.70728638 | B98: 16.07675427 | C98: 16.07675427 | D98: 15.04742214 | E98: 31.12417641 | J98: 5 | K98: 1.883527669 | L98: 15 | M98: 21.88352767 | O98: 89 | P98: 0 | Q98: =SUM(P$10:P98)/O98 -> 0.6179775281 | R98: 9.240648744
A99: 1.318124787 | B99: 10.36921536 | C99: 1.318124787 | D99: 14.82848175 | E99: 16.14660654 | J99: 5 | K99: 3.180772697 | L99: 15 | M99: 23.1807727 | O99: 90 | P99: 1 | Q99: =SUM(P$10:P99)/O99 -> 0.6222222222 | R99: -7.03416616
A100: 4.536319358 | B100: 10.88207056 | C100: 4.536319358 | D100: 16.85620964 | E100: 21.39252899 | J100: 5 | K100: 3.050961934 | L100: 15 | M100: 23.05096193 | O100: 91 | P100: 1 | Q100: =SUM(P$10:P100)/O100 -> 0.6263736264 | R100: -1.65843294
A101: 15.10957823 | B101: 7.924990272 | C101: 7.924990272 | D101: 14.24799857 | E101: 22.17298884 | J101: 5 | K101: 4.069410181 | L101: 15 | M101: 24.06941018 | O101: 92 | P101: 1 | Q101: =SUM(P$10:P101)/O101 -> 0.6304347826 | R101: -1.896421337
A102: 2.223630683 | B102: 9.589928154 | C102: 2.223630683 | D102: 13.76135869 | E102: 15.98498937 | J102: 5 | K102: 2.649607198 | L102: 15 | M102: 22.6496072 | O102: 93 | P102: 1 | Q102: =SUM(P$10:P102)/O102 -> 0.6344086022 | R102: -6.664617825
A103: 3.748801814 | B103: 14.41490285 | C103: 3.748801814 | D103: 13.31032615 | E103: 17.05912796 | J103: 5 | K103: 2.035935996 | L103: 15 | M103: 22.035936 | O103: 94 | P103: 1 | Q103: =SUM(P$10:P103)/O103 -> 0.6382978723 | R103: -4.976808037
A104: 13.06645973 | B104: 10.5976736 | C104: 10.5976736 | D104: 15.37725175 | E104: 25.97492535 | J104: 5 | K104: 2.544704122 | L104: 15 | M104: 22.54470412 | O104: 95 | P104: 0 | Q104: =SUM(P$10:P104)/O104 -> 0.6315789474 | R104: 3.430221228
A105: 13.47393473 | B105: 14.64593358 | C105: 13.47393473 | D105: 16.64468634 | E105: 30.11862107 | J105: 5 | K105: 0.6263854674 | L105: 15 | M105: 20.62638547 | O105: 96 | P105: 0 | Q105: =SUM(P$10:P105)/O105 -> 0.625 | R105: 9.4922356
A106: 4.182062774 | B106: 8.743579015 | C106: 4.182062774 | D106: 12.64780457 | E106: 16.82986734 | J106: 5 | K106: 4.625626232 | L106: 15 | M106: 24.62562623 | O106: 97 | P106: 1 | Q106: =SUM(P$10:P106)/O106 -> 0.6288659794 | R106: -7.795758887
A107: 7.830044091 | B107: 12.30751363 | C107: 7.830044091 | D107: 14.28717759 | E107: 22.11722168 | J107: 5 | K107: 3.840872768 | L107: 15 | M107: 23.84087277 | O107: 98 | P107: 1 | Q107: =SUM(P$10:P107)/O107 -> 0.6326530612 | R107: -1.723651092
A108: 10.47541026 | B108: 6.296562719 | C108: 6.296562719 | D108: 13.48875416 | E108: 19.78531688 | J108: 5 | K108: 2.027953115 | L108: 15 | M108: 22.02795312 | O108: 99 | P108: 1 | Q108: =SUM(P$10:P108)/O108 -> 0.6363636364 | R108: -2.242636232
A109: 8.07805215 | B109: 12.55639187 | C109: 8.07805215 | D109: 12.98993558 | E109: 21.06798773 | J109: 5 | K109: 4.701107196 | L109: 15 | M109: 24.7011072 | O109: 100 | P109: 1 | Q109: =SUM(P$10:P109)/O109 -> 0.64 | R109: -3.633119466
A110: =A$7+RAND()*A$8 -> 16.56119264 | B110: 12.98283966 | C110: 12.98283966 | D110: 14.97592806 | E110: 27.95876772 | J110: 5 | K110: 3.026113981 | L110: 15 | M110: 23.02611398 | O110: 101 | P110: 0 | Q110: =SUM(P$10:P110)/O110 -> 0.6336633663 | R110: 4.932653743
A111: 2.657325719 | B111: 7.253261261 | C111: 2.657325719 | D111: 17.49269854 | E111: 20.15002426 | J111: 5 | K111: 1.303582073 | L111: 15 | M111: 21.30358207 | O111: 102 | P111: 1 | Q111: =SUM(P$10:P111)/O111 -> 0.637254902 | R111: -1.153557816
A112: 10.91486145 | B112: 6.251822029 | C112: 6.251822029 | D112: 16.88785658 | E112: 23.13967861 | J112: 5 | K112: 4.920555157 | L112: 15 | M112: 24.92055516 | O112: 103 | P112: 1 | Q112: =SUM(P$10:P112)/O112 -> 0.640776699 | R112: -1.780876548
A113: 2.437971474 | B113: 0.7832974941 | C113: 0.7832974941 | D113: 15.3998115 | E113: 16.18310899 | J113: 5 | K113: 3.365594827 | L113: 15 | M113: 23.36559483 | O113: 104 | P113: 1 | Q113: =SUM(P$10:P113)/O113 -> 0.6442307692 | R113: -7.182485834
A114: 11.67500379 | B114: 5.552181448 | C114: 5.552181448 | D114: 12.2037696 | E114: 17.75595105 | J114: 5 | K114: 0.145330625 | L114: 15 | M114: 20.14533063 | O114: 105 | P114: 1 | Q114: =SUM(P$10:P114)/O114 -> 0.6476190476 | R114: -2.389379576
A115: 16.88238968 | B115: 10.51788652 | C115: 10.51788652 | D115: 12.94462732 | E115: 23.46251383 | J115: 5 | K115: 0.9316440105 | L115: 15 | M115: 20.93164401 | O115: 106 | P115: 0 | Q115: =SUM(P$10:P115)/O115 -> 0.641509434 | R115: 2.530869823
A116: 5.768414037 | B116: 19.93749878 | C116: 5.768414037 | D116: 14.4994499 | E116: 20.26786394 | J116: 5 | K116: 1.414040559 | L116: 15 | M116: 21.41404056 | O116: 107 | P116: 1 | Q116: =SUM(P$10:P116)/O116 -> 0.6448598131 | R116: -1.14617662
A117: 2.910167823 | B117: 15.60511832 | C117: 2.910167823 | D117: 15.30786318 | E117: 18.218031 | J117: 5 | K117: 3.576779854 | L117: 15 | M117: 23.57677985 | O117: 108 | P117: 1 | Q117: =SUM(P$10:P117)/O117 -> 0.6481481481 | R117: -5.358748849
A118: 2.579772285 | B118: 19.65617062 | C118: 2.579772285 | D118: 15.91738319 | E118: 18.49715548 | J118: 5 | K118: 0.8387798849 | L118: 15 | M118: 20.83877988 | O118: 109 | P118: 1 | Q118: =SUM(P$10:P118)/O118 -> 0.6513761468 | R118: -2.341624409
A119: 9.825243465 | B119: 2.661724802 | C119: 2.661724802 | D119: 13.51573457 | E119: 16.17745938 | J119: 5 | K119: 1.840542838 | L119: 15 | M119: 21.84054284 | O119: 110 | P119: 1 | Q119: =SUM(P$10:P119)/O119 -> 0.6545454545 | R119: -5.663083463
A120: 14.05601903 | B120: 5.433453493 | C120: 5.433453493 | D120: 13.65080832 | E120: 19.08426181 | J120: 5 | K120: 2.817869688 | L120: 15 | M120: 22.81786969 | O120: 111 | P120: 1 | Q120: =SUM(P$10:P120)/O120 -> 0.6576576577 | R120: -3.733607874
A121: 8.630580052 | B121: 2.475775409 | C121: 2.475775409 | D121: 17.7629561 | E121: 20.23873151 | J121: 5 | K121: 4.356349494 | L121: 15 | M121: 24.35634949 | O121: 112 | P121: 1 | Q121: =SUM(P$10:P121)/O121 -> 0.6607142857 | R121: -4.11761798
A122: 5.793339491 | B122: 15.31206215 | C122: 5.793339491 | D122: 12.78394462 | E122: 18.57728411 | J122: 5 | K122: 4.108738273 | L122: 15 | M122: 24.10873827 | O122: 113 | P122: 1 | Q122: =SUM(P$10:P122)/O122 -> 0.6637168142 | R122: -5.531454166
A123: 16.96365466 | B123: 12.54793973 | C123: 12.54793973 | D123: 17.79217959 | E123: 30.34011932 | J123: 5 | K123: 0.5457755177 | L123: 15 | M123: 20.54577552 | O123: 114 | P123: 0 | Q123: =SUM(P$10:P123)/O123 -> 0.6578947368 | R123: 9.794343802
A124: 3.69429641 | B124: 13.98505035 | C124: 3.69429641 | D124: 14.42498712 | E124: 18.11928353 | J124: 5 | K124: 4.04761519 | L124: 15 | M124: 24.04761519 | O124: 115 | P124: 1 | Q124: =SUM(P$10:P124)/O124 -> 0.6608695652 | R124: -5.928331656
A125: 2.528833946 | B125: 2.102651596 | C125: 2.102651596 | D125: 13.6826335 | E125: 15.7852851 | J125: 5 | K125: 4.796222813 | L125: 15 | M125: 24.79622281 | O125: 116 | P125: 1 | Q125: =SUM(P$10:P125)/O125 -> 0.6637931034 | R125: -9.010937718
A126: 14.93798708 | B126: 10.5483608 | C126: 10.5483608 | D126: 14.60869629 | E126: 25.15705709 | J126: 5 | K126: 0.3141496101 | L126: 15 | M126: 20.31414961 | O126: 117 | P126: 0 | Q126: =SUM(P$10:P126)/O126 -> 0.6581196581 | R126: 4.842907476
A127: 19.34485077 | B127: 9.579820271 | C127: 9.579820271 | D127: 17.87288472 | E127: 27.45270499 | J127: 5 | K127: 0.3707153211 | L127: 15 | M127: 20.37071532 | O127: 118 | P127: 0 | Q127: =SUM(P$10:P127)/O127 -> 0.6525423729 | R127: 7.081989673
A128: 9.47080397 | B128: 5.157852455 | C128: 5.157852455 | D128: 15.85376207 | E128: 21.01161452 | J128: 5 | K128: 0.4426701656 | L128: 15 | M128: 20.44267017 | O128: 119 | P128: 0 | Q128: =SUM(P$10:P128)/O128 -> 0.6470588235 | R128: 0.5689443582
A129: 9.167966928 | B129: 6.733583326 | C129: 6.733583326 | D129: 13.95664423 | E129: 20.69022755 | J129: 5 | K129: 0.6980512453 | L129: 15 | M129: 20.69805125 | O129: 120 | P129: 1 | Q129: =SUM(P$10:P129)/O129 -> 0.65 | R129: -0.007823694207
A130: =A$7+RAND()*A$8 -> 3.6194854 | B130: 5.166409732 | C130: 3.6194854 | D130: 14.64223417 | E130: 18.26171957 | J130: 5 | K130: 0.5522511408 | L130: 15 | M130: 20.55225114 | O130: 121 | P130: 1 | Q130: =SUM(P$10:P130)/O130 -> 0.652892562 | R130: -2.290531571
A131: 18.31846071 | B131: 6.885686813 | C131: 6.885686813 | D131: 15.71785461 | E131: 22.60354142 | J131: 5 | K131: 2.132402933 | L131: 15 | M131: 22.13240293 | O131: 122 | P131: 0 | Q131: =SUM(P$10:P131)/O131 -> 0.6475409836 | R131: 0.4711384869
A132: 13.90596607 | B132: 13.19189476 | C132: 13.19189476 | D132: 15.71556835 | E132: 28.90746311 | J132: 5 | K132: 3.660148585 | L132: 15 | M132: 23.66014859 | O132: 123 | P132: 0 | Q132: =SUM(P$10:P132)/O132 -> 0.6422764228 | R132: 5.24731452
A133: 9.367154646 | B133: 4.704655504 | C133: 4.704655504 | D133: 17.34966537 | E133: 22.05432087 | J133: 5 | K133: 2.540364666 | L133: 15 | M133: 22.54036467 | O133: 124 | P133: 1 | Q133: =SUM(P$10:P133)/O133 -> 0.6451612903 | R133: -0.4860437926
A134: 7.801317024 | B134: 16.08842316 | C134: 7.801317024 | D134: 12.29538208 | E134: 20.0966991 | J134: 5 | K134: 2.532266938 | L134: 15 | M134: 22.53226694 | O134: 125 | P134: 1 | Q134: =SUM(P$10:P134)/O134 -> 0.648 | R134: -2.435567835
A135: 6.25934692 | B135: 8.609524858 | C135: 6.25934692 | D135: 14.13982481 | E135: 20.39917173 | J135: 5 | K135: 0.5321266052 | L135: 15 | M135: 20.53212661 | O135: 126 | P135: 1 | Q135: =SUM(P$10:P135)/O135 -> 0.6507936508 | R135: -0.1329548717
A136: 12.94567502 | B136: 12.52939433 | C136: 12.52939433 | D136: 12.84573146 | E136: 25.3751258 | J136: 5 | K136: 0.632958873 | L136: 15 | M136: 20.63295887 | O136: 127 | P136: 0 | Q136: =SUM(P$10:P136)/O136 -> 0.6456692913 | R136: 4.742166925
A137: 11.9637819 | B137: 0.9877617597 | C137: 0.9877617597 | D137: 16.87457876 | E137: 17.86234052 | J137: 5 | K137: 1.606360204 | L137: 15 | M137: 21.6063602 | O137: 128 | P137: 1 | Q137: =SUM(P$10:P137)/O137 -> 0.6484375 | R137: -3.744019687
A138: 10.08960441 | B138: 19.15973156 | C138: =MIN(A138:B138) -> 10.08960441 | D138: =D$7+RAND()*D$8 -> 17.27267752 | E138: =D138+C138 -> 27.36228194 | J138: 5 | K138: =K$7+RAND()*K$8 -> 1.087560995 | L138: 15 | M138: =L138+K138+J138 -> 21.08756099 | O138: 129 | P138: =(E138<M138)*1 -> 0 | Q138: =SUM(P$10:P138)/O138 -> 0.6434108527 | R138: =E138-M138 -> 6.274720943
A139: 7.344825614 | B139: 13.47322065 | C139: 7.344825614 | D139: 16.88594759 | E139: 24.23077321 | J139: 5 | K139: 0.8026831062 | L139: 15 | M139: 20.80268311 | O139: =O138+1 -> 130 | P139: 0 | Q139: =SUM(P$10:P139)/O139 -> 0.6384615385 | R139: 3.428090102
A140: 12.66189042 | B140: 4.803109868 | C140: 4.803109868 | D140: 14.94271572 | E140: 19.74582558 | J140: 5 | K140: 4.697688665 | L140: 15 | M140: 24.69768866 | O140: 131 | P140: 1 | Q140: =SUM(P$10:P140)/O140 -> 0.641221374 | R140: -4.951863082
A141: 7.428664341 | B141: 12.38817129 | C141: 7.428664341 | D141: 16.12226018 | E141: 23.55092452 | J141: 5 | K141: 0.3544692194 | L141: 15 | M141: 20.35446922 | O141: 132 | P141: 0 | Q141: =SUM(P$10:P141)/O141 -> 0.6363636364 | R141: 3.196455298
A142: 1.243593083 | B142: 10.02556139 | C142: 1.243593083 | D142: 15.1730384 | E142: 16.41663148 | J142: 5 | K142: 1.315635867 | L142: 15 | M142: 21.31563587 | O142: 133 | P142: 1 | Q142: =SUM(P$10:P142)/O142 -> 0.6390977444 | R142: -4.899004384
A143: 6.308610667 | B143: 15.96134867 | C143: 6.308610667 | D143: 17.47455103 | E143: 23.7831617 | J143: 5 | K143: 2.769067229 | L143: 15 | M143: 22.76906723 | O143: 134 | P143: 0 | Q143: =SUM(P$10:P143)/O143 -> 0.6343283582 | R143: 1.014094473
A144: 18.05029199 | B144: 10.89907064 | C144: 10.89907064 | D144: 14.936154 | E144: 25.83522463 | J144: 5 | K144: 1.652837578 | L144: 15 | M144: 21.65283758 | O144: 135 | P144: 0 | Q144: =SUM(P$10:P144)/O144 -> 0.6296296296 | R144: 4.182387055
A145: 15.05226395 | B145: 7.234261692 | C145: 7.234261692 | D145: 16.12968139 | E145: 23.36394308 | J145: 5 | K145: 3.303673395 | L145: 15 | M145: 23.30367339 | O145: 136 | P145: 0 | Q145: =SUM(P$10:P145)/O145 -> 0.625 | R145: 0.06026968585
A146: 11.49326958 | B146: 13.89619342 | C146: 11.49326958 | D146: 15.07051259 | E146: 26.56378217 | J146: 5 | K146: 2.532333568 | L146: 15 | M146: 22.53233357 | O146: 137 | P146: 0 | Q146: =SUM(P$10:P146)/O146 -> 0.6204379562 | R146: 4.031448603
A147: 9.446082314 | B147: 8.646736276 | C147: 8.646736276 | D147: 16.00014794 | E147: 24.64688421 | J147: 5 | K147: 1.063124859 | L147: 15 | M147: 21.06312486 | O147: 138 | P147: 0 | Q147: =SUM(P$10:P147)/O147 -> 0.615942029 | R147: 3.583759356
A148: 4.517731738 | B148: 8.283260349 | C148: 4.517731738 | D148: 13.98049367 | E148: 18.49822541 | J148: 5 | K148: 2.638830139 | L148: 15 | M148: 22.63883014 | O148: 139 | P148: 1 | Q148: =SUM(P$10:P148)/O148 -> 0.618705036 | R148: -4.140604725
A149: 12.95332745 | B149: 12.68274253 | C149: 12.68274253 | D149: 13.33169054 | E149: 26.01443307 | J149: 5 | K149: 3.127722428 | L149: 15 | M149: 23.12772243 | O149: 140 | P149: 0 | Q149: =SUM(P$10:P149)/O149 -> 0.6142857143 | R149: 2.886710639
A150: =A$7+RAND()*A$8 -> 6.040952135 | B150: 14.79020965 | C150: 6.040952135 | D150: 16.79675932 | E150: 22.83771146 | J150: 5 | K150: 0.7814540037 | L150: 15 | M150: 20.781454 | O150: 141 | P150: 0 | Q150: =SUM(P$10:P150)/O150 -> 0.609929078 | R150: 2.056257454
A151: 19.93240483 | B151: 6.707883738 | C151: 6.707883738 | D151: 12.63365988 | E151: 19.34154362 | J151: 5 | K151: 2.041339213 | L151: 15 | M151: 22.04133921 | O151: 142 | P151: 1 | Q151: =SUM(P$10:P151)/O151 -> 0.6126760563 | R151: -2.699795592
A152: 9.728588616 | B152: 15.57646513 | C152: 9.728588616 | D152: 15.18152316 | E152: 24.91011178 | J152: 5 | K152: 4.189892686 | L152: 15 | M152: 24.18989269 | O152: 143 | P152: 0 | Q152: =SUM(P$10:P152)/O152 -> 0.6083916084 | R152: 0.7202190913
A153: 6.683144285 | B153: 2.388014568 | C153: 2.388014568 | D153: 17.89162275 | E153: 20.27963732 | J153: 5 | K153: 1.595743387 | L153: 15 | M153: 21.59574339 | O153: 144 | P153: 1 | Q153: =SUM(P$10:P153)/O153 -> 0.6111111111 | R153: -1.31610607
A154: 2.698215044 | B154: 17.61573764 | C154: 2.698215044 | D154: 17.08003999 | E154: 19.77825503 | J154: 5 | K154: 0.06006198655 | L154: 15 | M154: 20.06006199 | O154: 145 | P154: 1 | Q154: =SUM(P$10:P154)/O154 -> 0.6137931034 | R154: -0.2818069537
A155: 3.81420115 | B155: 17.22378261 | C155: 3.81420115 | D155: 12.32249969 | E155: 16.13670084 | J155: 5 | K155: 4.746830088 | L155: 15 | M155: 24.74683009 | O155: 146 | P155: 1 | Q155: =SUM(P$10:P155)/O155 -> 0.6164383562 | R155: -8.610129249
A156: 5.337602557 | B156: 3.412525381 | C156: 3.412525381 | D156: 13.55681544 | E156: 16.96934082 | J156: 5 | K156: 1.651481754 | L156: 15 | M156: 21.65148175 | O156: 147 | P156: 1 | Q156: =SUM(P$10:P156)/O156 -> 0.619047619 | R156: -4.682140932
A157: 6.628804149 | B157: 3.194651011 | C157: 3.194651011 | D157: 12.31833471 | E157: 15.51298572 | J157: 5 | K157: 4.254571656 | L157: 15 | M157: 24.25457166 | O157: 148 | P157: 1 | Q157: =SUM(P$10:P157)/O157 -> 0.6216216216 | R157: -8.741585935
A158: 12.36092276 | B158: 3.066964539 | C158: 3.066964539 | D158: 13.39443258 | E158: 16.46139711 | J158: 5 | K158: 2.843698785 | L158: 15 | M158: 22.84369879 | O158: 149 | P158: 1 | Q158: =SUM(P$10:P158)/O158 -> 0.6241610738 | R158: -6.38230167
A159: 8.481798079 | B159: 8.67245031 | C159: 8.481798079 | D159: 15.43377517 | E159: 23.91557325 | J159: 5 | K159: 2.836757119 | L159: 15 | M159: 22.83675712 | O159: 150 | P159: 0 | Q159: =SUM(P$10:P159)/O159 -> 0.62 | R159: 1.078816128
A160: 8.701595224 | B160: 10.7051654 | C160: 8.701595224 | D160: 14.11233661 | E160: 22.81393184 | J160: 5 | K160: 3.207120769 | L160: 15 | M160: 23.20712077 | O160: 151 | P160: 1 | Q160: =SUM(P$10:P160)/O160 -> 0.6225165563 | R160: -0.3931889315
A161: 3.740862836 | B161: 11.21943638 | C161: 3.740862836 | D161: 15.52139949 | E161: 19.26226232 | J161: 5 | K161: 3.740564405 | L161: 15 | M161: 23.7405644 | O161: 152 | P161: 1 | Q161: =SUM(P$10:P161)/O161 -> 0.625 | R161: -4.47830208
A162: 1.123242114 | B162: 8.518864985 | C162: 1.123242114 | D162: 14.6839117 | E162: 15.80715382 | J162: 5 | K162: 1.489343574 | L162: 15 | M162: 21.48934357 | O162: 153 | P162: 1 | Q162: =SUM(P$10:P162)/O162 -> 0.6274509804 | R162: -5.682189758
A163: 19.32594499 | B163: 19.68280978 | C163: 19.32594499 | D163: 17.29950397 | E163: 36.62544896 | J163: 5 | K163: 1.182001743 | L163: 15 | M163: 21.18200174 | O163: 154 | P163: 0 | Q163: =SUM(P$10:P163)/O163 -> 0.6233766234 | R163: 15.44344722
A164: 10.31229039 | B164: 1.777957622 | C164: 1.777957622 | D164: 15.090875 | E164: 16.86883262 | J164: 5 | K164: 3.867802383 | L164: 15 | M164: 23.86780238 | O164: 155 | P164: 1 | Q164: =SUM(P$10:P164)/O164 -> 0.6258064516 | R164: -6.998969762
A165: 17.95461579 | B165: 1.60700765 | C165: 1.60700765 | D165: 12.21834164 | E165: 13.82534929 | J165: 5 | K165: 4.576702829 | L165: 15 | M165: 24.57670283 | O165: 156 | P165: 1 | Q165: =SUM(P$10:P165)/O165 -> 0.6282051282 | R165: -10.75135354
A166: 10.44124111 | B166: 4.401059682 | C166: 4.401059682 | D166: 17.2223598 | E166: 21.62341948 | J166: 5 | K166: 1.685054046 | L166: 15 | M166: 21.68505405 | O166: 157 | P166: 1 | Q166: =SUM(P$10:P166)/O166 -> 0.6305732484 | R166: -0.06163456339
A167: 17.77216265 | B167: 13.35058483 | C167: 13.35058483 | D167: 16.13042999 | E167: 29.48101481 | J167: 5 | K167: 1.227043472 | L167: 15 | M167: 21.22704347 | O167: 158 | P167: 0 | Q167: =SUM(P$10:P167)/O167 -> 0.6265822785 | R167: 8.253971342
A168: 1.412979577 | B168: 9.953551616 | C168: 1.412979577 | D168: 16.07226246 | E168: 17.48524204 | J168: 5 | K168: 2.503229659 | L168: 15 | M168: 22.50322966 | O168: 159 | P168: 1 | Q168: =SUM(P$10:P168)/O168 -> 0.6289308176 | R168: -5.017987619
A169: 2.802569074 | B169: 16.69187393 | C169: 2.802569074 | D169: 13.57231406 | E169: 16.37488313 | J169: 5 | K169: 3.413571882 | L169: 15 | M169: 23.41357188 | O169: 160 | P169: 1 | Q169: =SUM(P$10:P169)/O169 -> 0.63125 | R169: -7.038688752
A170: =A$7+RAND()*A$8 -> 19.24310058 | B170: 17.71450172 | C170: 17.71450172 | D170: 16.16412571 | E170: 33.87862742 | J170: 5 | K170: 2.94415538 | L170: 15 | M170: 22.94415538 | O170: 161 | P170: 0 | Q170: =SUM(P$10:P170)/O170 -> 0.6273291925 | R170: 10.93447204
A171: 0.1605576871 | B171: 9.938989915 | C171: 0.1605576871 | D171: 17.49193376 | E171: 17.65249145 | J171: 5 | K171: 0.5168064094 | L171: 15 | M171: 20.51680641 | O171: 162 | P171: 1 | Q171: =SUM(P$10:P171)/O171 -> 0.6296296296 | R171: -2.864314957
A172: 10.0504652 | B172: 12.2380069 | C172: 10.0504652 | D172: 13.41443152 | E172: 23.46489672 | J172: 5 | K172: 4.018189044 | L172: 15 | M172: 24.01818904 | O172: 163 | P172: 1 | Q172: =SUM(P$10:P172)/O172 -> 0.6319018405 | R172: -0.5532923246
A173: 11.93135427 | B173: 18.62789895 | C173: 11.93135427 | D173: 14.84943534 | E173: 26.78078961 | J173: 5 | K173: 4.672781555 | L173: 15 | M173: 24.67278156 | O173: 164 | P173: 0 | Q173: =SUM(P$10:P173)/O173 -> 0.6280487805 | R173: 2.10800805
A174: 19.79488196 | B174: 12.39637468 | C174: 12.39637468 | D174: 12.78203681 | E174: 25.17841149 | J174: 5 | K174: 2.740254228 | L174: 15 | M174: 22.74025423 | O174: 165 | P174: 0 | Q174: =SUM(P$10:P174)/O174 -> 0.6242424242 | R174: 2.43815726
A175: 1.486382155 | B175: 2.446439673 | C175: 1.486382155 | D175: 17.81630134 | E175: 19.3026835 | J175: 5 | K175: 2.90075029 | L175: 15 | M175: 22.90075029 | O175: 166 | P175: 1 | Q175: =SUM(P$10:P175)/O175 -> 0.6265060241 | R175: -3.598066793
A176: 15.87841989 | B176: 10.39702037 | C176: 10.39702037 | D176: 13.75546903 | E176: 24.1524894 | J176: 5 | K176: 4.407299304 | L176: 15 | M176: 24.4072993 | O176: 167 | P176: 1 | Q176: =SUM(P$10:P176)/O176 -> 0.628742515 | R176: -0.2548099059
A177: 9.167749468 | B177: 3.925017227 | C177: 3.925017227 | D177: 17.77175763 | E177: 21.69677486 | J177: 5 | K177: 4.622242758 | L177: 15 | M177: 24.62224276 | O177: 168 | P177: 1 | Q177: =SUM(P$10:P177)/O177 -> 0.630952381 | R177: -2.925467899
A178: 3.912189827 | B178: 5.421410234 | C178: 3.912189827 | D178: 15.24918586 | E178: 19.16137569 | J178: 5 | K178: 3.211961086 | L178: 15 | M178: 23.21196109 | O178: 169 | P178: 1 | Q178: =SUM(P$10:P178)/O178 -> 0.6331360947 | R178: -4.050585397
A179: 1.7779744 | B179: 16.95751429 | C179: 1.7779744 | D179: 12.38018924 | E179: 14.15816364 | J179: 5 | K179: 3.34404425 | L179: 15 | M179: 23.34404425 | O179: 170 | P179: 1 | Q179: =SUM(P$10:P179)/O179 -> 0.6352941176 | R179: -9.185880608
A180: 2.418812304 | B180: 19.41707859 | C180: 2.418812304 | D180: 15.84944241 | E180: 18.26825472 | J180: 5 | K180: 1.66496297 | L180: 15 | M180: 21.66496297 | O180: 171 | P180: 1 | Q180: =SUM(P$10:P180)/O180 -> 0.6374269006 | R180: -3.396708255
A181: 15.97282265 | B181: 0.5452091146 | C181: 0.5452091146 | D181: 14.59686236 | E181: 15.14207148 | J181: 5 | K181: 2.754253346 | L181: 15 | M181: 22.75425335 | O181: 172 | P181: 1 | Q181: =SUM(P$10:P181)/O181 -> 0.6395348837 | R181: -7.612181869
A182: 2.362584207 | B182: 3.856406766 | C182: 2.362584207 | D182: 12.62102093 | E182: 14.98360514 | J182: 5 | K182: 3.622101764 | L182: 15 | M182: 23.62210176 | O182: 173 | P182: 1 | Q182: =SUM(P$10:P182)/O182 -> 0.6416184971 | R182: -8.638496628
A183: 18.58897179 | B183: 18.25977142 | C183: 18.25977142 | D183: 14.33390296 | E183: 32.59367438 | J183: 5 | K183: 2.941169992 | L183: 15 | M183: 22.94116999 | O183: 174 | P183: 0 | Q183: =SUM(P$10:P183)/O183 -> 0.6379310345 | R183: 9.652504392
A184: 15.77556301 | B184: 11.3872682 | C184: 11.3872682 | D184: 13.54165395 | E184: 24.92892215 | J184: 5 | K184: 4.371127255 | L184: 15 | M184: 24.37112726 | O184: 175 | P184: 0 | Q184: =SUM(P$10:P184)/O184 -> 0.6342857143 | R184: 0.5577948972
A185: 18.02590126 | B185: 1.054750081 | C185: 1.054750081 | D185: 13.98153223 | E185: 15.03628231 | J185: 5 | K185: 4.270392027 | L185: 15 | M185: 24.27039203 | O185: 176 | P185: 1 | Q185: =SUM(P$10:P185)/O185 -> 0.6363636364 | R185: -9.234109716
A186: 4.068937216 | B186: 8.10826462 | C186: 4.068937216 | D186: 13.45248005 | E186: 17.52141727 | J186: 5 | K186: 0.08712956125 | L186: 15 | M186: 20.08712956 | O186: 177 | P186: 1 | Q186: =SUM(P$10:P186)/O186 -> 0.6384180791 | R186: -2.565712291
A187: 7.392985811 | B187: 2.589690911 | C187: 2.589690911 | D187: 15.18125954 | E187: 17.77095045 | J187: 5 | K187: 2.860085481 | L187: 15 | M187: 22.86008548 | O187: 178 | P187: 1 | Q187: =SUM(P$10:P187)/O187 -> 0.6404494382 | R187: -5.089135032
A188: 0.3533357283 | B188: 11.17787962 | C188: 0.3533357283 | D188: 12.14429837 | E188: 12.4976341 | J188: 5 | K188: 3.196688891 | L188: 15 | M188: 23.19668889 | O188: 179 | P188: 1 | Q188: =SUM(P$10:P188)/O188 -> 0.6424581006 | R188: -10.6990548
A189: 10.8380121 | B189: 18.38654887 | C189: 10.8380121 | D189: 13.21144782 | E189: 24.04945993 | J189: 5 | K189: 3.591395469 | L189: 15 | M189: 23.59139547 | O189: 180 | P189: 0 | Q189: =SUM(P$10:P189)/O189 -> 0.6388888889 | R189: 0.4580644598
A190: =A$7+RAND()*A$8 -> 19.91599776 | B190: 3.039026109 | C190: 3.039026109 | D190: 13.29197237 | E190: 16.33099848 | J190: 5 | K190: 1.057167281 | L190: 15 | M190: 21.05716728 | O190: 181 | P190: 1 | Q190: =SUM(P$10:P190)/O190 -> 0.6408839779 | R190: -4.726168803
A191: 1.850557084 | B191: 8.868949972 | C191: 1.850557084 | D191: 12.30625277 | E191: 14.15680985 | J191: 5 | K191: 1.367228479 | L191: 15 | M191: 21.36722848 | O191: 182 | P191: 1 | Q191: =SUM(P$10:P191)/O191 -> 0.6428571429 | R191: -7.21041863
A192: 6.001277879 | B192: 1.069966179 | C192: 1.069966179 | D192: 15.98165749 | E192: 17.05162367 | J192: 5 | K192: 4.079735067 | L192: 15 | M192: 24.07973507 | O192: 183 | P192: 1 | Q192: =SUM(P$10:P192)/O192 -> 0.6448087432 | R192: -7.028111398
A193: 8.095779591 | B193: 17.45469683 | C193: 8.095779591 | D193: 17.32200734 | E193: 25.41778693 | J193: 5 | K193: 4.559340745 | L193: 15 | M193: 24.55934075 | O193: 184 | P193: 0 | Q193: =SUM(P$10:P193)/O193 -> 0.6413043478 | R193: 0.858446189
A194: 3.336057282 | B194: 18.41575685 | C194: 3.336057282 | D194: 12.01936045 | E194: 15.35541773 | J194: 5 | K194: 4.50855459 | L194: 15 | M194: 24.50855459 | O194: 185 | P194: 1 | Q194: =SUM(P$10:P194)/O194 -> 0.6432432432 | R194: -9.153136861
A195: 19.79247579 | B195: 17.77105485 | C195: 17.77105485 | D195: 14.06547343 | E195: 31.83652828 | J195: 5 | K195: 0.1171604409 | L195: 15 | M195: 20.11716044 | O195: 186 | P195: 0 | Q195: =SUM(P$10:P195)/O195 -> 0.6397849462 | R195: 11.71936784
A196: 2.126152722 | B196: 4.067646377 | C196: 2.126152722 | D196: 15.22117695 | E196: 17.34732967 | J196: 5 | K196: 0.1993927821 | L196: 15 | M196: 20.19939278 | O196: 187 | P196: 1 | Q196: =SUM(P$10:P196)/O196 -> 0.6417112299 | R196: -2.852063114
A197: 17.39341377 | B197: 0.3465010489 | C197: 0.3465010489 | D197: 16.81847645 | E197: 17.1649775 | J197: 5 | K197: 1.556368121 | L197: 15 | M197: 21.55636812 | O197: 188 | P197: 1 | Q197: =SUM(P$10:P197)/O197 -> 0.6436170213 | R197: -4.391390625
A198: 7.50851925 | B198: 8.560715822 | C198: 7.50851925 | D198: 16.0380727 | E198: 23.54659195 | J198: 5 | K198: 3.933653222 | L198: 15 | M198: 23.93365322 | O198: 189 | P198: 1 | Q198: =SUM(P$10:P198)/O198 -> 0.6455026455 | R198: -0.3870612708
A199: 19.43670545 | B199: 1.545202629 | C199: 1.545202629 | D199: 13.67242781 | E199: 15.21763044 | J199: 5 | K199: 3.607749559 | L199: 15 | M199: 23.60774956 | O199: 190 | P199: 1 | Q199: =SUM(P$10:P199)/O199 -> 0.6473684211 | R199: -8.390119119
A200: 9.800940301 | B200: 11.65051093 | C200: 9.800940301 | D200: 13.74401999 | E200: 23.54496029 | J200: 5 | K200: 1.190636383 | L200: 15 | M200: 21.19063638 | O200: 191 | P200: 0 | Q200: =SUM(P$10:P200)/O200 -> 0.6439790576 | R200: 2.354323906
A201: 12.32617723 | B201: 13.62938223 | C201: 12.32617723 | D201: 13.52435102 | E201: 25.85052825 | J201: 5 | K201: 0.07514002929 | L201: 15 | M201: 20.07514003 | O201: 192 | P201: 0 | Q201: =SUM(P$10:P201)/O201 -> 0.640625 | R201: 5.775388218
A202: 13.90647168 | B202: 9.089146502 | C202: =MIN(A202:B202) -> 9.089146502 | D202: =D$7+RAND()*D$8 -> 16.2206211 | E202: =D202+C202 -> 25.3097676 | J202: 5 | K202: =K$7+RAND()*K$8 -> 2.218127029 | L202: 15 | M202: =L202+K202+J202 -> 22.21812703 | O202: 193 | P202: =(E202<M202)*1 -> 0 | Q202: =SUM(P$10:P202)/O202 -> 0.6373056995 | R202: =E202-M202 -> 3.091640571
... 692 more rows
